Workbook

Sheet Cover
B6: Official Statistics Release
B7: Policy area: | C7: Learning and skills inspections and outcomes
B8: Theme: | C8: Education, children's services and skills
B9: Published on: | C9: 27 November 2012
B10: Coverage: | C10: England
B11: Period covered: | C11: 1 September 2011 to 31 August 2012
B12: Status: | C12: Final
B13: Issued by: | C13: Office for Standards in Education, Children's Services and Skills (Ofsted) 125 Kingsway London WC2B 6SE
B17: Responsible director: | C17: Matthew Coffey
B18: Responsible statistician: | C18: Jo Parkman
B19: Public enquiries: | C19: enquiries@ofsted.gov.uk
B20: Press enquiries: | C20: pressenquiries@ofsted.gov.uk
B21: Link to official statistics release web page: | C21: http://www.ofsted.gov.uk/publications/20110009
B22: Publication medium: | C22: Ofsted website
B23: Publication frequency: | C23: Quarterly
B26: © Crown copyright
B28: You may use and re-use this information (not including logos) free of charge in any format or medium, under the terms of the Open Government Licence.
B29: To view this licence, visit:
B30: http://www.nationalarchives.gov.uk/doc/open-government-licence/
B31: Or write to the Information Policy Team, The National Archives, Kew, London, TW9 4DU
B32: Or email:
B33: psi@nationalarchives.gsi.gov.uk

Sheet Contents
B2: Contents
B4: Tables
B6: Table 1: Number of learning and skills providers inspected between 1 September 2011 and 31 August 2012, by provider and inspection type (final)
B8: Table 2: Inspection outcomes of learning and skills providers inspected between 1 September 2011 and 31 August 2012 (final)
B10: Table 2a: Inspection outcomes of colleges inspected between 1 September 2011 and 31 August 2012 (final)
B12: Table 2b: Inspection outcomes of general further education colleges/tertiary colleges inspected between 1 September 2011 and 31 August 2012 (final)
B14: Table 2c: Inspection outcomes of sixth form colleges inspected between 1 September 2011 and 31 August 2012 (final)
B16: Table 2d: Inspection outcomes of independent specialist colleges inspected between 1 September 2011 and 31 August 2012 (final)
B18: Table 2e: Inspection outcomes of further education in higher education institutions inspected between 1 September 2011 and 31 August 2012 (final)
B20: Table 2f: Inspection outcomes of Dance and darama awards schemes in colleges inspected between 1 September 2011 and 31 August 2012 (final)
B22: Table 2g: Inspection outcomes of independent learning providers inspected between 1 September 2011 and 31 August 2012 (final)
B24: Table 2h: Inspection outcomes of adult and community learning providers inspected between 1 September 2011 and 31 August 2012 (final)
B26: Table 2i: Inspection outcomes of Next Step providers inspected between 1 September 2011 and 31 August 2012 (final)
B28: Table 2j: Inspection outcomes of prison and young offender institutions inspected between 1 September 2011 and 31 August 2012 (final)
B30: Table 2k: Inspection outcomes of probation trusts inspected between 1 September 2011 and 31 August 2012 (final)
B32: Table 3: Learning and skills providers judged inadequate between 1 September 2011 and 31 August 2012 (final)
B34: Charts
B36: Chart 1: Overall effectiveness of learning and skills providers inspected between 1 September 2011 and 31 August 2012 (final)
B38: Chart 2: Key inspection judgements of learning and skills providers inspected between 1 September 2011 and 31 August 2012 (final)
B40: Chart 3: Overall effectiveness of colleges inspected between 1 September 2005 and 31 August 2012, by academic year (final)
B42: Chart 3a: Overall effectiveness of independent learning providers inspected between 1 September 2007 and 31 August 2012, by academic year (final)
B44: Chart 3b: Overall effectiveness of adult and community learning providers inspected between 1 September 2007 and 31 August 2012, by academic year (final)
B46: Chart 4: Overall effectiveness of learning and skills providers inspected at 31 August 2012 (final)
B48: Chart 5: Most recent overall effectiveness of learning and skills providers inspected at 31 August 2012 compared to the most recent overall effectiveness at 31 August 2011 (final)

Sheet Dates1 (hidden)
B3: 1 September 2011 and 31 August 2012
B4: January 2011
B5: February 2011
B6: March 2011
B9: 1 September 2009 | C9: 30 September 2009
B10: 1 October 2009 | C10: 31 October 2009
B11: 1 November 2009 | C11: 30 November 2009
B12: 1 December 2009 | C12: 31 December 2009
B13: 1 January 2010 | C13: 31 January 2010
B14: 1 February 2010 | C14: 28 February 2010
B15: 1 March 2010 | C15: 31 March 2010
B16: 1 April 2010 | C16: 30 April 2010
B17: 1 May 2010 | C17: 31 May 2010
B18: 1 June 2010 | C18: 30 June 2010
B19: 1 July 2010 | C19: 31 July 2010
B20: 1 August 2010 | C20: 31 August 2010
B40: 1 | C40: =CHAR(B40) -> 
B41: 2 | C41: 
B42: 3 | C42: 
B43: 4 | C43: 
B44: 5 | C44: 
B45: 6 | C45: 
B46: 7 | C46: 
B47: 8 | C47: 
B48: 9
B49: 10
B50: 11
B51: 12
B52: 13
B53: 14 | C53: 
B54: 15 | C54: 
B55: 16 | C55: 
B56: 17 | C56: 
B57: 18 | C57: 
B58: 19 | C58: 
B59: 20 | C59: 
B60: 21 | C60: 
B61: 22 | C61: 
B62: 23 | C62: 
B63: 24 | C63: 
B64: 25 | C64: 
B65: 26 | C65: 
B66: 27 | C66: 
B67: 28
B68: 29
B69: 30
B70: 31
B71: 32
B72: 33 | C72: !
B73: 34 | C73: "
B74: 35 | C74: #
B75: 36 | C75: $
B76: 37 | C76: %
B77: 38 | C77: &
B78: 39 | C78: '
B79: 40 | C79: (
B80: 41 | C80: )
B81: 42 | C81: *
B82: 43 | C82: +
B83: 44 | C83: ,
B84: 45 | C84: -
B85: 46 | C85: .
B86: 47 | C86: /
B87: 48 | C87: 0
B88: 49 | C88: 1
B89: 50 | C89: 2
B90: 51 | C90: 3
B91: 52 | C91: 4
B92: 53 | C92: 5
B93: 54 | C93: 6
B94: 55 | C94: 7
B95: 56 | C95: 8
B96: 57 | C96: 9
B97: 58 | C97: :
B98: 59 | C98: ;
B99: 60 | C99: <
B100: 61 | C100: =
B101: 62 | C101: >
B102: 63 | C102: ?
B103: 64 | C103: @
B104: 65 | C104: =CHAR(B104) -> A
B105: 66 | C105: B
B106: 67 | C106: C
B107: 68 | C107: D
B108: 69 | C108: E
B109: 70 | C109: F
B110: 71 | C110: G
B111: 72 | C111: H
B112: 73 | C112: I
B113: 74 | C113: J
B114: 75 | C114: K
B115: 76 | C115: L
B116: 77 | C116: M
B117: 78 | C117: N
B118: 79 | C118: O
B119: 80 | C119: P
B120: 81 | C120: Q
B121: 82 | C121: R
B122: 83 | C122: S
B123: 84 | C123: T
B124: 85 | C124: U
B125: 86 | C125: V
B126: 87 | C126: W
B127: 88 | C127: X
B128: 89 | C128: Y
B129: 90 | C129: Z
B130: 91 | C130: [
B131: 92 | C131: \
B132: 93 | C132: ]
B133: 94 | C133: ^
B134: 95 | C134: _
B135: 96 | C135: `
B136: 97 | C136: a
B137: 98 | C137: b
B138: 99 | C138: c
B139: 100 | C139: d
B140: 101 | C140: e
B141: 102 | C141: f
B142: 103 | C142: g
B143: 104 | C143: h
B144: 105 | C144: i
B145: 106 | C145: j
B146: 107 | C146: k
B147: 108 | C147: l
B148: 109 | C148: m
B149: 110 | C149: n
B150: 111 | C150: o
B151: 112 | C151: p
B152: 113 | C152: q
B153: 114 | C153: r
B154: 115 | C154: s
B155: 116 | C155: t
B156: 117 | C156: u
B157: 118 | C157: v
B158: 119 | C158: w
B159: 120 | C159: x
B160: 121 | C160: y
B161: 122 | C161: z
B162: 123 | C162: {
B163: 124 | C163: |
B164: 125 | C164: }
B165: 126 | C165: ~
B166: 127 | C166: 
B167: 128 | C167: €
B168: 129 | C168: =CHAR(B168) -> 
B169: 130 | C169: ‚
B170: 131 | C170: ƒ
B171: 132 | C171: „
B172: 133 | C172: …
B173: 134 | C173: †
B174: 135 | C174: ‡
B175: 136 | C175: ˆ
B176: 137 | C176: ‰
B177: 138 | C177: Š
B178: 139 | C178: ‹
B179: 140 | C179: Œ
B180: 141 | C180: 
B181: 142 | C181: Ž
B182: 143 | C182: 
B183: 144 | C183: 
B184: 145 | C184: ‘
B185: 146 | C185: ’
B186: 147 | C186: “
B187: 148 | C187: ”
B188: 149 | C188: •
B189: 150 | C189: –
B190: 151 | C190: —
B191: 152 | C191: ˜
B192: 153 | C192: ™
B193: 154 | C193: š
B194: 155 | C194: ›
B195: 156 | C195: œ
B196: 157 | C196: 
B197: 158 | C197: ž
B198: 159 | C198: Ÿ
B199: 160
B200: 161 | C200: ¡
B201: 162 | C201: ¢
B202: 163 | C202: £
B203: 164 | C203: ¤
B204: 165 | C204: ¥
B205: 166 | C205: ¦
B206: 167 | C206: §
B207: 168 | C207: ¨
B208: 169 | C208: ©
B209: 170 | C209: ª
B210: 171 | C210: «
B211: 172 | C211: ¬
B212: 173 | C212: ­
B213: 174 | C213: ®
B214: 175 | C214: ¯
B215: 176 | C215: °
B216: 177 | C216: ±
B217: 178 | C217: ²
B218: 179 | C218: ³
B219: 180 | C219: ´
B220: 181 | C220: µ
B221: 182 | C221: ¶
B222: 183 | C222: ·
B223: 184 | C223: ¸
... 71 more rows

Sheet DataPack (hidden)
A1: Table1 | B1: Quarter | K1: Month1 | T1: Month2 | AC1: Month3
B2: All L&S | C2: All colleges | D2: HEI | E2: DaDa | F2: ILP | G2: ACL | H2: Next Step | I2: Prison | J2: Probation | K2: All L&S | L2: All colleges | M2: HEI | N2: DaDa | O2: ILP | P2: ACL | Q2: Next Step | R2: Prison | S2: Probation | T2: All L&S | U2: All colleges | V2: HEI | W2: DaDa | X2: ILP | Y2: ACL | Z2: Next Step | AA2: Prison | AB2: Probation | AC2: All L&S | AD2: All colleges | AE2: HEI | AF2: DaDa | AG2: ILP | AH2: ACL | AI2: Next Step | AJ2: Prison | AK2: Probation
A3: Full inspections | B3: 300 | C3: 68 | D3: 7 | E3: 16 | F3: 122 | G3: 62 | H3: 2 | I3: 17 | J3: 6 | K3: 0 | L3: 0 | M3: 0 | N3: 0 | O3: 0 | P3: 0 | Q3: 0 | R3: 0 | S3: 0 | T3: 0 | U3: 0 | V3: 0 | W3: 0 | X3: 0 | Y3: 0 | Z3: 0 | AA3: 0 | AB3: 0 | AC3: 0 | AD3: 0 | AE3: 0 | AF3: 0 | AG3: 0 | AH3: 0 | AI3: 0 | AJ3: 0 | AK3: 0
A4: Re-inspections | B4: 9 | C4: 2 | D4: 0 | E4: 0 | F4: 6 | G4: 1 | H4: 0 | I4: 0 | J4: 0 | K4: 0 | L4: 0 | M4: 0 | N4: 0 | O4: 0 | P4: 0 | Q4: 0 | R4: 0 | S4: 0 | T4: 0 | U4: 0 | V4: 0 | W4: 0 | X4: 0 | Y4: 0 | Z4: 0 | AA4: 0 | AB4: 0 | AC4: 0 | AD4: 0 | AE4: 0 | AF4: 0 | AG4: 0 | AH4: 0 | AI4: 0 | AJ4: 0 | AK4: 0
A5: Focused monitoring visits | B5: 123 | C5: 41 | D5: 0 | E5: 0 | F5: 55 | G5: 22 | H5: 5 | I5: 0 | J5: 0 | K5: 0 | L5: 0 | M5: 0 | N5: 0 | O5: 0 | P5: 0 | Q5: 0 | R5: 0 | S5: 0 | T5: 0 | U5: 0 | V5: 0 | W5: 0 | X5: 0 | Y5: 0 | Z5: 0 | AA5: 0 | AB5: 0 | AC5: 0 | AD5: 0 | AE5: 0 | AF5: 0 | AG5: 0 | AH5: 0 | AI5: 0 | AJ5: 0 | AK5: 0
A6: Re-inspection monitoring visits | B6: 35 | C6: 20 | D6: 0 | E6: 0 | F6: 11 | G6: 4 | H6: 0 | I6: 0 | J6: 0 | K6: 0 | L6: 0 | M6: 0 | N6: 0 | O6: 0 | P6: 0 | Q6: 0 | R6: 0 | S6: 0 | T6: 0 | U6: 0 | V6: 0 | W6: 0 | X6: 0 | Y6: 0 | Z6: 0 | AA6: 0 | AB6: 0 | AC6: 0 | AD6: 0 | AE6: 0 | AF6: 0 | AG6: 0 | AH6: 0 | AI6: 0 | AJ6: 0 | AK6: 0
A7: Partial re-inspections | B7: 16 | C7: 14 | D7: 0 | E7: 0 | F7: 1 | G7: 1 | H7: 0 | I7: 0 | J7: 0 | K7: 0 | L7: 0 | M7: 0 | N7: 0 | O7: 0 | P7: 0 | Q7: 0 | R7: 0 | S7: 0 | T7: 0 | U7: 0 | V7: 0 | W7: 0 | X7: 0 | Y7: 0 | Z7: 0 | AA7: 0 | AB7: 0 | AC7: 0 | AD7: 0 | AE7: 0 | AF7: 0 | AG7: 0 | AH7: 0 | AI7: 0 | AJ7: 0 | AK7: 0
A8: Full/short unannounced prison inspections | B8: 0 | C8: 0 | D8: 0 | E8: 0 | F8: 0 | G8: 0 | H8: 0 | I8: 0 | J8: 0 | K8: 0 | L8: 0 | M8: 0 | N8: 0 | O8: 0 | P8: 0 | Q8: 0 | R8: 0 | S8: 0 | T8: 0 | U8: 0 | V8: 0 | W8: 0 | X8: 0 | Y8: 0 | Z8: 0 | AA8: 0 | AB8: 0 | AC8: 0 | AD8: 0 | AE8: 0 | AF8: 0 | AG8: 0 | AH8: 0 | AI8: 0 | AJ8: 0 | AK8: 0
A10: Table2 All learning and skills | B10: Quarter | G10: Month1 | L10: Month2 | Q10: Month3
B11: Outstanding | C11: Good | D11: Satisfactory | E11: Inadequate | F11: Total | G11: Outstanding | H11: Good | I11: Satisfactory | J11: Inadequate | K11: Total | L11: Outstanding | M11: Good | N11: Satisfactory | O11: Inadequate | P11: Total | Q11: Outstanding | R11: Good | S11: Satisfactory | T11: Inadequate | U11: Total
A12: Overall effectiveness | B12: 16 | C12: 122 | D12: 94 | E12: 29 | F12: 261 | G12: 0 | H12: 0 | I12: 0 | J12: 0 | K12: 0 | L12: 0 | M12: 0 | N12: 0 | O12: 0 | P12: 0 | Q12: 0 | R12: 0 | S12: 0 | T12: 0 | U12: 0
A13: Capacity to improve | B13: 14 | C13: 120 | D13: 96 | E13: 26 | F13: 256 | G13: 0 | H13: 0 | I13: 0 | J13: 0 | K13: 0 | L13: 0 | M13: 0 | N13: 0 | O13: 0 | P13: 0 | Q13: 0 | R13: 0 | S13: 0 | T13: 0 | U13: 0
A14: A. Outcomes for learners | B14: 22 | C14: 118 | D14: 99 | E14: 22 | F14: 261 | G14: 0 | H14: 0 | I14: 0 | J14: 0 | K14: 0 | L14: 0 | M14: 0 | N14: 0 | O14: 0 | P14: 0 | Q14: 0 | R14: 0 | S14: 0 | T14: 0 | U14: 0
A15: A1. How well do learners achieve and enjoy their learning | B15: 24 | C15: 114 | D15: 97 | E15: 21 | F15: 256 | G15: 0 | H15: 0 | I15: 0 | J15: 0 | K15: 0 | L15: 0 | M15: 0 | N15: 0 | O15: 0 | P15: 0 | Q15: 0 | R15: 0 | S15: 0 | T15: 0 | U15: 0
A16: A1.a) How well do learners attain their learning goals | B16: 25 | C16: 96 | D16: 109 | E16: 26 | F16: 256 | G16: 0 | H16: 0 | I16: 0 | J16: 0 | K16: 0 | L16: 0 | M16: 0 | N16: 0 | O16: 0 | P16: 0 | Q16: 0 | R16: 0 | S16: 0 | T16: 0 | U16: 0
A17: A1.b) How well do learners progress? | B17: 21 | C17: 126 | D17: 92 | E17: 17 | F17: 256 | G17: 0 | H17: 0 | I17: 0 | J17: 0 | K17: 0 | L17: 0 | M17: 0 | N17: 0 | O17: 0 | P17: 0 | Q17: 0 | R17: 0 | S17: 0 | T17: 0 | U17: 0
A18: A2. How well do learners improve their economic and social well-being through learning and development? | B18: 32 | C18: 160 | D18: 55 | E18: 9 | F18: 256 | G18: 0 | H18: 0 | I18: 0 | J18: 0 | K18: 0 | L18: 0 | M18: 0 | N18: 0 | O18: 0 | P18: 0 | Q18: 0 | R18: 0 | S18: 0 | T18: 0 | U18: 0
A19: A3. How safe do learners feel? | B19: 40 | C19: 167 | D19: 49 | E19: 0 | F19: 256 | G19: 0 | H19: 0 | I19: 0 | J19: 0 | K19: 0 | L19: 0 | M19: 0 | N19: 0 | O19: 0 | P19: 0 | Q19: 0 | R19: 0 | S19: 0 | T19: 0 | U19: 0
A20: A4. Are learners able to make informed choices about their own health and well being?* | B20: 14 | C20: 85 | D20: 48 | E20: 0 | F20: 147 | G20: 0 | H20: 0 | I20: 0 | J20: 0 | K20: 0 | L20: 0 | M20: 0 | N20: 0 | O20: 0 | P20: 0 | Q20: 0 | R20: 0 | S20: 0 | T20: 0 | U20: 0
A21: A5. How well do learners make a positive contribution to the community?* | B21: 25 | C21: 81 | D21: 32 | E21: 2 | F21: 140 | G21: 0 | H21: 0 | I21: 0 | J21: 0 | K21: 0 | L21: 0 | M21: 0 | N21: 0 | O21: 0 | P21: 0 | Q21: 0 | R21: 0 | S21: 0 | T21: 0 | U21: 0
A22: B. Quality of provision | B22: 16 | C22: 136 | D22: 96 | E22: 8 | F22: 256 | G22: 0 | H22: 0 | I22: 0 | J22: 0 | K22: 0 | L22: 0 | M22: 0 | N22: 0 | O22: 0 | P22: 0 | Q22: 0 | R22: 0 | S22: 0 | T22: 0 | U22: 0
A23: B1. How effectively do teaching, training and assessment support learning and development? | B23: 9 | C23: 138 | D23: 106 | E23: 8 | F23: 261 | G23: 0 | H23: 0 | I23: 0 | J23: 0 | K23: 0 | L23: 0 | M23: 0 | N23: 0 | O23: 0 | P23: 0 | Q23: 0 | R23: 0 | S23: 0 | T23: 0 | U23: 0
A24: B2. How effectively does the provision meet the needs and interests of users? | B24: 42 | C24: 139 | D24: 72 | E24: 3 | F24: 256 | G24: 0 | H24: 0 | I24: 0 | J24: 0 | K24: 0 | L24: 0 | M24: 0 | N24: 0 | O24: 0 | P24: 0 | Q24: 0 | R24: 0 | S24: 0 | T24: 0 | U24: 0
A25: B3. How well do partnerships with schools, employers, community groups and others lead to benefits for learners? | B25: 59 | C25: 144 | D25: 50 | E25: 3 | F25: 256 | G25: 0 | H25: 0 | I25: 0 | J25: 0 | K25: 0 | L25: 0 | M25: 0 | N25: 0 | O25: 0 | P25: 0 | Q25: 0 | R25: 0 | S25: 0 | T25: 0 | U25: 0
A26: B4. How effective are the care, guidance and support learners receive in helping them to achieve? | B26: 26 | C26: 149 | D26: 73 | E26: 8 | F26: 256 | G26: 0 | H26: 0 | I26: 0 | J26: 0 | K26: 0 | L26: 0 | M26: 0 | N26: 0 | O26: 0 | P26: 0 | Q26: 0 | R26: 0 | S26: 0 | T26: 0 | U26: 0
A27: C. Leadership and management | B27: 17 | C27: 125 | D27: 92 | E27: 27 | F27: 261 | G27: 0 | H27: 0 | I27: 0 | J27: 0 | K27: 0 | L27: 0 | M27: 0 | N27: 0 | O27: 0 | P27: 0 | Q27: 0 | R27: 0 | S27: 0 | T27: 0 | U27: 0
A28: C1. How effectively do leaders and managers raise expectations and promote ambition throughout the organisation? | B28: 42 | C28: 123 | D28: 68 | E28: 23 | F28: 256 | G28: 0 | H28: 0 | I28: 0 | J28: 0 | K28: 0 | L28: 0 | M28: 0 | N28: 0 | O28: 0 | P28: 0 | Q28: 0 | R28: 0 | S28: 0 | T28: 0 | U28: 0
A29: C2. How effectively do governors and supervisory bodies provide leadership, direction and challenge?* | B29: 17 | C29: 70 | D29: 52 | E29: 14 | F29: 153 | G29: 0 | H29: 0 | I29: 0 | J29: 0 | K29: 0 | L29: 0 | M29: 0 | N29: 0 | O29: 0 | P29: 0 | Q29: 0 | R29: 0 | S29: 0 | T29: 0 | U29: 0
A30: C3. Safeguarding | B30: 31 | C30: 143 | D30: 77 | E30: 5 | F30: 256 | G30: 0 | H30: 0 | I30: 0 | J30: 0 | K30: 0 | L30: 0 | M30: 0 | N30: 0 | O30: 0 | P30: 0 | Q30: 0 | R30: 0 | S30: 0 | T30: 0 | U30: 0
A31: C4. Equality and diversity | B31: 10 | C31: 117 | D31: 121 | E31: 8 | F31: 256 | G31: 0 | H31: 0 | I31: 0 | J31: 0 | K31: 0 | L31: 0 | M31: 0 | N31: 0 | O31: 0 | P31: 0 | Q31: 0 | R31: 0 | S31: 0 | T31: 0 | U31: 0
A32: C5. How effectively does the provider engage with users to support and promote improvement? | B32: 26 | C32: 125 | D32: 98 | E32: 7 | F32: 256 | G32: 0 | H32: 0 | I32: 0 | J32: 0 | K32: 0 | L32: 0 | M32: 0 | N32: 0 | O32: 0 | P32: 0 | Q32: 0 | R32: 0 | S32: 0 | T32: 0 | U32: 0
A33: C6. How effectively does self-assessment improve the quality of the provision and outcomes for learners? | B33: 11 | C33: 100 | D33: 109 | E33: 36 | F33: 256 | G33: 0 | H33: 0 | I33: 0 | J33: 0 | K33: 0 | L33: 0 | M33: 0 | N33: 0 | O33: 0 | P33: 0 | Q33: 0 | R33: 0 | S33: 0 | T33: 0 | U33: 0
A34: C7. How efficiently and effectively does the provider use its available resources to secure value for money? | B34: 29 | C34: 122 | D34: 87 | E34: 18 | F34: 256 | G34: 0 | H34: 0 | I34: 0 | J34: 0 | K34: 0 | L34: 0 | M34: 0 | N34: 0 | O34: 0 | P34: 0 | Q34: 0 | R34: 0 | S34: 0 | T34: 0 | U34: 0
A36: Table2a all colleges | B36: Quarter | G36: Month1 | L36: Month2 | Q36: Month3
B37: Outstanding | C37: Good | D37: Satisfactory | E37: Inadequate | F37: Total | G37: Outstanding | H37: Good | I37: Satisfactory | J37: Inadequate | K37: Total | L37: Outstanding | M37: Good | N37: Satisfactory | O37: Inadequate | P37: Total | Q37: Outstanding | R37: Good | S37: Satisfactory | T37: Inadequate | U37: Total
A38: Overall effectiveness | B38: 4 | C38: 23 | D38: 30 | E38: 13 | F38: 70 | G38: 0 | H38: 0 | I38: 0 | J38: 0 | K38: 0 | L38: 0 | M38: 0 | N38: 0 | O38: 0 | P38: 0 | Q38: 0 | R38: 0 | S38: 0 | T38: 0 | U38: 0
A39: Capacity to improve | B39: 4 | C39: 25 | D39: 28 | E39: 10 | F39: 67 | G39: 0 | H39: 0 | I39: 0 | J39: 0 | K39: 0 | L39: 0 | M39: 0 | N39: 0 | O39: 0 | P39: 0 | Q39: 0 | R39: 0 | S39: 0 | T39: 0 | U39: 0
A40: A. Outcomes for learners | B40: 4 | C40: 18 | D40: 38 | E40: 10 | F40: 70 | G40: 0 | H40: 0 | I40: 0 | J40: 0 | K40: 0 | L40: 0 | M40: 0 | N40: 0 | O40: 0 | P40: 0 | Q40: 0 | R40: 0 | S40: 0 | T40: 0 | U40: 0
A41: A1. How well do learners achieve and enjoy their learning | B41: 4 | C41: 18 | D41: 36 | E41: 9 | F41: 67 | G41: 0 | H41: 0 | I41: 0 | J41: 0 | K41: 0 | L41: 0 | M41: 0 | N41: 0 | O41: 0 | P41: 0 | Q41: 0 | R41: 0 | S41: 0 | T41: 0 | U41: 0
A42: A1.a) How well do learners attain their learning goals | B42: 3 | C42: 18 | D42: 32 | E42: 14 | F42: 67 | G42: 0 | H42: 0 | I42: 0 | J42: 0 | K42: 0 | L42: 0 | M42: 0 | N42: 0 | O42: 0 | P42: 0 | Q42: 0 | R42: 0 | S42: 0 | T42: 0 | U42: 0
A43: A1.b) How well do learners progress? | B43: 2 | C43: 24 | D43: 36 | E43: 5 | F43: 67 | G43: 0 | H43: 0 | I43: 0 | J43: 0 | K43: 0 | L43: 0 | M43: 0 | N43: 0 | O43: 0 | P43: 0 | Q43: 0 | R43: 0 | S43: 0 | T43: 0 | U43: 0
A44: A2. How well do learners improve their economic and social well-being through learning and development? | B44: 7 | C44: 32 | D44: 23 | E44: 5 | F44: 67 | G44: 0 | H44: 0 | I44: 0 | J44: 0 | K44: 0 | L44: 0 | M44: 0 | N44: 0 | O44: 0 | P44: 0 | Q44: 0 | R44: 0 | S44: 0 | T44: 0 | U44: 0
A45: A3. How safe do learners feel? | B45: 17 | C45: 44 | D45: 6 | E45: 0 | F45: 67 | G45: 0 | H45: 0 | I45: 0 | J45: 0 | K45: 0 | L45: 0 | M45: 0 | N45: 0 | O45: 0 | P45: 0 | Q45: 0 | R45: 0 | S45: 0 | T45: 0 | U45: 0
A46: A4. Are learners able to make informed choices about their own health and well being?* | B46: 8 | C46: 36 | D46: 21 | E46: 0 | F46: 65 | G46: 0 | H46: 0 | I46: 0 | J46: 0 | K46: 0 | L46: 0 | M46: 0 | N46: 0 | O46: 0 | P46: 0 | Q46: 0 | R46: 0 | S46: 0 | T46: 0 | U46: 0
A47: A5. How well do learners make a positive contribution to the community?* | B47: 15 | C47: 34 | D47: 15 | E47: 1 | F47: 65 | G47: 0 | H47: 0 | I47: 0 | J47: 0 | K47: 0 | L47: 0 | M47: 0 | N47: 0 | O47: 0 | P47: 0 | Q47: 0 | R47: 0 | S47: 0 | T47: 0 | U47: 0
A48: B. Quality of provision | B48: 5 | C48: 26 | D48: 33 | E48: 3 | F48: 67 | G48: 0 | H48: 0 | I48: 0 | J48: 0 | K48: 0 | L48: 0 | M48: 0 | N48: 0 | O48: 0 | P48: 0 | Q48: 0 | R48: 0 | S48: 0 | T48: 0 | U48: 0
A49: B1. How effectively do teaching, training and assessment support learning and development? | B49: 0 | C49: 31 | D49: 36 | E49: 3 | F49: 70 | G49: 0 | H49: 0 | I49: 0 | J49: 0 | K49: 0 | L49: 0 | M49: 0 | N49: 0 | O49: 0 | P49: 0 | Q49: 0 | R49: 0 | S49: 0 | T49: 0 | U49: 0
A50: B2. How effectively does the provision meet the needs and interests of users? | B50: 8 | C50: 34 | D50: 25 | E50: 0 | F50: 67 | G50: 0 | H50: 0 | I50: 0 | J50: 0 | K50: 0 | L50: 0 | M50: 0 | N50: 0 | O50: 0 | P50: 0 | Q50: 0 | R50: 0 | S50: 0 | T50: 0 | U50: 0
A51: B3. How well do partnerships with schools, employers, community groups and others lead to benefits for learners? | B51: 25 | C51: 32 | D51: 10 | E51: 0 | F51: 67 | G51: 0 | H51: 0 | I51: 0 | J51: 0 | K51: 0 | L51: 0 | M51: 0 | N51: 0 | O51: 0 | P51: 0 | Q51: 0 | R51: 0 | S51: 0 | T51: 0 | U51: 0
A52: B4. How effective are the care, guidance and support learners receive in helping them to achieve? | B52: 7 | C52: 32 | D52: 24 | E52: 4 | F52: 67 | G52: 0 | H52: 0 | I52: 0 | J52: 0 | K52: 0 | L52: 0 | M52: 0 | N52: 0 | O52: 0 | P52: 0 | Q52: 0 | R52: 0 | S52: 0 | T52: 0 | U52: 0
A53: C. Leadership and management | B53: 4 | C53: 27 | D53: 26 | E53: 13 | F53: 70 | G53: 0 | H53: 0 | I53: 0 | J53: 0 | K53: 0 | L53: 0 | M53: 0 | N53: 0 | O53: 0 | P53: 0 | Q53: 0 | R53: 0 | S53: 0 | T53: 0 | U53: 0
A54: C1. How effectively do leaders and managers raise expectations and promote ambition throughout the organisation? | B54: 8 | C54: 32 | D54: 15 | E54: 12 | F54: 67 | G54: 0 | H54: 0 | I54: 0 | J54: 0 | K54: 0 | L54: 0 | M54: 0 | N54: 0 | O54: 0 | P54: 0 | Q54: 0 | R54: 0 | S54: 0 | T54: 0 | U54: 0
A55: C2. How effectively do governors and supervisory bodies provide leadership, direction and challenge?* | B55: 7 | C55: 31 | D55: 20 | E55: 9 | F55: 67 | G55: 0 | H55: 0 | I55: 0 | J55: 0 | K55: 0 | L55: 0 | M55: 0 | N55: 0 | O55: 0 | P55: 0 | Q55: 0 | R55: 0 | S55: 0 | T55: 0 | U55: 0
A56: C3. Safeguarding | B56: 15 | C56: 35 | D56: 14 | E56: 3 | F56: 67 | G56: 0 | H56: 0 | I56: 0 | J56: 0 | K56: 0 | L56: 0 | M56: 0 | N56: 0 | O56: 0 | P56: 0 | Q56: 0 | R56: 0 | S56: 0 | T56: 0 | U56: 0
A57: C4. Equality and diversity | B57: 1 | C57: 31 | D57: 33 | E57: 2 | F57: 67 | G57: 0 | H57: 0 | I57: 0 | J57: 0 | K57: 0 | L57: 0 | M57: 0 | N57: 0 | O57: 0 | P57: 0 | Q57: 0 | R57: 0 | S57: 0 | T57: 0 | U57: 0
A58: C5. How effectively does the provider engage with users to support and promote improvement? | B58: 12 | C58: 27 | D58: 28 | E58: 0 | F58: 67 | G58: 0 | H58: 0 | I58: 0 | J58: 0 | K58: 0 | L58: 0 | M58: 0 | N58: 0 | O58: 0 | P58: 0 | Q58: 0 | R58: 0 | S58: 0 | T58: 0 | U58: 0
A59: C6. How effectively does self-assessment improve the quality of the provision and outcomes for learners? | B59: 3 | C59: 20 | D59: 29 | E59: 15 | F59: 67 | G59: 0 | H59: 0 | I59: 0 | J59: 0 | K59: 0 | L59: 0 | M59: 0 | N59: 0 | O59: 0 | P59: 0 | Q59: 0 | R59: 0 | S59: 0 | T59: 0 | U59: 0
A60: C7. How efficiently and effectively does the provider use its available resources to secure value for money? | B60: 6 | C60: 25 | D60: 28 | E60: 8 | F60: 67 | G60: 0 | H60: 0 | I60: 0 | J60: 0 | K60: 0 | L60: 0 | M60: 0 | N60: 0 | O60: 0 | P60: 0 | Q60: 0 | R60: 0 | S60: 0 | T60: 0 | U60: 0
A62: Table2b GFEC/TC | B62: Quarter | G62: Month1 | L62: Month2 | Q62: Month3
B63: Outstanding | C63: Good | D63: Satisfactory | E63: Inadequate | F63: Total | G63: Outstanding | H63: Good | I63: Satisfactory | J63: Inadequate | K63: Total | L63: Outstanding | M63: Good | N63: Satisfactory | O63: Inadequate | P63: Total | Q63: Outstanding | R63: Good | S63: Satisfactory | T63: Inadequate | U63: Total
A64: Overall effectiveness | B64: 2 | C64: 14 | D64: 22 | E64: 7 | F64: 45 | G64: 0 | H64: 0 | I64: 0 | J64: 0 | K64: 0 | L64: 0 | M64: 0 | N64: 0 | O64: 0 | P64: 0 | Q64: 0 | R64: 0 | S64: 0 | T64: 0 | U64: 0
A65: Capacity to improve | B65: 2 | C65: 15 | D65: 20 | E65: 6 | F65: 43 | G65: 0 | H65: 0 | I65: 0 | J65: 0 | K65: 0 | L65: 0 | M65: 0 | N65: 0 | O65: 0 | P65: 0 | Q65: 0 | R65: 0 | S65: 0 | T65: 0 | U65: 0
A66: A. Outcomes for learners | B66: 2 | C66: 9 | D66: 28 | E66: 6 | F66: 45 | G66: 0 | H66: 0 | I66: 0 | J66: 0 | K66: 0 | L66: 0 | M66: 0 | N66: 0 | O66: 0 | P66: 0 | Q66: 0 | R66: 0 | S66: 0 | T66: 0 | U66: 0
A67: A1. How well do learners achieve and enjoy their learning | B67: 2 | C67: 9 | D67: 26 | E67: 6 | F67: 43 | G67: 0 | H67: 0 | I67: 0 | J67: 0 | K67: 0 | L67: 0 | M67: 0 | N67: 0 | O67: 0 | P67: 0 | Q67: 0 | R67: 0 | S67: 0 | T67: 0 | U67: 0
A68: A1.a) How well do learners attain their learning goals | B68: 1 | C68: 8 | D68: 25 | E68: 9 | F68: 43 | G68: 0 | H68: 0 | I68: 0 | J68: 0 | K68: 0 | L68: 0 | M68: 0 | N68: 0 | O68: 0 | P68: 0 | Q68: 0 | R68: 0 | S68: 0 | T68: 0 | U68: 0
A69: A1.b) How well do learners progress? | B69: 1 | C69: 14 | D69: 26 | E69: 2 | F69: 43 | G69: 0 | H69: 0 | I69: 0 | J69: 0 | K69: 0 | L69: 0 | M69: 0 | N69: 0 | O69: 0 | P69: 0 | Q69: 0 | R69: 0 | S69: 0 | T69: 0 | U69: 0
A70: A2. How well do learners improve their economic and social well-being through learning and development? | B70: 3 | C70: 24 | D70: 13 | E70: 3 | F70: 43 | G70: 0 | H70: 0 | I70: 0 | J70: 0 | K70: 0 | L70: 0 | M70: 0 | N70: 0 | O70: 0 | P70: 0 | Q70: 0 | R70: 0 | S70: 0 | T70: 0 | U70: 0
A71: A3. How safe do learners feel? | B71: 10 | C71: 29 | D71: 4 | E71: 0 | F71: 43 | G71: 0 | H71: 0 | I71: 0 | J71: 0 | K71: 0 | L71: 0 | M71: 0 | N71: 0 | O71: 0 | P71: 0 | Q71: 0 | R71: 0 | S71: 0 | T71: 0 | U71: 0
A72: A4. Are learners able to make informed choices about their own health and well being?* | B72: 3 | C72: 26 | D72: 12 | E72: 0 | F72: 41 | G72: 0 | H72: 0 | I72: 0 | J72: 0 | K72: 0 | L72: 0 | M72: 0 | N72: 0 | O72: 0 | P72: 0 | Q72: 0 | R72: 0 | S72: 0 | T72: 0 | U72: 0
A73: A5. How well do learners make a positive contribution to the community?* | B73: 7 | C73: 26 | D73: 8 | E73: 0 | F73: 41 | G73: 0 | H73: 0 | I73: 0 | J73: 0 | K73: 0 | L73: 0 | M73: 0 | N73: 0 | O73: 0 | P73: 0 | Q73: 0 | R73: 0 | S73: 0 | T73: 0 | U73: 0
A74: B. Quality of provision | B74: 2 | C74: 17 | D74: 22 | E74: 2 | F74: 43 | G74: 0 | H74: 0 | I74: 0 | J74: 0 | K74: 0 | L74: 0 | M74: 0 | N74: 0 | O74: 0 | P74: 0 | Q74: 0 | R74: 0 | S74: 0 | T74: 0 | U74: 0
A75: B1. How effectively do teaching, training and assessment support learning and development? | B75: 0 | C75: 18 | D75: 25 | E75: 2 | F75: 45 | G75: 0 | H75: 0 | I75: 0 | J75: 0 | K75: 0 | L75: 0 | M75: 0 | N75: 0 | O75: 0 | P75: 0 | Q75: 0 | R75: 0 | S75: 0 | T75: 0 | U75: 0
A76: B2. How effectively does the provision meet the needs and interests of users? | B76: 3 | C76: 26 | D76: 14 | E76: 0 | F76: 43 | G76: 0 | H76: 0 | I76: 0 | J76: 0 | K76: 0 | L76: 0 | M76: 0 | N76: 0 | O76: 0 | P76: 0 | Q76: 0 | R76: 0 | S76: 0 | T76: 0 | U76: 0
A77: B3. How well do partnerships with schools, employers, community groups and others lead to benefits for learners? | B77: 18 | C77: 22 | D77: 3 | E77: 0 | F77: 43 | G77: 0 | H77: 0 | I77: 0 | J77: 0 | K77: 0 | L77: 0 | M77: 0 | N77: 0 | O77: 0 | P77: 0 | Q77: 0 | R77: 0 | S77: 0 | T77: 0 | U77: 0
A78: B4. How effective are the care, guidance and support learners receive in helping them to achieve? | B78: 2 | C78: 21 | D78: 16 | E78: 4 | F78: 43 | G78: 0 | H78: 0 | I78: 0 | J78: 0 | K78: 0 | L78: 0 | M78: 0 | N78: 0 | O78: 0 | P78: 0 | Q78: 0 | R78: 0 | S78: 0 | T78: 0 | U78: 0
A79: C. Leadership and management | B79: 2 | C79: 18 | D79: 18 | E79: 7 | F79: 45 | G79: 0 | H79: 0 | I79: 0 | J79: 0 | K79: 0 | L79: 0 | M79: 0 | N79: 0 | O79: 0 | P79: 0 | Q79: 0 | R79: 0 | S79: 0 | T79: 0 | U79: 0
A80: C1. How effectively do leaders and managers raise expectations and promote ambition throughout the organisation? | B80: 5 | C80: 22 | D80: 9 | E80: 7 | F80: 43 | G80: 0 | H80: 0 | I80: 0 | J80: 0 | K80: 0 | L80: 0 | M80: 0 | N80: 0 | O80: 0 | P80: 0 | Q80: 0 | R80: 0 | S80: 0 | T80: 0 | U80: 0
A81: C2. How effectively do governors and supervisory bodies provide leadership, direction and challenge?* | B81: 4 | C81: 22 | D81: 12 | E81: 5 | F81: 43 | G81: 0 | H81: 0 | I81: 0 | J81: 0 | K81: 0 | L81: 0 | M81: 0 | N81: 0 | O81: 0 | P81: 0 | Q81: 0 | R81: 0 | S81: 0 | T81: 0 | U81: 0
A82: C3. Safeguarding | B82: 9 | C82: 25 | D82: 7 | E82: 2 | F82: 43 | G82: 0 | H82: 0 | I82: 0 | J82: 0 | K82: 0 | L82: 0 | M82: 0 | N82: 0 | O82: 0 | P82: 0 | Q82: 0 | R82: 0 | S82: 0 | T82: 0 | U82: 0
A83: C4. Equality and diversity | B83: 0 | C83: 22 | D83: 21 | E83: 0 | F83: 43 | G83: 0 | H83: 0 | I83: 0 | J83: 0 | K83: 0 | L83: 0 | M83: 0 | N83: 0 | O83: 0 | P83: 0 | Q83: 0 | R83: 0 | S83: 0 | T83: 0 | U83: 0
A84: C5. How effectively does the provider engage with users to support and promote improvement? | B84: 6 | C84: 21 | D84: 16 | E84: 0 | F84: 43 | G84: 0 | H84: 0 | I84: 0 | J84: 0 | K84: 0 | L84: 0 | M84: 0 | N84: 0 | O84: 0 | P84: 0 | Q84: 0 | R84: 0 | S84: 0 | T84: 0 | U84: 0
A85: C6. How effectively does self-assessment improve the quality of the provision and outcomes for learners? | B85: 1 | C85: 14 | D85: 19 | E85: 9 | F85: 43 | G85: 0 | H85: 0 | I85: 0 | J85: 0 | K85: 0 | L85: 0 | M85: 0 | N85: 0 | O85: 0 | P85: 0 | Q85: 0 | R85: 0 | S85: 0 | T85: 0 | U85: 0
A86: C7. How efficiently and effectively does the provider use its available resources to secure value for money? | B86: 3 | C86: 17 | D86: 19 | E86: 4 | F86: 43 | G86: 0 | H86: 0 | I86: 0 | J86: 0 | K86: 0 | L86: 0 | M86: 0 | N86: 0 | O86: 0 | P86: 0 | Q86: 0 | R86: 0 | S86: 0 | T86: 0 | U86: 0
A88: Table2c SFC | B88: Quarter | G88: Month1 | L88: Month2 | Q88: Month3
B89: Outstanding | C89: Good | D89: Satisfactory | E89: Inadequate | F89: Total | G89: Outstanding | H89: Good | I89: Satisfactory | J89: Inadequate | K89: Total | L89: Outstanding | M89: Good | N89: Satisfactory | O89: Inadequate | P89: Total | Q89: Outstanding | R89: Good | S89: Satisfactory | T89: Inadequate | U89: Total
A90: Overall effectiveness | B90: 0 | C90: 5 | D90: 4 | E90: 4 | F90: 13 | G90: 0 | H90: 0 | I90: 0 | J90: 0 | K90: 0 | L90: 0 | M90: 0 | N90: 0 | O90: 0 | P90: 0 | Q90: 0 | R90: 0 | S90: 0 | T90: 0 | U90: 0
A91: Capacity to improve | B91: 0 | C91: 6 | D91: 4 | E91: 2 | F91: 12 | G91: 0 | H91: 0 | I91: 0 | J91: 0 | K91: 0 | L91: 0 | M91: 0 | N91: 0 | O91: 0 | P91: 0 | Q91: 0 | R91: 0 | S91: 0 | T91: 0 | U91: 0
A92: A. Outcomes for learners | B92: 0 | C92: 5 | D92: 4 | E92: 4 | F92: 13 | G92: 0 | H92: 0 | I92: 0 | J92: 0 | K92: 0 | L92: 0 | M92: 0 | N92: 0 | O92: 0 | P92: 0 | Q92: 0 | R92: 0 | S92: 0 | T92: 0 | U92: 0
A93: A1. How well do learners achieve and enjoy their learning | B93: 0 | C93: 5 | D93: 4 | E93: 3 | F93: 12 | G93: 0 | H93: 0 | I93: 0 | J93: 0 | K93: 0 | L93: 0 | M93: 0 | N93: 0 | O93: 0 | P93: 0 | Q93: 0 | R93: 0 | S93: 0 | T93: 0 | U93: 0
A94: A1.a) How well do learners attain their learning goals | B94: 0 | C94: 5 | D94: 2 | E94: 5 | F94: 12 | G94: 0 | H94: 0 | I94: 0 | J94: 0 | K94: 0 | L94: 0 | M94: 0 | N94: 0 | O94: 0 | P94: 0 | Q94: 0 | R94: 0 | S94: 0 | T94: 0 | U94: 0
A95: A1.b) How well do learners progress? | B95: 0 | C95: 5 | D95: 4 | E95: 3 | F95: 12 | G95: 0 | H95: 0 | I95: 0 | J95: 0 | K95: 0 | L95: 0 | M95: 0 | N95: 0 | O95: 0 | P95: 0 | Q95: 0 | R95: 0 | S95: 0 | T95: 0 | U95: 0
A96: A2. How well do learners improve their economic and social well-being through learning and development? | B96: 2 | C96: 4 | D96: 4 | E96: 2 | F96: 12 | G96: 0 | H96: 0 | I96: 0 | J96: 0 | K96: 0 | L96: 0 | M96: 0 | N96: 0 | O96: 0 | P96: 0 | Q96: 0 | R96: 0 | S96: 0 | T96: 0 | U96: 0
A97: A3. How safe do learners feel? | B97: 5 | C97: 7 | D97: 0 | E97: 0 | F97: 12 | G97: 0 | H97: 0 | I97: 0 | J97: 0 | K97: 0 | L97: 0 | M97: 0 | N97: 0 | O97: 0 | P97: 0 | Q97: 0 | R97: 0 | S97: 0 | T97: 0 | U97: 0
A98: A4. Are learners able to make informed choices about their own health and well being?* | B98: 2 | C98: 7 | D98: 3 | E98: 0 | F98: 12 | G98: 0 | H98: 0 | I98: 0 | J98: 0 | K98: 0 | L98: 0 | M98: 0 | N98: 0 | O98: 0 | P98: 0 | Q98: 0 | R98: 0 | S98: 0 | T98: 0 | U98: 0
A99: A5. How well do learners make a positive contribution to the community?* | B99: 3 | C99: 5 | D99: 3 | E99: 1 | F99: 12 | G99: 0 | H99: 0 | I99: 0 | J99: 0 | K99: 0 | L99: 0 | M99: 0 | N99: 0 | O99: 0 | P99: 0 | Q99: 0 | R99: 0 | S99: 0 | T99: 0 | U99: 0
A100: B. Quality of provision | B100: 1 | C100: 5 | D100: 6 | E100: 0 | F100: 12 | G100: 0 | H100: 0 | I100: 0 | J100: 0 | K100: 0 | L100: 0 | M100: 0 | N100: 0 | O100: 0 | P100: 0 | Q100: 0 | R100: 0 | S100: 0 | T100: 0 | U100: 0
A101: B1. How effectively do teaching, training and assessment support learning and development? | B101: 0 | C101: 7 | D101: 6 | E101: 0 | F101: 13 | G101: 0 | H101: 0 | I101: 0 | J101: 0 | K101: 0 | L101: 0 | M101: 0 | N101: 0 | O101: 0 | P101: 0 | Q101: 0 | R101: 0 | S101: 0 | T101: 0 | U101: 0
A102: B2. How effectively does the provision meet the needs and interests of users? | B102: 3 | C102: 5 | D102: 4 | E102: 0 | F102: 12 | G102: 0 | H102: 0 | I102: 0 | J102: 0 | K102: 0 | L102: 0 | M102: 0 | N102: 0 | O102: 0 | P102: 0 | Q102: 0 | R102: 0 | S102: 0 | T102: 0 | U102: 0
A103: B3. How well do partnerships with schools, employers, community groups and others lead to benefits for learners? | B103: 4 | C103: 5 | D103: 3 | E103: 0 | F103: 12 | G103: 0 | H103: 0 | I103: 0 | J103: 0 | K103: 0 | L103: 0 | M103: 0 | N103: 0 | O103: 0 | P103: 0 | Q103: 0 | R103: 0 | S103: 0 | T103: 0 | U103: 0
A104: B4. How effective are the care, guidance and support learners receive in helping them to achieve? | B104: 2 | C104: 4 | D104: 6 | E104: 0 | F104: 12 | G104: 0 | H104: 0 | I104: 0 | J104: 0 | K104: 0 | L104: 0 | M104: 0 | N104: 0 | O104: 0 | P104: 0 | Q104: 0 | R104: 0 | S104: 0 | T104: 0 | U104: 0
A105: C. Leadership and management | B105: 0 | C105: 5 | D105: 4 | E105: 4 | F105: 13 | G105: 0 | H105: 0 | I105: 0 | J105: 0 | K105: 0 | L105: 0 | M105: 0 | N105: 0 | O105: 0 | P105: 0 | Q105: 0 | R105: 0 | S105: 0 | T105: 0 | U105: 0
A106: C1. How effectively do leaders and managers raise expectations and promote ambition throughout the organisation? | B106: 1 | C106: 6 | D106: 2 | E106: 3 | F106: 12 | G106: 0 | H106: 0 | I106: 0 | J106: 0 | K106: 0 | L106: 0 | M106: 0 | N106: 0 | O106: 0 | P106: 0 | Q106: 0 | R106: 0 | S106: 0 | T106: 0 | U106: 0
A107: C2. How effectively do governors and supervisory bodies provide leadership, direction and challenge?* | B107: 1 | C107: 5 | D107: 5 | E107: 1 | F107: 12 | G107: 0 | H107: 0 | I107: 0 | J107: 0 | K107: 0 | L107: 0 | M107: 0 | N107: 0 | O107: 0 | P107: 0 | Q107: 0 | R107: 0 | S107: 0 | T107: 0 | U107: 0
A108: C3. Safeguarding | B108: 4 | C108: 4 | D108: 4 | E108: 0 | F108: 12 | G108: 0 | H108: 0 | I108: 0 | J108: 0 | K108: 0 | L108: 0 | M108: 0 | N108: 0 | O108: 0 | P108: 0 | Q108: 0 | R108: 0 | S108: 0 | T108: 0 | U108: 0
A109: C4. Equality and diversity | B109: 1 | C109: 4 | D109: 7 | E109: 0 | F109: 12 | G109: 0 | H109: 0 | I109: 0 | J109: 0 | K109: 0 | L109: 0 | M109: 0 | N109: 0 | O109: 0 | P109: 0 | Q109: 0 | R109: 0 | S109: 0 | T109: 0 | U109: 0
A110: C5. How effectively does the provider engage with users to support and promote improvement? | B110: 3 | C110: 3 | D110: 6 | E110: 0 | F110: 12 | G110: 0 | H110: 0 | I110: 0 | J110: 0 | K110: 0 | L110: 0 | M110: 0 | N110: 0 | O110: 0 | P110: 0 | Q110: 0 | R110: 0 | S110: 0 | T110: 0 | U110: 0
A111: C6. How effectively does self-assessment improve the quality of the provision and outcomes for learners? | B111: 0 | C111: 3 | D111: 6 | E111: 3 | F111: 12 | G111: 0 | H111: 0 | I111: 0 | J111: 0 | K111: 0 | L111: 0 | M111: 0 | N111: 0 | O111: 0 | P111: 0 | Q111: 0 | R111: 0 | S111: 0 | T111: 0 | U111: 0
A112: C7. How efficiently and effectively does the provider use its available resources to secure value for money? | B112: 1 | C112: 4 | D112: 5 | E112: 2 | F112: 12 | G112: 0 | H112: 0 | I112: 0 | J112: 0 | K112: 0 | L112: 0 | M112: 0 | N112: 0 | O112: 0 | P112: 0 | Q112: 0 | R112: 0 | S112: 0 | T112: 0 | U112: 0
A114: Table2d ISC | B114: Quarter | G114: Month1 | L114: Month2 | Q114: Month3
B115: Outstanding | C115: Good | D115: Satisfactory | E115: Inadequate | F115: Total | G115: Outstanding | H115: Good | I115: Satisfactory | J115: Inadequate | K115: Total | L115: Outstanding | M115: Good | N115: Satisfactory | O115: Inadequate | P115: Total | Q115: Outstanding | R115: Good | S115: Satisfactory | T115: Inadequate | U115: Total
A116: Overall effectiveness | B116: 2 | C116: 4 | D116: 4 | E116: 2 | F116: 12 | G116: 0 | H116: 0 | I116: 0 | J116: 0 | K116: 0 | L116: 0 | M116: 0 | N116: 0 | O116: 0 | P116: 0 | Q116: 0 | R116: 0 | S116: 0 | T116: 0 | U116: 0
A117: Capacity to improve | B117: 2 | C117: 4 | D117: 4 | E117: 2 | F117: 12 | G117: 0 | H117: 0 | I117: 0 | J117: 0 | K117: 0 | L117: 0 | M117: 0 | N117: 0 | O117: 0 | P117: 0 | Q117: 0 | R117: 0 | S117: 0 | T117: 0 | U117: 0
A118: A. Outcomes for learners | B118: 2 | C118: 4 | D118: 6 | E118: 0 | F118: 12 | G118: 0 | H118: 0 | I118: 0 | J118: 0 | K118: 0 | L118: 0 | M118: 0 | N118: 0 | O118: 0 | P118: 0 | Q118: 0 | R118: 0 | S118: 0 | T118: 0 | U118: 0
A119: A1. How well do learners achieve and enjoy their learning | B119: 2 | C119: 4 | D119: 6 | E119: 0 | F119: 12 | G119: 0 | H119: 0 | I119: 0 | J119: 0 | K119: 0 | L119: 0 | M119: 0 | N119: 0 | O119: 0 | P119: 0 | Q119: 0 | R119: 0 | S119: 0 | T119: 0 | U119: 0
A120: A1.a) How well do learners attain their learning goals | B120: 2 | C120: 5 | D120: 5 | E120: 0 | F120: 12 | G120: 0 | H120: 0 | I120: 0 | J120: 0 | K120: 0 | L120: 0 | M120: 0 | N120: 0 | O120: 0 | P120: 0 | Q120: 0 | R120: 0 | S120: 0 | T120: 0 | U120: 0
A121: A1.b) How well do learners progress? | B121: 1 | C121: 5 | D121: 6 | E121: 0 | F121: 12 | G121: 0 | H121: 0 | I121: 0 | J121: 0 | K121: 0 | L121: 0 | M121: 0 | N121: 0 | O121: 0 | P121: 0 | Q121: 0 | R121: 0 | S121: 0 | T121: 0 | U121: 0
A122: A2. How well do learners improve their economic and social well-being through learning and development? | B122: 2 | C122: 4 | D122: 6 | E122: 0 | F122: 12 | G122: 0 | H122: 0 | I122: 0 | J122: 0 | K122: 0 | L122: 0 | M122: 0 | N122: 0 | O122: 0 | P122: 0 | Q122: 0 | R122: 0 | S122: 0 | T122: 0 | U122: 0
A123: A3. How safe do learners feel? | B123: 2 | C123: 8 | D123: 2 | E123: 0 | F123: 12 | G123: 0 | H123: 0 | I123: 0 | J123: 0 | K123: 0 | L123: 0 | M123: 0 | N123: 0 | O123: 0 | P123: 0 | Q123: 0 | R123: 0 | S123: 0 | T123: 0 | U123: 0
A124: A4. Are learners able to make informed choices about their own health and well being?* | B124: 3 | C124: 3 | D124: 6 | E124: 0 | F124: 12 | G124: 0 | H124: 0 | I124: 0 | J124: 0 | K124: 0 | L124: 0 | M124: 0 | N124: 0 | O124: 0 | P124: 0 | Q124: 0 | R124: 0 | S124: 0 | T124: 0 | U124: 0
A125: A5. How well do learners make a positive contribution to the community?* | B125: 5 | C125: 3 | D125: 4 | E125: 0 | F125: 12 | G125: 0 | H125: 0 | I125: 0 | J125: 0 | K125: 0 | L125: 0 | M125: 0 | N125: 0 | O125: 0 | P125: 0 | Q125: 0 | R125: 0 | S125: 0 | T125: 0 | U125: 0
A126: B. Quality of provision | B126: 2 | C126: 4 | D126: 5 | E126: 1 | F126: 12 | G126: 0 | H126: 0 | I126: 0 | J126: 0 | K126: 0 | L126: 0 | M126: 0 | N126: 0 | O126: 0 | P126: 0 | Q126: 0 | R126: 0 | S126: 0 | T126: 0 | U126: 0
A127: B1. How effectively do teaching, training and assessment support learning and development? | B127: 0 | C127: 6 | D127: 5 | E127: 1 | F127: 12 | G127: 0 | H127: 0 | I127: 0 | J127: 0 | K127: 0 | L127: 0 | M127: 0 | N127: 0 | O127: 0 | P127: 0 | Q127: 0 | R127: 0 | S127: 0 | T127: 0 | U127: 0
A128: B2. How effectively does the provision meet the needs and interests of users? | B128: 2 | C128: 3 | D128: 7 | E128: 0 | F128: 12 | G128: 0 | H128: 0 | I128: 0 | J128: 0 | K128: 0 | L128: 0 | M128: 0 | N128: 0 | O128: 0 | P128: 0 | Q128: 0 | R128: 0 | S128: 0 | T128: 0 | U128: 0
A129: B3. How well do partnerships with schools, employers, community groups and others lead to benefits for learners? | B129: 3 | C129: 5 | D129: 4 | E129: 0 | F129: 12 | G129: 0 | H129: 0 | I129: 0 | J129: 0 | K129: 0 | L129: 0 | M129: 0 | N129: 0 | O129: 0 | P129: 0 | Q129: 0 | R129: 0 | S129: 0 | T129: 0 | U129: 0
A130: B4. How effective are the care, guidance and support learners receive in helping them to achieve? | B130: 3 | C130: 7 | D130: 2 | E130: 0 | F130: 12 | G130: 0 | H130: 0 | I130: 0 | J130: 0 | K130: 0 | L130: 0 | M130: 0 | N130: 0 | O130: 0 | P130: 0 | Q130: 0 | R130: 0 | S130: 0 | T130: 0 | U130: 0
A131: C. Leadership and management | B131: 2 | C131: 4 | D131: 4 | E131: 2 | F131: 12 | G131: 0 | H131: 0 | I131: 0 | J131: 0 | K131: 0 | L131: 0 | M131: 0 | N131: 0 | O131: 0 | P131: 0 | Q131: 0 | R131: 0 | S131: 0 | T131: 0 | U131: 0
A132: C1. How effectively do leaders and managers raise expectations and promote ambition throughout the organisation? | B132: 2 | C132: 4 | D132: 4 | E132: 2 | F132: 12 | G132: 0 | H132: 0 | I132: 0 | J132: 0 | K132: 0 | L132: 0 | M132: 0 | N132: 0 | O132: 0 | P132: 0 | Q132: 0 | R132: 0 | S132: 0 | T132: 0 | U132: 0
A133: C2. How effectively do governors and supervisory bodies provide leadership, direction and challenge?* | B133: 2 | C133: 4 | D133: 3 | E133: 3 | F133: 12 | G133: 0 | H133: 0 | I133: 0 | J133: 0 | K133: 0 | L133: 0 | M133: 0 | N133: 0 | O133: 0 | P133: 0 | Q133: 0 | R133: 0 | S133: 0 | T133: 0 | U133: 0
A134: C3. Safeguarding | B134: 2 | C134: 6 | D134: 3 | E134: 1 | F134: 12 | G134: 0 | H134: 0 | I134: 0 | J134: 0 | K134: 0 | L134: 0 | M134: 0 | N134: 0 | O134: 0 | P134: 0 | Q134: 0 | R134: 0 | S134: 0 | T134: 0 | U134: 0
A135: C4. Equality and diversity | B135: 0 | C135: 5 | D135: 5 | E135: 2 | F135: 12 | G135: 0 | H135: 0 | I135: 0 | J135: 0 | K135: 0 | L135: 0 | M135: 0 | N135: 0 | O135: 0 | P135: 0 | Q135: 0 | R135: 0 | S135: 0 | T135: 0 | U135: 0
A136: C5. How effectively does the provider engage with users to support and promote improvement? | B136: 3 | C136: 3 | D136: 6 | E136: 0 | F136: 12 | G136: 0 | H136: 0 | I136: 0 | J136: 0 | K136: 0 | L136: 0 | M136: 0 | N136: 0 | O136: 0 | P136: 0 | Q136: 0 | R136: 0 | S136: 0 | T136: 0 | U136: 0
A137: C6. How effectively does self-assessment improve the quality of the provision and outcomes for learners? | B137: 2 | C137: 3 | D137: 4 | E137: 3 | F137: 12 | G137: 0 | H137: 0 | I137: 0 | J137: 0 | K137: 0 | L137: 0 | M137: 0 | N137: 0 | O137: 0 | P137: 0 | Q137: 0 | R137: 0 | S137: 0 | T137: 0 | U137: 0
A138: C7. How efficiently and effectively does the provider use its available resources to secure value for money? | B138: 2 | C138: 4 | D138: 4 | E138: 2 | F138: 12 | G138: 0 | H138: 0 | I138: 0 | J138: 0 | K138: 0 | L138: 0 | M138: 0 | N138: 0 | O138: 0 | P138: 0 | Q138: 0 | R138: 0 | S138: 0 | T138: 0 | U138: 0
A140: Table2e HEI | B140: Quarter | G140: Month1 | L140: Month2 | Q140: Month3
B141: Outstanding | C141: Good | D141: Satisfactory | E141: Inadequate | F141: Total | G141: Outstanding | H141: Good | I141: Satisfactory | J141: Inadequate | K141: Total | L141: Outstanding | M141: Good | N141: Satisfactory | O141: Inadequate | P141: Total | Q141: Outstanding | R141: Good | S141: Satisfactory | T141: Inadequate | U141: Total
A142: Overall effectiveness | B142: 3 | C142: 3 | D142: 1 | E142: 0 | F142: 7 | G142: 0 | H142: 0 | I142: 0 | J142: 0 | K142: 0 | L142: 0 | M142: 0 | N142: 0 | O142: 0 | P142: 0 | Q142: 0 | R142: 0 | S142: 0 | T142: 0 | U142: 0
A143: Capacity to improve | B143: 2 | C143: 4 | D143: 1 | E143: 0 | F143: 7 | G143: 0 | H143: 0 | I143: 0 | J143: 0 | K143: 0 | L143: 0 | M143: 0 | N143: 0 | O143: 0 | P143: 0 | Q143: 0 | R143: 0 | S143: 0 | T143: 0 | U143: 0
A144: A. Outcomes for learners | B144: 3 | C144: 3 | D144: 1 | E144: 0 | F144: 7 | G144: 0 | H144: 0 | I144: 0 | J144: 0 | K144: 0 | L144: 0 | M144: 0 | N144: 0 | O144: 0 | P144: 0 | Q144: 0 | R144: 0 | S144: 0 | T144: 0 | U144: 0
A145: A1. How well do learners achieve and enjoy their learning | B145: 3 | C145: 3 | D145: 1 | E145: 0 | F145: 7 | G145: 0 | H145: 0 | I145: 0 | J145: 0 | K145: 0 | L145: 0 | M145: 0 | N145: 0 | O145: 0 | P145: 0 | Q145: 0 | R145: 0 | S145: 0 | T145: 0 | U145: 0
A146: A1.a) How well do learners attain their learning goals | B146: 2 | C146: 4 | D146: 1 | E146: 0 | F146: 7 | G146: 0 | H146: 0 | I146: 0 | J146: 0 | K146: 0 | L146: 0 | M146: 0 | N146: 0 | O146: 0 | P146: 0 | Q146: 0 | R146: 0 | S146: 0 | T146: 0 | U146: 0
A147: A1.b) How well do learners progress? | B147: 3 | C147: 3 | D147: 1 | E147: 0 | F147: 7 | G147: 0 | H147: 0 | I147: 0 | J147: 0 | K147: 0 | L147: 0 | M147: 0 | N147: 0 | O147: 0 | P147: 0 | Q147: 0 | R147: 0 | S147: 0 | T147: 0 | U147: 0
A148: A2. How well do learners improve their economic and social well-being through learning and development? | B148: 5 | C148: 2 | D148: 0 | E148: 0 | F148: 7 | G148: 0 | H148: 0 | I148: 0 | J148: 0 | K148: 0 | L148: 0 | M148: 0 | N148: 0 | O148: 0 | P148: 0 | Q148: 0 | R148: 0 | S148: 0 | T148: 0 | U148: 0
A149: A3. How safe do learners feel? | B149: 5 | C149: 2 | D149: 0 | E149: 0 | F149: 7 | G149: 0 | H149: 0 | I149: 0 | J149: 0 | K149: 0 | L149: 0 | M149: 0 | N149: 0 | O149: 0 | P149: 0 | Q149: 0 | R149: 0 | S149: 0 | T149: 0 | U149: 0
A150: A4. Are learners able to make informed choices about their own health and well being?* | B150: 0 | C150: 1 | D150: 1 | E150: 0 | F150: 2 | G150: 0 | H150: 0 | I150: 0 | J150: 0 | K150: 0 | L150: 0 | M150: 0 | N150: 0 | O150: 0 | P150: 0 | Q150: 0 | R150: 0 | S150: 0 | T150: 0 | U150: 0
A151: A5. How well do learners make a positive contribution to the community?* | B151: 1 | C151: 1 | D151: 0 | E151: 0 | F151: 2 | G151: 0 | H151: 0 | I151: 0 | J151: 0 | K151: 0 | L151: 0 | M151: 0 | N151: 0 | O151: 0 | P151: 0 | Q151: 0 | R151: 0 | S151: 0 | T151: 0 | U151: 0
A152: B. Quality of provision | B152: 3 | C152: 3 | D152: 1 | E152: 0 | F152: 7 | G152: 0 | H152: 0 | I152: 0 | J152: 0 | K152: 0 | L152: 0 | M152: 0 | N152: 0 | O152: 0 | P152: 0 | Q152: 0 | R152: 0 | S152: 0 | T152: 0 | U152: 0
A153: B1. How effectively do teaching, training and assessment support learning and development? | B153: 2 | C153: 4 | D153: 1 | E153: 0 | F153: 7 | G153: 0 | H153: 0 | I153: 0 | J153: 0 | K153: 0 | L153: 0 | M153: 0 | N153: 0 | O153: 0 | P153: 0 | Q153: 0 | R153: 0 | S153: 0 | T153: 0 | U153: 0
A154: B2. How effectively does the provision meet the needs and interests of users? | B154: 4 | C154: 2 | D154: 1 | E154: 0 | F154: 7 | G154: 0 | H154: 0 | I154: 0 | J154: 0 | K154: 0 | L154: 0 | M154: 0 | N154: 0 | O154: 0 | P154: 0 | Q154: 0 | R154: 0 | S154: 0 | T154: 0 | U154: 0
A155: B3. How well do partnerships with schools, employers, community groups and others lead to benefits for learners? | B155: 5 | C155: 2 | D155: 0 | E155: 0 | F155: 7 | G155: 0 | H155: 0 | I155: 0 | J155: 0 | K155: 0 | L155: 0 | M155: 0 | N155: 0 | O155: 0 | P155: 0 | Q155: 0 | R155: 0 | S155: 0 | T155: 0 | U155: 0
A156: B4. How effective are the care, guidance and support learners receive in helping them to achieve? | B156: 2 | C156: 4 | D156: 1 | E156: 0 | F156: 7 | G156: 0 | H156: 0 | I156: 0 | J156: 0 | K156: 0 | L156: 0 | M156: 0 | N156: 0 | O156: 0 | P156: 0 | Q156: 0 | R156: 0 | S156: 0 | T156: 0 | U156: 0
A157: C. Leadership and management | B157: 1 | C157: 5 | D157: 1 | E157: 0 | F157: 7 | G157: 0 | H157: 0 | I157: 0 | J157: 0 | K157: 0 | L157: 0 | M157: 0 | N157: 0 | O157: 0 | P157: 0 | Q157: 0 | R157: 0 | S157: 0 | T157: 0 | U157: 0
A158: C1. How effectively do leaders and managers raise expectations and promote ambition throughout the organisation? | B158: 3 | C158: 4 | D158: 0 | E158: 0 | F158: 7 | G158: 0 | H158: 0 | I158: 0 | J158: 0 | K158: 0 | L158: 0 | M158: 0 | N158: 0 | O158: 0 | P158: 0 | Q158: 0 | R158: 0 | S158: 0 | T158: 0 | U158: 0
A159: C2. How effectively do governors and supervisory bodies provide leadership, direction and challenge?* | B159: 1 | C159: 3 | D159: 2 | E159: 0 | F159: 6 | G159: 0 | H159: 0 | I159: 0 | J159: 0 | K159: 0 | L159: 0 | M159: 0 | N159: 0 | O159: 0 | P159: 0 | Q159: 0 | R159: 0 | S159: 0 | T159: 0 | U159: 0
A160: C3. Safeguarding | B160: 1 | C160: 3 | D160: 3 | E160: 0 | F160: 7 | G160: 0 | H160: 0 | I160: 0 | J160: 0 | K160: 0 | L160: 0 | M160: 0 | N160: 0 | O160: 0 | P160: 0 | Q160: 0 | R160: 0 | S160: 0 | T160: 0 | U160: 0
A161: C4. Equality and diversity | B161: 3 | C161: 2 | D161: 2 | E161: 0 | F161: 7 | G161: 0 | H161: 0 | I161: 0 | J161: 0 | K161: 0 | L161: 0 | M161: 0 | N161: 0 | O161: 0 | P161: 0 | Q161: 0 | R161: 0 | S161: 0 | T161: 0 | U161: 0
A162: C5. How effectively does the provider engage with users to support and promote improvement? | B162: 3 | C162: 2 | D162: 2 | E162: 0 | F162: 7 | G162: 0 | H162: 0 | I162: 0 | J162: 0 | K162: 0 | L162: 0 | M162: 0 | N162: 0 | O162: 0 | P162: 0 | Q162: 0 | R162: 0 | S162: 0 | T162: 0 | U162: 0
A163: C6. How effectively does self-assessment improve the quality of the provision and outcomes for learners? | B163: 0 | C163: 5 | D163: 2 | E163: 0 | F163: 7 | G163: 0 | H163: 0 | I163: 0 | J163: 0 | K163: 0 | L163: 0 | M163: 0 | N163: 0 | O163: 0 | P163: 0 | Q163: 0 | R163: 0 | S163: 0 | T163: 0 | U163: 0
A164: C7. How efficiently and effectively does the provider use its available resources to secure value for money? | B164: 3 | C164: 4 | D164: 0 | E164: 0 | F164: 7 | G164: 0 | H164: 0 | I164: 0 | J164: 0 | K164: 0 | L164: 0 | M164: 0 | N164: 0 | O164: 0 | P164: 0 | Q164: 0 | R164: 0 | S164: 0 | T164: 0 | U164: 0
A166: Table2f DaDa | B166: Quarter | G166: Month1 | L166: Month2 | Q166: Month3
B167: Outstanding | C167: Good | D167: Satisfactory | E167: Inadequate | F167: Total | G167: Outstanding | H167: Good | I167: Satisfactory | J167: Inadequate | K167: Total | L167: Outstanding | M167: Good | N167: Satisfactory | O167: Inadequate | P167: Total | Q167: Outstanding | R167: Good | S167: Satisfactory | T167: Inadequate | U167: Total
A168: Overall effectiveness | B168: 5 | C168: 9 | D168: 2 | E168: 0 | F168: 16 | G168: 0 | H168: 0 | I168: 0 | J168: 0 | K168: 0 | L168: 0 | M168: 0 | N168: 0 | O168: 0 | P168: 0 | Q168: 0 | R168: 0 | S168: 0 | T168: 0 | U168: 0
A169: Capacity to improve | B169: 6 | C169: 8 | D169: 2 | E169: 0 | F169: 16 | G169: 0 | H169: 0 | I169: 0 | J169: 0 | K169: 0 | L169: 0 | M169: 0 | N169: 0 | O169: 0 | P169: 0 | Q169: 0 | R169: 0 | S169: 0 | T169: 0 | U169: 0
A170: A. Outcomes for learners | B170: 6 | C170: 9 | D170: 1 | E170: 0 | F170: 16 | G170: 0 | H170: 0 | I170: 0 | J170: 0 | K170: 0 | L170: 0 | M170: 0 | N170: 0 | O170: 0 | P170: 0 | Q170: 0 | R170: 0 | S170: 0 | T170: 0 | U170: 0
A171: A1. How well do learners achieve and enjoy their learning | B171: 6 | C171: 9 | D171: 1 | E171: 0 | F171: 16 | G171: 0 | H171: 0 | I171: 0 | J171: 0 | K171: 0 | L171: 0 | M171: 0 | N171: 0 | O171: 0 | P171: 0 | Q171: 0 | R171: 0 | S171: 0 | T171: 0 | U171: 0
A172: A1.a) How well do learners attain their learning goals | B172: 6 | C172: 9 | D172: 1 | E172: 0 | F172: 16 | G172: 0 | H172: 0 | I172: 0 | J172: 0 | K172: 0 | L172: 0 | M172: 0 | N172: 0 | O172: 0 | P172: 0 | Q172: 0 | R172: 0 | S172: 0 | T172: 0 | U172: 0
A173: A1.b) How well do learners progress? | B173: 6 | C173: 9 | D173: 1 | E173: 0 | F173: 16 | G173: 0 | H173: 0 | I173: 0 | J173: 0 | K173: 0 | L173: 0 | M173: 0 | N173: 0 | O173: 0 | P173: 0 | Q173: 0 | R173: 0 | S173: 0 | T173: 0 | U173: 0
A174: A2. How well do learners improve their economic and social well-being through learning and development? | B174: 6 | C174: 9 | D174: 1 | E174: 0 | F174: 16 | G174: 0 | H174: 0 | I174: 0 | J174: 0 | K174: 0 | L174: 0 | M174: 0 | N174: 0 | O174: 0 | P174: 0 | Q174: 0 | R174: 0 | S174: 0 | T174: 0 | U174: 0
A175: A3. How safe do learners feel? | B175: 10 | C175: 5 | D175: 1 | E175: 0 | F175: 16 | G175: 0 | H175: 0 | I175: 0 | J175: 0 | K175: 0 | L175: 0 | M175: 0 | N175: 0 | O175: 0 | P175: 0 | Q175: 0 | R175: 0 | S175: 0 | T175: 0 | U175: 0
A176: A4. Are learners able to make informed choices about their own health and well being?* | B176: 6 | C176: 10 | D176: 0 | E176: 0 | F176: 16 | G176: 0 | H176: 0 | I176: 0 | J176: 0 | K176: 0 | L176: 0 | M176: 0 | N176: 0 | O176: 0 | P176: 0 | Q176: 0 | R176: 0 | S176: 0 | T176: 0 | U176: 0
A177: A5. How well do learners make a positive contribution to the community?* | B177: 2 | C177: 2 | D177: 0 | E177: 0 | F177: 4 | G177: 0 | H177: 0 | I177: 0 | J177: 0 | K177: 0 | L177: 0 | M177: 0 | N177: 0 | O177: 0 | P177: 0 | Q177: 0 | R177: 0 | S177: 0 | T177: 0 | U177: 0
A178: B. Quality of provision | B178: 6 | C178: 9 | D178: 1 | E178: 0 | F178: 16 | G178: 0 | H178: 0 | I178: 0 | J178: 0 | K178: 0 | L178: 0 | M178: 0 | N178: 0 | O178: 0 | P178: 0 | Q178: 0 | R178: 0 | S178: 0 | T178: 0 | U178: 0
A179: B1. How effectively do teaching, training and assessment support learning and development? | B179: 1 | C179: 14 | D179: 1 | E179: 0 | F179: 16 | G179: 0 | H179: 0 | I179: 0 | J179: 0 | K179: 0 | L179: 0 | M179: 0 | N179: 0 | O179: 0 | P179: 0 | Q179: 0 | R179: 0 | S179: 0 | T179: 0 | U179: 0
A180: B2. How effectively does the provision meet the needs and interests of users? | B180: 7 | C180: 8 | D180: 1 | E180: 0 | F180: 16 | G180: 0 | H180: 0 | I180: 0 | J180: 0 | K180: 0 | L180: 0 | M180: 0 | N180: 0 | O180: 0 | P180: 0 | Q180: 0 | R180: 0 | S180: 0 | T180: 0 | U180: 0
A181: B3. How well do partnerships with schools, employers, community groups and others lead to benefits for learners? | B181: 13 | C181: 3 | D181: 0 | E181: 0 | F181: 16 | G181: 0 | H181: 0 | I181: 0 | J181: 0 | K181: 0 | L181: 0 | M181: 0 | N181: 0 | O181: 0 | P181: 0 | Q181: 0 | R181: 0 | S181: 0 | T181: 0 | U181: 0
A182: B4. How effective are the care, guidance and support learners receive in helping them to achieve? | B182: 12 | C182: 3 | D182: 1 | E182: 0 | F182: 16 | G182: 0 | H182: 0 | I182: 0 | J182: 0 | K182: 0 | L182: 0 | M182: 0 | N182: 0 | O182: 0 | P182: 0 | Q182: 0 | R182: 0 | S182: 0 | T182: 0 | U182: 0
A183: C. Leadership and management | B183: 5 | C183: 9 | D183: 2 | E183: 0 | F183: 16 | G183: 0 | H183: 0 | I183: 0 | J183: 0 | K183: 0 | L183: 0 | M183: 0 | N183: 0 | O183: 0 | P183: 0 | Q183: 0 | R183: 0 | S183: 0 | T183: 0 | U183: 0
A184: C1. How effectively do leaders and managers raise expectations and promote ambition throughout the organisation? | B184: 8 | C184: 6 | D184: 2 | E184: 0 | F184: 16 | G184: 0 | H184: 0 | I184: 0 | J184: 0 | K184: 0 | L184: 0 | M184: 0 | N184: 0 | O184: 0 | P184: 0 | Q184: 0 | R184: 0 | S184: 0 | T184: 0 | U184: 0
A185: C2. How effectively do governors and supervisory bodies provide leadership, direction and challenge?* | B185: 4 | C185: 4 | D185: 0 | E185: 0 | F185: 8 | G185: 0 | H185: 0 | I185: 0 | J185: 0 | K185: 0 | L185: 0 | M185: 0 | N185: 0 | O185: 0 | P185: 0 | Q185: 0 | R185: 0 | S185: 0 | T185: 0 | U185: 0
A186: C3. Safeguarding | B186: 5 | C186: 10 | D186: 0 | E186: 1 | F186: 16 | G186: 0 | H186: 0 | I186: 0 | J186: 0 | K186: 0 | L186: 0 | M186: 0 | N186: 0 | O186: 0 | P186: 0 | Q186: 0 | R186: 0 | S186: 0 | T186: 0 | U186: 0
A187: C4. Equality and diversity | B187: 4 | C187: 12 | D187: 0 | E187: 0 | F187: 16 | G187: 0 | H187: 0 | I187: 0 | J187: 0 | K187: 0 | L187: 0 | M187: 0 | N187: 0 | O187: 0 | P187: 0 | Q187: 0 | R187: 0 | S187: 0 | T187: 0 | U187: 0
A188: C5. How effectively does the provider engage with users to support and promote improvement? | B188: 5 | C188: 10 | D188: 1 | E188: 0 | F188: 16 | G188: 0 | H188: 0 | I188: 0 | J188: 0 | K188: 0 | L188: 0 | M188: 0 | N188: 0 | O188: 0 | P188: 0 | Q188: 0 | R188: 0 | S188: 0 | T188: 0 | U188: 0
A189: C6. How effectively does self-assessment improve the quality of the provision and outcomes for learners? | B189: 1 | C189: 13 | D189: 2 | E189: 0 | F189: 16 | G189: 0 | H189: 0 | I189: 0 | J189: 0 | K189: 0 | L189: 0 | M189: 0 | N189: 0 | O189: 0 | P189: 0 | Q189: 0 | R189: 0 | S189: 0 | T189: 0 | U189: 0
A190: C7. How efficiently and effectively does the provider use its available resources to secure value for money? | B190: 6 | C190: 9 | D190: 1 | E190: 0 | F190: 16 | G190: 0 | H190: 0 | I190: 0 | J190: 0 | K190: 0 | L190: 0 | M190: 0 | N190: 0 | O190: 0 | P190: 0 | Q190: 0 | R190: 0 | S190: 0 | T190: 0 | U190: 0
A192: Table2g ILP | B192: Quarter | G192: Month1 | L192: Month2 | Q192: Month3
B193: Outstanding | C193: Good | D193: Satisfactory | E193: Inadequate | F193: Total | G193: Outstanding | H193: Good | I193: Satisfactory | J193: Inadequate | K193: Total | L193: Outstanding | M193: Good | N193: Satisfactory | O193: Inadequate | P193: Total | Q193: Outstanding | R193: Good | S193: Satisfactory | T193: Inadequate | U193: Total
A194: Overall effectiveness | B194: 9 | C194: 62 | D194: 44 | E194: 13 | F194: 128 | G194: 0 | H194: 0 | I194: 0 | J194: 0 | K194: 0 | L194: 0 | M194: 0 | N194: 0 | O194: 0 | P194: 0 | Q194: 0 | R194: 0 | S194: 0 | T194: 0 | U194: 0
A195: Capacity to improve | B195: 7 | C195: 60 | D195: 48 | E195: 12 | F195: 127 | G195: 0 | H195: 0 | I195: 0 | J195: 0 | K195: 0 | L195: 0 | M195: 0 | N195: 0 | O195: 0 | P195: 0 | Q195: 0 | R195: 0 | S195: 0 | T195: 0 | U195: 0
A196: A. Outcomes for learners | B196: 15 | C196: 63 | D196: 41 | E196: 9 | F196: 128 | G196: 0 | H196: 0 | I196: 0 | J196: 0 | K196: 0 | L196: 0 | M196: 0 | N196: 0 | O196: 0 | P196: 0 | Q196: 0 | R196: 0 | S196: 0 | T196: 0 | U196: 0
A197: A1. How well do learners achieve and enjoy their learning | B197: 17 | C197: 60 | D197: 41 | E197: 9 | F197: 127 | G197: 0 | H197: 0 | I197: 0 | J197: 0 | K197: 0 | L197: 0 | M197: 0 | N197: 0 | O197: 0 | P197: 0 | Q197: 0 | R197: 0 | S197: 0 | T197: 0 | U197: 0
A198: A1.a) How well do learners attain their learning goals | B198: 18 | C198: 52 | D198: 48 | E198: 9 | F198: 127 | G198: 0 | H198: 0 | I198: 0 | J198: 0 | K198: 0 | L198: 0 | M198: 0 | N198: 0 | O198: 0 | P198: 0 | Q198: 0 | R198: 0 | S198: 0 | T198: 0 | U198: 0
A199: A1.b) How well do learners progress? | B199: 17 | C199: 61 | D199: 41 | E199: 8 | F199: 127 | G199: 0 | H199: 0 | I199: 0 | J199: 0 | K199: 0 | L199: 0 | M199: 0 | N199: 0 | O199: 0 | P199: 0 | Q199: 0 | R199: 0 | S199: 0 | T199: 0 | U199: 0
A200: A2. How well do learners improve their economic and social well-being through learning and development? | B200: 20 | C200: 82 | D200: 23 | E200: 2 | F200: 127 | G200: 0 | H200: 0 | I200: 0 | J200: 0 | K200: 0 | L200: 0 | M200: 0 | N200: 0 | O200: 0 | P200: 0 | Q200: 0 | R200: 0 | S200: 0 | T200: 0 | U200: 0
A201: A3. How safe do learners feel? | B201: 17 | C201: 79 | D201: 31 | E201: 0 | F201: 127 | G201: 0 | H201: 0 | I201: 0 | J201: 0 | K201: 0 | L201: 0 | M201: 0 | N201: 0 | O201: 0 | P201: 0 | Q201: 0 | R201: 0 | S201: 0 | T201: 0 | U201: 0
A202: A4. Are learners able to make informed choices about their own health and well being?* | B202: 4 | C202: 24 | D202: 13 | E202: 0 | F202: 41 | G202: 0 | H202: 0 | I202: 0 | J202: 0 | K202: 0 | L202: 0 | M202: 0 | N202: 0 | O202: 0 | P202: 0 | Q202: 0 | R202: 0 | S202: 0 | T202: 0 | U202: 0
A203: A5. How well do learners make a positive contribution to the community?* | B203: 4 | C203: 24 | D203: 8 | E203: 1 | F203: 37 | G203: 0 | H203: 0 | I203: 0 | J203: 0 | K203: 0 | L203: 0 | M203: 0 | N203: 0 | O203: 0 | P203: 0 | Q203: 0 | R203: 0 | S203: 0 | T203: 0 | U203: 0
A204: B. Quality of provision | B204: 9 | C204: 66 | D204: 48 | E204: 4 | F204: 127 | G204: 0 | H204: 0 | I204: 0 | J204: 0 | K204: 0 | L204: 0 | M204: 0 | N204: 0 | O204: 0 | P204: 0 | Q204: 0 | R204: 0 | S204: 0 | T204: 0 | U204: 0
A205: B1. How effectively do teaching, training and assessment support learning and development? | B205: 8 | C205: 64 | D205: 52 | E205: 4 | F205: 128 | G205: 0 | H205: 0 | I205: 0 | J205: 0 | K205: 0 | L205: 0 | M205: 0 | N205: 0 | O205: 0 | P205: 0 | Q205: 0 | R205: 0 | S205: 0 | T205: 0 | U205: 0
A206: B2. How effectively does the provision meet the needs and interests of users? | B206: 23 | C206: 69 | D206: 33 | E206: 2 | F206: 127 | G206: 0 | H206: 0 | I206: 0 | J206: 0 | K206: 0 | L206: 0 | M206: 0 | N206: 0 | O206: 0 | P206: 0 | Q206: 0 | R206: 0 | S206: 0 | T206: 0 | U206: 0
A207: B3. How well do partnerships with schools, employers, community groups and others lead to benefits for learners? | B207: 20 | C207: 72 | D207: 32 | E207: 3 | F207: 127 | G207: 0 | H207: 0 | I207: 0 | J207: 0 | K207: 0 | L207: 0 | M207: 0 | N207: 0 | O207: 0 | P207: 0 | Q207: 0 | R207: 0 | S207: 0 | T207: 0 | U207: 0
A208: B4. How effective are the care, guidance and support learners receive in helping them to achieve? | B208: 13 | C208: 75 | D208: 35 | E208: 4 | F208: 127 | G208: 0 | H208: 0 | I208: 0 | J208: 0 | K208: 0 | L208: 0 | M208: 0 | N208: 0 | O208: 0 | P208: 0 | Q208: 0 | R208: 0 | S208: 0 | T208: 0 | U208: 0
... 224 more rows

Sheet Table 1
B2: Table 1: Number of learning and skills providers inspected between 1 September 2011 and 31 August 2012, by provider and inspection type (final)
B6: Inspection activity | D6: All learning and skills | G6: All colleges1 | J6: Dance and drama colleges2 | M6: Further education in higher education institutions3 | P6: Independent learning provider4 | S6: Adult and community learning | V6: Next Step | Y6: Prison and young offender institutions | AB6: Probation
B7: Full inspections | D7: 300 | G7: 68 | J7: 16 | M7: 7 | P7: 122 | S7: 62 | V7: 2 | Y7: 17 | AB7: 6
B8: Re-inspections | D8: 9 | G8: 2 | J8: 0 | M8: 0 | P8: 6 | S8: 1 | V8: 0 | Y8: 0 | AB8: 0
B9: Focused monitoring visits | D9: 123 | G9: 41 | J9: 0 | M9: 0 | P9: 55 | S9: 22 | V9: 5 | Y9: 0 | AB9: 0
B10: Re-inspection monitoring visits | D10: 35 | G10: 20 | J10: 0 | M10: 0 | P10: 11 | S10: 4 | V10: 0 | Y10: 0 | AB10: 0
B11: Partial re-inspections | D11: 16 | G11: 14 | J11: 0 | M11: 0 | P11: 1 | S11: 1 | V11: 0 | Y11: 0 | AB11: 0
B12: Total | D12: 483 | G12: 145 | J12: 16 | M12: 7 | P12: 195 | S12: 90 | V12: 7 | Y12: 17 | AB12: 6
AB13: Source: Ofsted
B14: 1. Includes general further education college/tertiary college, sixth form college, specialist further education college and independent specialist college.
B15: 2. Inspection of the Dance and Drama Awards scheme only, not providers as a whole.
B16: 3. Inspection of further education provision only, not providers as a whole.
B17: 4. Includes employer provision.

Sheet Table 2
B2: Table 2: Inspection outcomes of learning and skills providers inspected between 1 September 2011 and 31 August 2012 (final)¹ ² ³
I5: Total number inspected | J5: Outstanding | L5: Good | N5: Satisfactory | P5: Inadequate
J6: Number | K6: % | L6: Number | M6: % | N6: Number | O6: % | P6: Number | Q6: %
B8: Overall effectiveness | I8: 261 | J8: 16 | K8: 6.130268199 | L8: 122 | M8: 46.74329502 | N8: 94 | O8: 36.01532567 | P8: 29 | Q8: 11.11111111
B9: Capacity to improve | I9: 256 | J9: 14 | K9: 5.46875 | L9: 120 | M9: 46.875 | N9: 96 | O9: 37.5 | P9: 26 | Q9: 10.15625
B10: A. Outcomes for learners | I10: 261 | J10: 22 | K10: 8.429118774 | L10: 118 | M10: 45.21072797 | N10: 99 | O10: 37.93103448 | P10: 22 | Q10: 8.429118774
B11: A1. How well do learners achieve and enjoy their learning? | I11: 256 | J11: 24 | K11: 9.375 | L11: 114 | M11: 44.53125 | N11: 97 | O11: 37.890625 | P11: 21 | Q11: 8.203125
B12: A1.a) How well do learners attain their learning goals? | I12: 256 | J12: 25 | K12: 9.765625 | L12: 96 | M12: 37.5 | N12: 109 | O12: 42.578125 | P12: 26 | Q12: 10.15625
B13: A1.b) How well do learners progress? | I13: 256 | J13: 21 | K13: 8.203125 | L13: 126 | M13: 49.21875 | N13: 92 | O13: 35.9375 | P13: 17 | Q13: 6.640625
B14: A2. How well do learners improve their economic and social well-being through learning and development? | I14: 256 | J14: 32 | K14: 12.5 | L14: 160 | M14: 62.5 | N14: 55 | O14: 21.484375 | P14: 9 | Q14: 3.515625
B15: A3. How safe do learners feel? | I15: 256 | J15: 40 | K15: 15.625 | L15: 167 | M15: 65.234375 | N15: 49 | O15: 19.140625 | P15: 0 | Q15: 0
B16: A4. Are learners able to make informed choices about their own health and well being?4 | I16: 147 | J16: 14 | K16: 9.523809524 | L16: 85 | M16: 57.82312925 | N16: 48 | O16: 32.65306122 | P16: 0 | Q16: 0
B17: A5. How well do learners make a positive contribution to the community?4 | I17: 140 | J17: 25 | K17: 17.85714286 | L17: 81 | M17: 57.85714286 | N17: 32 | O17: 22.85714286 | P17: 2 | Q17: 1.428571429
B18: B. Quality of provision | I18: 256 | J18: 16 | K18: 6.25 | L18: 136 | M18: 53.125 | N18: 96 | O18: 37.5 | P18: 8 | Q18: 3.125
B19: B1. How effectively do teaching, training and assessment support learning and development? | I19: 261 | J19: 9 | K19: 3.448275862 | L19: 138 | M19: 52.87356322 | N19: 106 | O19: 40.61302682 | P19: 8 | Q19: 3.0651341
B20: B2. How effectively does the provision meet the needs and interests of users? | I20: 256 | J20: 42 | K20: 16.40625 | L20: 139 | M20: 54.296875 | N20: 72 | O20: 28.125 | P20: 3 | Q20: 1.171875
B21: B3. How well do partnerships with schools, employers, community groups and others lead to benefits for learners? | I21: 256 | J21: 59 | K21: 23.046875 | L21: 144 | M21: 56.25 | N21: 50 | O21: 19.53125 | P21: 3 | Q21: 1.171875
B22: B4. How effective are the care, guidance and support learners receive in helping them to achieve? | I22: 256 | J22: 26 | K22: 10.15625 | L22: 149 | M22: 58.203125 | N22: 73 | O22: 28.515625 | P22: 8 | Q22: 3.125
B23: C. Leadership and management | I23: 261 | J23: 17 | K23: 6.513409962 | L23: 125 | M23: 47.89272031 | N23: 92 | O23: 35.24904215 | P23: 27 | Q23: 10.34482759
B24: C1. How effectively do leaders and managers raise expectations and promote ambition throughout the organisation? | I24: 256 | J24: 42 | K24: 16.40625 | L24: 123 | M24: 48.046875 | N24: 68 | O24: 26.5625 | P24: 23 | Q24: 8.984375
B25: C2. How effectively do governors and supervisory bodies provide leadership, direction and challenge?4 | I25: 153 | J25: 17 | K25: 11.11111111 | L25: 70 | M25: 45.75163399 | N25: 52 | O25: 33.9869281 | P25: 14 | Q25: 9.150326797
B26: C3. How effectively does the provider promote the safeguarding of learners? | I26: 256 | J26: 31 | K26: 12.109375 | L26: 143 | M26: 55.859375 | N26: 77 | O26: 30.078125 | P26: 5 | Q26: 1.953125
B27: C4. How effectively does the provider actively promote equality and diversity, tackle discrimination and narrow the achievement gap? | I27: 256 | J27: 10 | K27: 3.90625 | L27: 117 | M27: 45.703125 | N27: 121 | O27: 47.265625 | P27: 8 | Q27: 3.125
B28: C5. How effectively does the provider engage with users to support and promote improvement? | I28: 256 | J28: 26 | K28: 10.15625 | L28: 125 | M28: 48.828125 | N28: 98 | O28: 38.28125 | P28: 7 | Q28: 2.734375
B29: C6. How effectively does self-assessment improve the quality of the provision and outcomes for learners? | I29: 256 | J29: 11 | K29: 4.296875 | L29: 100 | M29: 39.0625 | N29: 109 | O29: 42.578125 | P29: 36 | Q29: 14.0625
B30: C7. How efficiently and effectively does the provider use its available resources to secure value for money? | I30: 256 | J30: 29 | K30: 11.328125 | L30: 122 | M30: 47.65625 | N30: 87 | O30: 33.984375 | P30: 18 | Q30: 7.03125
M31: Source: Ofsted
B32: 1. Does not include inspections of the Dance and Drama Awards scheme, further education in higher education institute inspections, prison inspections, probation trust inspections or Next Step inspections.
B33: 2. Data include five pilot inspections which grade overall effectiveness, outcomes for learners, teaching and learning and leadership and management.
B34: 2. Percentages are rounded and may not add to 100. Where the number of inspections is small, percentages should be treated with caution.
B35: 4. Where applicable to the type of provision.

Sheet Table 2a
B2: Table 2a: Inspection outcomes of colleges inspected between 1 September 2011 and 31 August 2012 (final)¹ ² ³
I5: Total number inspected | J5: Outstanding | L5: Good | N5: Satisfactory | P5: Inadequate
I6: Number | J6: Number | K6: % | L6: Number | M6: % | N6: Number | O6: % | P6: Number | Q6: %
B8: Overall effectiveness | I8: 70 | J8: 4 | K8: 5.714285714 | L8: 23 | M8: 32.85714286 | N8: 30 | O8: 42.85714286 | P8: 13 | Q8: 18.57142857
B9: Capacity to improve | I9: 67 | J9: 4 | K9: 5.970149254 | L9: 25 | M9: 37.31343284 | N9: 28 | O9: 41.79104478 | P9: 10 | Q9: 14.92537313
B10: A. Outcomes for learners | I10: 70 | J10: 4 | K10: 5.714285714 | L10: 18 | M10: 25.71428571 | N10: 38 | O10: 54.28571429 | P10: 10 | Q10: 14.28571429
B11: A1. How well do learners achieve and enjoy their learning? | I11: 67 | J11: 4 | K11: 5.970149254 | L11: 18 | M11: 26.86567164 | N11: 36 | O11: 53.73134328 | P11: 9 | Q11: 13.43283582
B12: A1.a) How well do learners attain their learning goals? | I12: 67 | J12: 3 | K12: 4.47761194 | L12: 18 | M12: 26.86567164 | N12: 32 | O12: 47.76119403 | P12: 14 | Q12: 20.89552239
B13: A1.b) How well do learners progress? | I13: 67 | J13: 2 | K13: 2.985074627 | L13: 24 | M13: 35.82089552 | N13: 36 | O13: 53.73134328 | P13: 5 | Q13: 7.462686567
B14: A2. How well do learners improve their economic and social well-being through learning and development? | I14: 67 | J14: 7 | K14: 10.44776119 | L14: 32 | M14: 47.76119403 | N14: 23 | O14: 34.32835821 | P14: 5 | Q14: 7.462686567
B15: A3. How safe do learners feel? | I15: 67 | J15: 17 | K15: 25.37313433 | L15: 44 | M15: 65.67164179 | N15: 6 | O15: 8.955223881 | P15: 0 | Q15: 0
B16: A4. Are learners able to make informed choices about their own health and well being?4 | I16: 65 | J16: 8 | K16: 12.30769231 | L16: 36 | M16: 55.38461538 | N16: 21 | O16: 32.30769231 | P16: 0 | Q16: 0
B17: A5. How well do learners make a positive contribution to the community?4 | I17: 65 | J17: 15 | K17: 23.07692308 | L17: 34 | M17: 52.30769231 | N17: 15 | O17: 23.07692308 | P17: 1 | Q17: 1.538461538
B18: B. Quality of provision | I18: 67 | J18: 5 | K18: 7.462686567 | L18: 26 | M18: 38.80597015 | N18: 33 | O18: 49.25373134 | P18: 3 | Q18: 4.47761194
B19: B1. How effectively do teaching, training and assessment support learning and development? | I19: 70 | J19: 0 | K19: 0 | L19: 31 | M19: 44.28571429 | N19: 36 | O19: 51.42857143 | P19: 3 | Q19: 4.285714286
B20: B2. How effectively does the provision meet the needs and interests of users? | I20: 67 | J20: 8 | K20: 11.94029851 | L20: 34 | M20: 50.74626866 | N20: 25 | O20: 37.31343284 | P20: 0 | Q20: 0
B21: B3. How well do partnerships with schools, employers, community groups and others lead to benefits for learners? | I21: 67 | J21: 25 | K21: 37.31343284 | L21: 32 | M21: 47.76119403 | N21: 10 | O21: 14.92537313 | P21: 0 | Q21: 0
B22: B4. How effective are the care, guidance and support learners receive in helping them to achieve? | I22: 67 | J22: 7 | K22: 10.44776119 | L22: 32 | M22: 47.76119403 | N22: 24 | O22: 35.82089552 | P22: 4 | Q22: 5.970149254
B23: C. Leadership and management | I23: 70 | J23: 4 | K23: 5.714285714 | L23: 27 | M23: 38.57142857 | N23: 26 | O23: 37.14285714 | P23: 13 | Q23: 18.57142857
B24: C1. How effectively do leaders and managers raise expectations and promote ambition throughout the organisation? | I24: 67 | J24: 8 | K24: 11.94029851 | L24: 32 | M24: 47.76119403 | N24: 15 | O24: 22.3880597 | P24: 12 | Q24: 17.91044776
B25: C2. How effectively do governors and supervisory bodies provide leadership, direction and challenge?4 | I25: 67 | J25: 7 | K25: 10.44776119 | L25: 31 | M25: 46.26865672 | N25: 20 | O25: 29.85074627 | P25: 9 | Q25: 13.43283582
B26: C3. How effectively does the provider promote the safeguarding of learners? | I26: 67 | J26: 15 | K26: 22.3880597 | L26: 35 | M26: 52.23880597 | N26: 14 | O26: 20.89552239 | P26: 3 | Q26: 4.47761194
B27: C4. How effectively does the provider actively promote equality and diversity, tackle discrimination and narrow the achievement gap? | I27: 67 | J27: 1 | K27: 1.492537313 | L27: 31 | M27: 46.26865672 | N27: 33 | O27: 49.25373134 | P27: 2 | Q27: 2.985074627
B28: C5. How effectively does the provider engage with users to support and promote improvement? | I28: 67 | J28: 12 | K28: 17.91044776 | L28: 27 | M28: 40.29850746 | N28: 28 | O28: 41.79104478 | P28: 0 | Q28: 0
B29: C6. How effectively does self-assessment improve the quality of the provision and outcomes for learners? | I29: 67 | J29: 3 | K29: 4.47761194 | L29: 20 | M29: 29.85074627 | N29: 29 | O29: 43.28358209 | P29: 15 | Q29: 22.3880597
B30: C7. How efficiently and effectively does the provider use its available resources to secure value for money? | I30: 67 | J30: 6 | K30: 8.955223881 | L30: 25 | M30: 37.31343284 | N30: 28 | O30: 41.79104478 | P30: 8 | Q30: 11.94029851
M31: Source: Ofsted
B32: 1. Includes general further education college/tertiary college, sixth form college and independent specialist college.
B33: 2. Data include three pilot inspections which grade overall effectiveness, outcomes for learners, teaching and learning and leadership and management.
B34: 3. Percentages are rounded and may not add to 100. Where the number of inspections is small, percentages should be treated with caution.
B35: 4. Where applicable to the type of provision.

Sheet Table 2b
B2: Table 2b: Inspection outcomes of general further education colleges/tertiary colleges inspected between 1 September 2011 and 31 August 2012 (final)¹ ² ³
I5: Total number inspected | J5: Outstanding | L5: Good | N5: Satisfactory | P5: Inadequate
I6: Number | J6: Number | K6: % | L6: Number | M6: % | N6: Number | O6: % | P6: Number | Q6: %
B8: Overall effectiveness | I8: 45 | J8: 2 | K8: 4.444444444 | L8: 14 | M8: 31.11111111 | N8: 22 | O8: 48.88888889 | P8: 7 | Q8: 15.55555556
B9: Capacity to improve | I9: 43 | J9: 2 | K9: 4.651162791 | L9: 15 | M9: 34.88372093 | N9: 20 | O9: 46.51162791 | P9: 6 | Q9: 13.95348837
B10: A. Outcomes for learners | I10: 45 | J10: 2 | K10: 4.444444444 | L10: 9 | M10: 20 | N10: 28 | O10: 62.22222222 | P10: 6 | Q10: 13.33333333
B11: A1. How well do learners achieve and enjoy their learning? | I11: 43 | J11: 2 | K11: 4.651162791 | L11: 9 | M11: 20.93023256 | N11: 26 | O11: 60.46511628 | P11: 6 | Q11: 13.95348837
B12: A1.a) How well do learners attain their learning goals? | I12: 43 | J12: 1 | K12: 2.325581395 | L12: 8 | M12: 18.60465116 | N12: 25 | O12: 58.13953488 | P12: 9 | Q12: 20.93023256
B13: A1.b) How well do learners progress? | I13: 43 | J13: 1 | K13: 2.325581395 | L13: 14 | M13: 32.55813953 | N13: 26 | O13: 60.46511628 | P13: 2 | Q13: 4.651162791
B14: A2. How well do learners improve their economic and social well-being through learning and development? | I14: 43 | J14: 3 | K14: 6.976744186 | L14: 24 | M14: 55.81395349 | N14: 13 | O14: 30.23255814 | P14: 3 | Q14: 6.976744186
B15: A3. How safe do learners feel? | I15: 43 | J15: 10 | K15: 23.25581395 | L15: 29 | M15: 67.44186047 | N15: 4 | O15: 9.302325581 | P15: 0 | Q15: 0
B16: A4. Are learners able to make informed choices about their own health and well being?4 | I16: 41 | J16: 3 | K16: 7.317073171 | L16: 26 | M16: 63.41463415 | N16: 12 | O16: 29.26829268 | P16: 0 | Q16: 0
B17: A5. How well do learners make a positive contribution to the community?4 | I17: 41 | J17: 7 | K17: 17.07317073 | L17: 26 | M17: 63.41463415 | N17: 8 | O17: 19.51219512 | P17: 0 | Q17: 0
B18: B. Quality of provision | I18: 43 | J18: 2 | K18: 4.651162791 | L18: 17 | M18: 39.53488372 | N18: 22 | O18: 51.1627907 | P18: 2 | Q18: 4.651162791
B19: B1. How effectively do teaching, training and assessment support learning and development? | I19: 45 | J19: 0 | K19: 0 | L19: 18 | M19: 40 | N19: 25 | O19: 55.55555556 | P19: 2 | Q19: 4.444444444
B20: B2. How effectively does the provision meet the needs and interests of users? | I20: 43 | J20: 3 | K20: 6.976744186 | L20: 26 | M20: 60.46511628 | N20: 14 | O20: 32.55813953 | P20: 0 | Q20: 0
B21: B3. How well do partnerships with schools, employers, community groups and others lead to benefits for learners? | I21: 43 | J21: 18 | K21: 41.86046512 | L21: 22 | M21: 51.1627907 | N21: 3 | O21: 6.976744186 | P21: 0 | Q21: 0
B22: B4. How effective are the care, guidance and support learners receive in helping them to achieve? | I22: 43 | J22: 2 | K22: 4.651162791 | L22: 21 | M22: 48.8372093 | N22: 16 | O22: 37.20930233 | P22: 4 | Q22: 9.302325581
B23: C. Leadership and management | I23: 45 | J23: 2 | K23: 4.444444444 | L23: 18 | M23: 40 | N23: 18 | O23: 40 | P23: 7 | Q23: 15.55555556
B24: C1. How effectively do leaders and managers raise expectations and promote ambition throughout the organisation? | I24: 43 | J24: 5 | K24: 11.62790698 | L24: 22 | M24: 51.1627907 | N24: 9 | O24: 20.93023256 | P24: 7 | Q24: 16.27906977
B25: C2. How effectively do governors and supervisory bodies provide leadership, direction and challenge?4 | I25: 43 | J25: 4 | K25: 9.302325581 | L25: 22 | M25: 51.1627907 | N25: 12 | O25: 27.90697674 | P25: 5 | Q25: 11.62790698
B26: C3. How effectively does the provider promote the safeguarding of learners? | I26: 43 | J26: 9 | K26: 20.93023256 | L26: 25 | M26: 58.13953488 | N26: 7 | O26: 16.27906977 | P26: 2 | Q26: 4.651162791
B27: C4. How effectively does the provider actively promote equality and diversity, tackle discrimination and narrow the achievement gap? | I27: 43 | J27: 0 | K27: 0 | L27: 22 | M27: 51.1627907 | N27: 21 | O27: 48.8372093 | P27: 0 | Q27: 0
B28: C5. How effectively does the provider engage with users to support and promote improvement? | I28: 43 | J28: 6 | K28: 13.95348837 | L28: 21 | M28: 48.8372093 | N28: 16 | O28: 37.20930233 | P28: 0 | Q28: 0
B29: C6. How effectively does self-assessment improve the quality of the provision and outcomes for learners? | I29: 43 | J29: 1 | K29: 2.325581395 | L29: 14 | M29: 32.55813953 | N29: 19 | O29: 44.18604651 | P29: 9 | Q29: 20.93023256
B30: C7. How efficiently and effectively does the provider use its available resources to secure value for money? | I30: 43 | J30: 3 | K30: 6.976744186 | L30: 17 | M30: 39.53488372 | N30: 19 | O30: 44.18604651 | P30: 4 | Q30: 9.302325581
M31: Source: Ofsted
B32: 1. Includes specialist further education college.
B33: 2. Data include two pilot inspections which grade overall effectiveness, outcomes for learners, teaching and learning and leadership and management.
B34: 3. Percentages are rounded and may not add to 100. Where the number of inspections is small, percentages should be treated with caution.
B35: 4. Where applicable to the type of provision.

Sheet Table 2c
B2: Table 2c: Inspection outcomes of sixth form colleges inspected between 1 September 2011 and 31 August 2012 (final)¹ ²
I5: Total number inspected | J5: Outstanding | L5: Good | N5: Satisfactory | P5: Inadequate
I6: Number | J6: Number | K6: % | L6: Number | M6: % | N6: Number | O6: % | P6: Number | Q6: %
B8: Overall effectiveness | I8: 13 | J8: 0 | K8: 0 | L8: 5 | M8: 38.46153846 | N8: 4 | O8: 30.76923077 | P8: 4 | Q8: 30.76923077
B9: Capacity to improve | I9: 12 | J9: 0 | K9: 0 | L9: 6 | M9: 50 | N9: 4 | O9: 33.33333333 | P9: 2 | Q9: 16.66666667
B10: A. Outcomes for learners | I10: 13 | J10: 0 | K10: 0 | L10: 5 | M10: 38.46153846 | N10: 4 | O10: 30.76923077 | P10: 4 | Q10: 30.76923077
B11: A1. How well do learners achieve and enjoy their learning? | I11: 12 | J11: 0 | K11: 0 | L11: 5 | M11: 41.66666667 | N11: 4 | O11: 33.33333333 | P11: 3 | Q11: 25
B12: A1.a) How well do learners attain their learning goals? | I12: 12 | J12: 0 | K12: 0 | L12: 5 | M12: 41.66666667 | N12: 2 | O12: 16.66666667 | P12: 5 | Q12: 41.66666667
B13: A1.b) How well do learners progress? | I13: 12 | J13: 0 | K13: 0 | L13: 5 | M13: 41.66666667 | N13: 4 | O13: 33.33333333 | P13: 3 | Q13: 25
B14: A2. How well do learners improve their economic and social well-being through learning and development? | I14: 12 | J14: 2 | K14: 16.66666667 | L14: 4 | M14: 33.33333333 | N14: 4 | O14: 33.33333333 | P14: 2 | Q14: 16.66666667
B15: A3. How safe do learners feel? | I15: 12 | J15: 5 | K15: 41.66666667 | L15: 7 | M15: 58.33333333 | N15: 0 | O15: 0 | P15: 0 | Q15: 0
B16: A4. Are learners able to make informed choices about their own health and well being?3 | I16: 12 | J16: 2 | K16: 16.66666667 | L16: 7 | M16: 58.33333333 | N16: 3 | O16: 25 | P16: 0 | Q16: 0
B17: A5. How well do learners make a positive contribution to the community?3 | I17: 12 | J17: 3 | K17: 25 | L17: 5 | M17: 41.66666667 | N17: 3 | O17: 25 | P17: 1 | Q17: 8.333333333
B18: B. Quality of provision | I18: 12 | J18: 1 | K18: 8.333333333 | L18: 5 | M18: 41.66666667 | N18: 6 | O18: 50 | P18: 0 | Q18: 0
B19: B1. How effectively do teaching, training and assessment support learning and development? | I19: 13 | J19: 0 | K19: 0 | L19: 7 | M19: 53.84615385 | N19: 6 | O19: 46.15384615 | P19: 0 | Q19: 0
B20: B2. How effectively does the provision meet the needs and interests of users? | I20: 12 | J20: 3 | K20: 25 | L20: 5 | M20: 41.66666667 | N20: 4 | O20: 33.33333333 | P20: 0 | Q20: 0
B21: B3. How well do partnerships with schools, employers, community groups and others lead to benefits for learners? | I21: 12 | J21: 4 | K21: 33.33333333 | L21: 5 | M21: 41.66666667 | N21: 3 | O21: 25 | P21: 0 | Q21: 0
B22: B4. How effective are the care, guidance and support learners receive in helping them to achieve? | I22: 12 | J22: 2 | K22: 16.66666667 | L22: 4 | M22: 33.33333333 | N22: 6 | O22: 50 | P22: 0 | Q22: 0
B23: C. Leadership and management | I23: 13 | J23: 0 | K23: 0 | L23: 5 | M23: 38.46153846 | N23: 4 | O23: 30.76923077 | P23: 4 | Q23: 30.76923077
B24: C1. How effectively do leaders and managers raise expectations and promote ambition throughout the organisation? | I24: 12 | J24: 1 | K24: 8.333333333 | L24: 6 | M24: 50 | N24: 2 | O24: 16.66666667 | P24: 3 | Q24: 25
B25: C2. How effectively do governors and supervisory bodies provide leadership, direction and challenge?3 | I25: 12 | J25: 1 | K25: 8.333333333 | L25: 5 | M25: 41.66666667 | N25: 5 | O25: 41.66666667 | P25: 1 | Q25: 8.333333333
B26: C3. How effectively does the provider promote the safeguarding of learners? | I26: 12 | J26: 4 | K26: 33.33333333 | L26: 4 | M26: 33.33333333 | N26: 4 | O26: 33.33333333 | P26: 0 | Q26: 0
B27: C4. How effectively does the provider actively promote equality and diversity, tackle discrimination and narrow the achievement gap? | I27: 12 | J27: 1 | K27: 8.333333333 | L27: 4 | M27: 33.33333333 | N27: 7 | O27: 58.33333333 | P27: 0 | Q27: 0
B28: C5. How effectively does the provider engage with users to support and promote improvement? | I28: 12 | J28: 3 | K28: 25 | L28: 3 | M28: 25 | N28: 6 | O28: 50 | P28: 0 | Q28: 0
B29: C6. How effectively does self-assessment improve the quality of the provision and outcomes for learners? | I29: 12 | J29: 0 | K29: 0 | L29: 3 | M29: 25 | N29: 6 | O29: 50 | P29: 3 | Q29: 25
B30: C7. How efficiently and effectively does the provider use its available resources to secure value for money? | I30: 12 | J30: 1 | K30: 8.333333333 | L30: 4 | M30: 33.33333333 | N30: 5 | O30: 41.66666667 | P30: 2 | Q30: 16.66666667
M31: Source: Ofsted
B32: 1. Data include one pilot inspection which grades overall effectiveness, outcomes for learners, teaching and learning and leadership and management.
B33: 2. Percentages are rounded and may not add to 100. Where the number of inspections is very small, percentages are not shown.
B34: 3. Where applicable to the type of provision.

Sheet Table 2d
B2: ="Table 2d: Inspection outcomes of independent specialist colleges inspected " & IF('Table 2d'!C5=Dates1!$B$3, "between " & Dates1!$B$3, IF('Table 2d'!C5 = Dates1!B4, "in " & Dates1!B4, IF('Table 2d'!C5=Dates1!B5, "in " & Dates1!B5, IF('Table 2d'!C5=Dates1!B6, "in " & Dates1!B6, IF('Table 2d'!C5=Dates1!B7, "in " & Dates1!B7))))) & " (final)"&CHAR(185) -> Table 2d: Inspection outcomes of independent specialist colleges inspected between 1 September 2011 and 31 August 2012 (final)¹
B5: Select period: | C5: 1 September 2011 and 31 August 2012 | I5: Total number inspected | J5: Outstanding | L5: Good | N5: Satisfactory | P5: Inadequate
I6: Number | J6: Number | K6: % | L6: Number | M6: % | N6: Number | O6: % | P6: Number | Q6: %
B8: Overall effectiveness | I8: =J8+L8+N8+P8 -> 12 | J8: =IF($C$5=Dates1!$B$3, DataPack!$B116, IF($C$5=Dates1!$B$4, DataPack!$G116, IF($C$5=Dates1!$B$5, DataPack!$L116, IF($C$5=Dates1!$B$6, DataPack!$Q116)))) -> 2 | K8: =IF(ISERROR(100*(J8/$I8)),"0",(100*(J8/$I8))) -> 16.66666667 | L8: =IF($C$5=Dates1!$B$3, DataPack!$C116, IF($C$5=Dates1!$B$4, DataPack!$H116, IF($C$5=Dates1!$B$5, DataPack!$M116, IF($C$5=Dates1!$B$6, DataPack!$R116)))) -> 4 | M8: =IF(ISERROR(100*(L8/$I8)),"0",(100*(L8/$I8))) -> 33.33333333 | N8: =IF($C$5=Dates1!$B$3, DataPack!$D116, IF($C$5=Dates1!$B$4, DataPack!$I116, IF($C$5=Dates1!$B$5, DataPack!$N116, IF($C$5=Dates1!$B$6, DataPack!$S116)))) -> 4 | O8: =IF(ISERROR(100*(N8/$I8)),"0",(100*(N8/$I8))) -> 33.33333333 | P8: =IF($C$5=Dates1!$B$3, DataPack!$E116, IF($C$5=Dates1!$B$4, DataPack!$J116, IF($C$5=Dates1!$B$5, DataPack!$O116, IF($C$5=Dates1!$B$6, DataPack!$T116)))) -> 2 | Q8: =IF(ISERROR(100*(P8/$I8)),"0",(100*(P8/$I8))) -> 16.66666667
B9: Capacity to improve | I9: 12 | J9: =IF($C$5=Dates1!$B$3, DataPack!$B117, IF($C$5=Dates1!$B$4, DataPack!$G117, IF($C$5=Dates1!$B$5, DataPack!$L117, IF($C$5=Dates1!$B$6, DataPack!$Q117)))) -> 2 | K9: 16.66666667 | L9: =IF($C$5=Dates1!$B$3, DataPack!$C117, IF($C$5=Dates1!$B$4, DataPack!$H117, IF($C$5=Dates1!$B$5, DataPack!$M117, IF($C$5=Dates1!$B$6, DataPack!$R117)))) -> 4 | M9: 33.33333333 | N9: =IF($C$5=Dates1!$B$3, DataPack!$D117, IF($C$5=Dates1!$B$4, DataPack!$I117, IF($C$5=Dates1!$B$5, DataPack!$N117, IF($C$5=Dates1!$B$6, DataPack!$S117)))) -> 4 | O9: 33.33333333 | P9: =IF($C$5=Dates1!$B$3, DataPack!$E117, IF($C$5=Dates1!$B$4, DataPack!$J117, IF($C$5=Dates1!$B$5, DataPack!$O117, IF($C$5=Dates1!$B$6, DataPack!$T117)))) -> 2 | Q9: 16.66666667
B10: A. Outcomes for learners | I10: 12 | J10: =IF($C$5=Dates1!$B$3, DataPack!$B118, IF($C$5=Dates1!$B$4, DataPack!$G118, IF($C$5=Dates1!$B$5, DataPack!$L118, IF($C$5=Dates1!$B$6, DataPack!$Q118)))) -> 2 | K10: 16.66666667 | L10: =IF($C$5=Dates1!$B$3, DataPack!$C118, IF($C$5=Dates1!$B$4, DataPack!$H118, IF($C$5=Dates1!$B$5, DataPack!$M118, IF($C$5=Dates1!$B$6, DataPack!$R118)))) -> 4 | M10: 33.33333333 | N10: =IF($C$5=Dates1!$B$3, DataPack!$D118, IF($C$5=Dates1!$B$4, DataPack!$I118, IF($C$5=Dates1!$B$5, DataPack!$N118, IF($C$5=Dates1!$B$6, DataPack!$S118)))) -> 6 | O10: 50 | P10: =IF($C$5=Dates1!$B$3, DataPack!$E118, IF($C$5=Dates1!$B$4, DataPack!$J118, IF($C$5=Dates1!$B$5, DataPack!$O118, IF($C$5=Dates1!$B$6, DataPack!$T118)))) -> 0 | Q10: 0
B11: A1. How well do learners achieve and enjoy their learning? | I11: 12 | J11: =IF($C$5=Dates1!$B$3, DataPack!$B119, IF($C$5=Dates1!$B$4, DataPack!$G119, IF($C$5=Dates1!$B$5, DataPack!$L119, IF($C$5=Dates1!$B$6, DataPack!$Q119)))) -> 2 | K11: 16.66666667 | L11: =IF($C$5=Dates1!$B$3, DataPack!$C119, IF($C$5=Dates1!$B$4, DataPack!$H119, IF($C$5=Dates1!$B$5, DataPack!$M119, IF($C$5=Dates1!$B$6, DataPack!$R119)))) -> 4 | M11: 33.33333333 | N11: =IF($C$5=Dates1!$B$3, DataPack!$D119, IF($C$5=Dates1!$B$4, DataPack!$I119, IF($C$5=Dates1!$B$5, DataPack!$N119, IF($C$5=Dates1!$B$6, DataPack!$S119)))) -> 6 | O11: 50 | P11: =IF($C$5=Dates1!$B$3, DataPack!$E119, IF($C$5=Dates1!$B$4, DataPack!$J119, IF($C$5=Dates1!$B$5, DataPack!$O119, IF($C$5=Dates1!$B$6, DataPack!$T119)))) -> 0 | Q11: 0
B12: A1.a) How well do learners attain their learning goals? | I12: 12 | J12: =IF($C$5=Dates1!$B$3, DataPack!$B120, IF($C$5=Dates1!$B$4, DataPack!$G120, IF($C$5=Dates1!$B$5, DataPack!$L120, IF($C$5=Dates1!$B$6, DataPack!$Q120)))) -> 2 | K12: 16.66666667 | L12: =IF($C$5=Dates1!$B$3, DataPack!$C120, IF($C$5=Dates1!$B$4, DataPack!$H120, IF($C$5=Dates1!$B$5, DataPack!$M120, IF($C$5=Dates1!$B$6, DataPack!$R120)))) -> 5 | M12: 41.66666667 | N12: =IF($C$5=Dates1!$B$3, DataPack!$D120, IF($C$5=Dates1!$B$4, DataPack!$I120, IF($C$5=Dates1!$B$5, DataPack!$N120, IF($C$5=Dates1!$B$6, DataPack!$S120)))) -> 5 | O12: 41.66666667 | P12: =IF($C$5=Dates1!$B$3, DataPack!$E120, IF($C$5=Dates1!$B$4, DataPack!$J120, IF($C$5=Dates1!$B$5, DataPack!$O120, IF($C$5=Dates1!$B$6, DataPack!$T120)))) -> 0 | Q12: 0
B13: A1.b) How well do learners progress? | I13: 12 | J13: =IF($C$5=Dates1!$B$3, DataPack!$B121, IF($C$5=Dates1!$B$4, DataPack!$G121, IF($C$5=Dates1!$B$5, DataPack!$L121, IF($C$5=Dates1!$B$6, DataPack!$Q121)))) -> 1 | K13: 8.333333333 | L13: =IF($C$5=Dates1!$B$3, DataPack!$C121, IF($C$5=Dates1!$B$4, DataPack!$H121, IF($C$5=Dates1!$B$5, DataPack!$M121, IF($C$5=Dates1!$B$6, DataPack!$R121)))) -> 5 | M13: 41.66666667 | N13: =IF($C$5=Dates1!$B$3, DataPack!$D121, IF($C$5=Dates1!$B$4, DataPack!$I121, IF($C$5=Dates1!$B$5, DataPack!$N121, IF($C$5=Dates1!$B$6, DataPack!$S121)))) -> 6 | O13: 50 | P13: =IF($C$5=Dates1!$B$3, DataPack!$E121, IF($C$5=Dates1!$B$4, DataPack!$J121, IF($C$5=Dates1!$B$5, DataPack!$O121, IF($C$5=Dates1!$B$6, DataPack!$T121)))) -> 0 | Q13: 0
B14: A2. How well do learners improve their economic and social well-being through learning and development? | I14: 12 | J14: =IF($C$5=Dates1!$B$3, DataPack!$B122, IF($C$5=Dates1!$B$4, DataPack!$G122, IF($C$5=Dates1!$B$5, DataPack!$L122, IF($C$5=Dates1!$B$6, DataPack!$Q122)))) -> 2 | K14: 16.66666667 | L14: =IF($C$5=Dates1!$B$3, DataPack!$C122, IF($C$5=Dates1!$B$4, DataPack!$H122, IF($C$5=Dates1!$B$5, DataPack!$M122, IF($C$5=Dates1!$B$6, DataPack!$R122)))) -> 4 | M14: 33.33333333 | N14: =IF($C$5=Dates1!$B$3, DataPack!$D122, IF($C$5=Dates1!$B$4, DataPack!$I122, IF($C$5=Dates1!$B$5, DataPack!$N122, IF($C$5=Dates1!$B$6, DataPack!$S122)))) -> 6 | O14: 50 | P14: =IF($C$5=Dates1!$B$3, DataPack!$E122, IF($C$5=Dates1!$B$4, DataPack!$J122, IF($C$5=Dates1!$B$5, DataPack!$O122, IF($C$5=Dates1!$B$6, DataPack!$T122)))) -> 0 | Q14: 0
B15: A3. How safe do learners feel? | I15: 12 | J15: =IF($C$5=Dates1!$B$3, DataPack!$B123, IF($C$5=Dates1!$B$4, DataPack!$G123, IF($C$5=Dates1!$B$5, DataPack!$L123, IF($C$5=Dates1!$B$6, DataPack!$Q123)))) -> 2 | K15: 16.66666667 | L15: =IF($C$5=Dates1!$B$3, DataPack!$C123, IF($C$5=Dates1!$B$4, DataPack!$H123, IF($C$5=Dates1!$B$5, DataPack!$M123, IF($C$5=Dates1!$B$6, DataPack!$R123)))) -> 8 | M15: 66.66666667 | N15: =IF($C$5=Dates1!$B$3, DataPack!$D123, IF($C$5=Dates1!$B$4, DataPack!$I123, IF($C$5=Dates1!$B$5, DataPack!$N123, IF($C$5=Dates1!$B$6, DataPack!$S123)))) -> 2 | O15: 16.66666667 | P15: =IF($C$5=Dates1!$B$3, DataPack!$E123, IF($C$5=Dates1!$B$4, DataPack!$J123, IF($C$5=Dates1!$B$5, DataPack!$O123, IF($C$5=Dates1!$B$6, DataPack!$T123)))) -> 0 | Q15: 0
B16: A4. Are learners able to make informed choices about their own health and well being?2 | I16: 12 | J16: =IF($C$5=Dates1!$B$3, DataPack!$B124, IF($C$5=Dates1!$B$4, DataPack!$G124, IF($C$5=Dates1!$B$5, DataPack!$L124, IF($C$5=Dates1!$B$6, DataPack!$Q124)))) -> 3 | K16: 25 | L16: =IF($C$5=Dates1!$B$3, DataPack!$C124, IF($C$5=Dates1!$B$4, DataPack!$H124, IF($C$5=Dates1!$B$5, DataPack!$M124, IF($C$5=Dates1!$B$6, DataPack!$R124)))) -> 3 | M16: 25 | N16: =IF($C$5=Dates1!$B$3, DataPack!$D124, IF($C$5=Dates1!$B$4, DataPack!$I124, IF($C$5=Dates1!$B$5, DataPack!$N124, IF($C$5=Dates1!$B$6, DataPack!$S124)))) -> 6 | O16: 50 | P16: =IF($C$5=Dates1!$B$3, DataPack!$E124, IF($C$5=Dates1!$B$4, DataPack!$J124, IF($C$5=Dates1!$B$5, DataPack!$O124, IF($C$5=Dates1!$B$6, DataPack!$T124)))) -> 0 | Q16: 0
B17: A5. How well do learners make a positive contribution to the community?2 | I17: 12 | J17: =IF($C$5=Dates1!$B$3, DataPack!$B125, IF($C$5=Dates1!$B$4, DataPack!$G125, IF($C$5=Dates1!$B$5, DataPack!$L125, IF($C$5=Dates1!$B$6, DataPack!$Q125)))) -> 5 | K17: 41.66666667 | L17: =IF($C$5=Dates1!$B$3, DataPack!$C125, IF($C$5=Dates1!$B$4, DataPack!$H125, IF($C$5=Dates1!$B$5, DataPack!$M125, IF($C$5=Dates1!$B$6, DataPack!$R125)))) -> 3 | M17: 25 | N17: =IF($C$5=Dates1!$B$3, DataPack!$D125, IF($C$5=Dates1!$B$4, DataPack!$I125, IF($C$5=Dates1!$B$5, DataPack!$N125, IF($C$5=Dates1!$B$6, DataPack!$S125)))) -> 4 | O17: 33.33333333 | P17: =IF($C$5=Dates1!$B$3, DataPack!$E125, IF($C$5=Dates1!$B$4, DataPack!$J125, IF($C$5=Dates1!$B$5, DataPack!$O125, IF($C$5=Dates1!$B$6, DataPack!$T125)))) -> 0 | Q17: 0
B18: B. Quality of provision | I18: 12 | J18: =IF($C$5=Dates1!$B$3, DataPack!$B126, IF($C$5=Dates1!$B$4, DataPack!$G126, IF($C$5=Dates1!$B$5, DataPack!$L126, IF($C$5=Dates1!$B$6, DataPack!$Q126)))) -> 2 | K18: 16.66666667 | L18: =IF($C$5=Dates1!$B$3, DataPack!$C126, IF($C$5=Dates1!$B$4, DataPack!$H126, IF($C$5=Dates1!$B$5, DataPack!$M126, IF($C$5=Dates1!$B$6, DataPack!$R126)))) -> 4 | M18: 33.33333333 | N18: =IF($C$5=Dates1!$B$3, DataPack!$D126, IF($C$5=Dates1!$B$4, DataPack!$I126, IF($C$5=Dates1!$B$5, DataPack!$N126, IF($C$5=Dates1!$B$6, DataPack!$S126)))) -> 5 | O18: 41.66666667 | P18: =IF($C$5=Dates1!$B$3, DataPack!$E126, IF($C$5=Dates1!$B$4, DataPack!$J126, IF($C$5=Dates1!$B$5, DataPack!$O126, IF($C$5=Dates1!$B$6, DataPack!$T126)))) -> 1 | Q18: 8.333333333
B19: B1. How effectively do teaching, training and assessment support learning and development? | I19: 12 | J19: =IF($C$5=Dates1!$B$3, DataPack!$B127, IF($C$5=Dates1!$B$4, DataPack!$G127, IF($C$5=Dates1!$B$5, DataPack!$L127, IF($C$5=Dates1!$B$6, DataPack!$Q127)))) -> 0 | K19: 0 | L19: =IF($C$5=Dates1!$B$3, DataPack!$C127, IF($C$5=Dates1!$B$4, DataPack!$H127, IF($C$5=Dates1!$B$5, DataPack!$M127, IF($C$5=Dates1!$B$6, DataPack!$R127)))) -> 6 | M19: 50 | N19: =IF($C$5=Dates1!$B$3, DataPack!$D127, IF($C$5=Dates1!$B$4, DataPack!$I127, IF($C$5=Dates1!$B$5, DataPack!$N127, IF($C$5=Dates1!$B$6, DataPack!$S127)))) -> 5 | O19: 41.66666667 | P19: =IF($C$5=Dates1!$B$3, DataPack!$E127, IF($C$5=Dates1!$B$4, DataPack!$J127, IF($C$5=Dates1!$B$5, DataPack!$O127, IF($C$5=Dates1!$B$6, DataPack!$T127)))) -> 1 | Q19: 8.333333333
B20: B2. How effectively does the provision meet the needs and interests of users? | I20: 12 | J20: =IF($C$5=Dates1!$B$3, DataPack!$B128, IF($C$5=Dates1!$B$4, DataPack!$G128, IF($C$5=Dates1!$B$5, DataPack!$L128, IF($C$5=Dates1!$B$6, DataPack!$Q128)))) -> 2 | K20: 16.66666667 | L20: =IF($C$5=Dates1!$B$3, DataPack!$C128, IF($C$5=Dates1!$B$4, DataPack!$H128, IF($C$5=Dates1!$B$5, DataPack!$M128, IF($C$5=Dates1!$B$6, DataPack!$R128)))) -> 3 | M20: 25 | N20: =IF($C$5=Dates1!$B$3, DataPack!$D128, IF($C$5=Dates1!$B$4, DataPack!$I128, IF($C$5=Dates1!$B$5, DataPack!$N128, IF($C$5=Dates1!$B$6, DataPack!$S128)))) -> 7 | O20: 58.33333333 | P20: =IF($C$5=Dates1!$B$3, DataPack!$E128, IF($C$5=Dates1!$B$4, DataPack!$J128, IF($C$5=Dates1!$B$5, DataPack!$O128, IF($C$5=Dates1!$B$6, DataPack!$T128)))) -> 0 | Q20: 0
B21: B3. How well do partnerships with schools, employers, community groups and others lead to benefits for learners? | I21: 12 | J21: =IF($C$5=Dates1!$B$3, DataPack!$B129, IF($C$5=Dates1!$B$4, DataPack!$G129, IF($C$5=Dates1!$B$5, DataPack!$L129, IF($C$5=Dates1!$B$6, DataPack!$Q129)))) -> 3 | K21: 25 | L21: =IF($C$5=Dates1!$B$3, DataPack!$C129, IF($C$5=Dates1!$B$4, DataPack!$H129, IF($C$5=Dates1!$B$5, DataPack!$M129, IF($C$5=Dates1!$B$6, DataPack!$R129)))) -> 5 | M21: 41.66666667 | N21: =IF($C$5=Dates1!$B$3, DataPack!$D129, IF($C$5=Dates1!$B$4, DataPack!$I129, IF($C$5=Dates1!$B$5, DataPack!$N129, IF($C$5=Dates1!$B$6, DataPack!$S129)))) -> 4 | O21: 33.33333333 | P21: =IF($C$5=Dates1!$B$3, DataPack!$E129, IF($C$5=Dates1!$B$4, DataPack!$J129, IF($C$5=Dates1!$B$5, DataPack!$O129, IF($C$5=Dates1!$B$6, DataPack!$T129)))) -> 0 | Q21: 0
B22: B4. How effective are the care, guidance and support learners receive in helping them to achieve? | I22: 12 | J22: =IF($C$5=Dates1!$B$3, DataPack!$B130, IF($C$5=Dates1!$B$4, DataPack!$G130, IF($C$5=Dates1!$B$5, DataPack!$L130, IF($C$5=Dates1!$B$6, DataPack!$Q130)))) -> 3 | K22: 25 | L22: =IF($C$5=Dates1!$B$3, DataPack!$C130, IF($C$5=Dates1!$B$4, DataPack!$H130, IF($C$5=Dates1!$B$5, DataPack!$M130, IF($C$5=Dates1!$B$6, DataPack!$R130)))) -> 7 | M22: 58.33333333 | N22: =IF($C$5=Dates1!$B$3, DataPack!$D130, IF($C$5=Dates1!$B$4, DataPack!$I130, IF($C$5=Dates1!$B$5, DataPack!$N130, IF($C$5=Dates1!$B$6, DataPack!$S130)))) -> 2 | O22: 16.66666667 | P22: =IF($C$5=Dates1!$B$3, DataPack!$E130, IF($C$5=Dates1!$B$4, DataPack!$J130, IF($C$5=Dates1!$B$5, DataPack!$O130, IF($C$5=Dates1!$B$6, DataPack!$T130)))) -> 0 | Q22: 0
B23: C. Leadership and management | I23: 12 | J23: =IF($C$5=Dates1!$B$3, DataPack!$B131, IF($C$5=Dates1!$B$4, DataPack!$G131, IF($C$5=Dates1!$B$5, DataPack!$L131, IF($C$5=Dates1!$B$6, DataPack!$Q131)))) -> 2 | K23: 16.66666667 | L23: =IF($C$5=Dates1!$B$3, DataPack!$C131, IF($C$5=Dates1!$B$4, DataPack!$H131, IF($C$5=Dates1!$B$5, DataPack!$M131, IF($C$5=Dates1!$B$6, DataPack!$R131)))) -> 4 | M23: 33.33333333 | N23: =IF($C$5=Dates1!$B$3, DataPack!$D131, IF($C$5=Dates1!$B$4, DataPack!$I131, IF($C$5=Dates1!$B$5, DataPack!$N131, IF($C$5=Dates1!$B$6, DataPack!$S131)))) -> 4 | O23: 33.33333333 | P23: =IF($C$5=Dates1!$B$3, DataPack!$E131, IF($C$5=Dates1!$B$4, DataPack!$J131, IF($C$5=Dates1!$B$5, DataPack!$O131, IF($C$5=Dates1!$B$6, DataPack!$T131)))) -> 2 | Q23: 16.66666667
B24: C1. How effectively do leaders and managers raise expectations and promote ambition throughout the organisation? | I24: 12 | J24: =IF($C$5=Dates1!$B$3, DataPack!$B132, IF($C$5=Dates1!$B$4, DataPack!$G132, IF($C$5=Dates1!$B$5, DataPack!$L132, IF($C$5=Dates1!$B$6, DataPack!$Q132)))) -> 2 | K24: 16.66666667 | L24: =IF($C$5=Dates1!$B$3, DataPack!$C132, IF($C$5=Dates1!$B$4, DataPack!$H132, IF($C$5=Dates1!$B$5, DataPack!$M132, IF($C$5=Dates1!$B$6, DataPack!$R132)))) -> 4 | M24: 33.33333333 | N24: =IF($C$5=Dates1!$B$3, DataPack!$D132, IF($C$5=Dates1!$B$4, DataPack!$I132, IF($C$5=Dates1!$B$5, DataPack!$N132, IF($C$5=Dates1!$B$6, DataPack!$S132)))) -> 4 | O24: 33.33333333 | P24: =IF($C$5=Dates1!$B$3, DataPack!$E132, IF($C$5=Dates1!$B$4, DataPack!$J132, IF($C$5=Dates1!$B$5, DataPack!$O132, IF($C$5=Dates1!$B$6, DataPack!$T132)))) -> 2 | Q24: 16.66666667
B25: C2. How effectively do governors and supervisory bodies provide leadership, direction and challenge?2 | I25: 12 | J25: =IF($C$5=Dates1!$B$3, DataPack!$B133, IF($C$5=Dates1!$B$4, DataPack!$G133, IF($C$5=Dates1!$B$5, DataPack!$L133, IF($C$5=Dates1!$B$6, DataPack!$Q133)))) -> 2 | K25: 16.66666667 | L25: =IF($C$5=Dates1!$B$3, DataPack!$C133, IF($C$5=Dates1!$B$4, DataPack!$H133, IF($C$5=Dates1!$B$5, DataPack!$M133, IF($C$5=Dates1!$B$6, DataPack!$R133)))) -> 4 | M25: 33.33333333 | N25: =IF($C$5=Dates1!$B$3, DataPack!$D133, IF($C$5=Dates1!$B$4, DataPack!$I133, IF($C$5=Dates1!$B$5, DataPack!$N133, IF($C$5=Dates1!$B$6, DataPack!$S133)))) -> 3 | O25: 25 | P25: =IF($C$5=Dates1!$B$3, DataPack!$E133, IF($C$5=Dates1!$B$4, DataPack!$J133, IF($C$5=Dates1!$B$5, DataPack!$O133, IF($C$5=Dates1!$B$6, DataPack!$T133)))) -> 3 | Q25: 25
B26: C3. How effectively does the provider promote the safeguarding of learners? | I26: 12 | J26: =IF($C$5=Dates1!$B$3, DataPack!$B134, IF($C$5=Dates1!$B$4, DataPack!$G134, IF($C$5=Dates1!$B$5, DataPack!$L134, IF($C$5=Dates1!$B$6, DataPack!$Q134)))) -> 2 | K26: 16.66666667 | L26: =IF($C$5=Dates1!$B$3, DataPack!$C134, IF($C$5=Dates1!$B$4, DataPack!$H134, IF($C$5=Dates1!$B$5, DataPack!$M134, IF($C$5=Dates1!$B$6, DataPack!$R134)))) -> 6 | M26: 50 | N26: =IF($C$5=Dates1!$B$3, DataPack!$D134, IF($C$5=Dates1!$B$4, DataPack!$I134, IF($C$5=Dates1!$B$5, DataPack!$N134, IF($C$5=Dates1!$B$6, DataPack!$S134)))) -> 3 | O26: 25 | P26: =IF($C$5=Dates1!$B$3, DataPack!$E134, IF($C$5=Dates1!$B$4, DataPack!$J134, IF($C$5=Dates1!$B$5, DataPack!$O134, IF($C$5=Dates1!$B$6, DataPack!$T134)))) -> 1 | Q26: 8.333333333
B27: C4. How effectively does the provider actively promote equality and diversity, tackle discrimination and narrow the achievement gap? | I27: 12 | J27: =IF($C$5=Dates1!$B$3, DataPack!$B135, IF($C$5=Dates1!$B$4, DataPack!$G135, IF($C$5=Dates1!$B$5, DataPack!$L135, IF($C$5=Dates1!$B$6, DataPack!$Q135)))) -> 0 | K27: 0 | L27: =IF($C$5=Dates1!$B$3, DataPack!$C135, IF($C$5=Dates1!$B$4, DataPack!$H135, IF($C$5=Dates1!$B$5, DataPack!$M135, IF($C$5=Dates1!$B$6, DataPack!$R135)))) -> 5 | M27: 41.66666667 | N27: =IF($C$5=Dates1!$B$3, DataPack!$D135, IF($C$5=Dates1!$B$4, DataPack!$I135, IF($C$5=Dates1!$B$5, DataPack!$N135, IF($C$5=Dates1!$B$6, DataPack!$S135)))) -> 5 | O27: 41.66666667 | P27: =IF($C$5=Dates1!$B$3, DataPack!$E135, IF($C$5=Dates1!$B$4, DataPack!$J135, IF($C$5=Dates1!$B$5, DataPack!$O135, IF($C$5=Dates1!$B$6, DataPack!$T135)))) -> 2 | Q27: 16.66666667
B28: C5. How effectively does the provider engage with users to support and promote improvement? | I28: 12 | J28: =IF($C$5=Dates1!$B$3, DataPack!$B136, IF($C$5=Dates1!$B$4, DataPack!$G136, IF($C$5=Dates1!$B$5, DataPack!$L136, IF($C$5=Dates1!$B$6, DataPack!$Q136)))) -> 3 | K28: 25 | L28: =IF($C$5=Dates1!$B$3, DataPack!$C136, IF($C$5=Dates1!$B$4, DataPack!$H136, IF($C$5=Dates1!$B$5, DataPack!$M136, IF($C$5=Dates1!$B$6, DataPack!$R136)))) -> 3 | M28: 25 | N28: =IF($C$5=Dates1!$B$3, DataPack!$D136, IF($C$5=Dates1!$B$4, DataPack!$I136, IF($C$5=Dates1!$B$5, DataPack!$N136, IF($C$5=Dates1!$B$6, DataPack!$S136)))) -> 6 | O28: 50 | P28: =IF($C$5=Dates1!$B$3, DataPack!$E136, IF($C$5=Dates1!$B$4, DataPack!$J136, IF($C$5=Dates1!$B$5, DataPack!$O136, IF($C$5=Dates1!$B$6, DataPack!$T136)))) -> 0 | Q28: 0
B29: C6. How effectively does self-assessment improve the quality of the provision and outcomes for learners? | I29: 12 | J29: =IF($C$5=Dates1!$B$3, DataPack!$B137, IF($C$5=Dates1!$B$4, DataPack!$G137, IF($C$5=Dates1!$B$5, DataPack!$L137, IF($C$5=Dates1!$B$6, DataPack!$Q137)))) -> 2 | K29: 16.66666667 | L29: =IF($C$5=Dates1!$B$3, DataPack!$C137, IF($C$5=Dates1!$B$4, DataPack!$H137, IF($C$5=Dates1!$B$5, DataPack!$M137, IF($C$5=Dates1!$B$6, DataPack!$R137)))) -> 3 | M29: 25 | N29: =IF($C$5=Dates1!$B$3, DataPack!$D137, IF($C$5=Dates1!$B$4, DataPack!$I137, IF($C$5=Dates1!$B$5, DataPack!$N137, IF($C$5=Dates1!$B$6, DataPack!$S137)))) -> 4 | O29: 33.33333333 | P29: =IF($C$5=Dates1!$B$3, DataPack!$E137, IF($C$5=Dates1!$B$4, DataPack!$J137, IF($C$5=Dates1!$B$5, DataPack!$O137, IF($C$5=Dates1!$B$6, DataPack!$T137)))) -> 3 | Q29: 25
B30: C7. How efficiently and effectively does the provider use its available resources to secure value for money? | I30: 12 | J30: =IF($C$5=Dates1!$B$3, DataPack!$B138, IF($C$5=Dates1!$B$4, DataPack!$G138, IF($C$5=Dates1!$B$5, DataPack!$L138, IF($C$5=Dates1!$B$6, DataPack!$Q138)))) -> 2 | K30: 16.66666667 | L30: =IF($C$5=Dates1!$B$3, DataPack!$C138, IF($C$5=Dates1!$B$4, DataPack!$H138, IF($C$5=Dates1!$B$5, DataPack!$M138, IF($C$5=Dates1!$B$6, DataPack!$R138)))) -> 4 | M30: 33.33333333 | N30: =IF($C$5=Dates1!$B$3, DataPack!$D138, IF($C$5=Dates1!$B$4, DataPack!$I138, IF($C$5=Dates1!$B$5, DataPack!$N138, IF($C$5=Dates1!$B$6, DataPack!$S138)))) -> 4 | O30: 33.33333333 | P30: =IF($C$5=Dates1!$B$3, DataPack!$E138, IF($C$5=Dates1!$B$4, DataPack!$J138, IF($C$5=Dates1!$B$5, DataPack!$O138, IF($C$5=Dates1!$B$6, DataPack!$T138)))) -> 2 | Q30: 16.66666667
M31: Source: Ofsted
B32: 1. Percentages are rounded and may not add to exactly 100. Where the number of inspections is small, percentages should be treated with caution.
B33: 2. Where applicable to the type of provision.

Sheet Table 2e
B2: Table 2e: Inspection outcomes of higher education institutes inspected between 1 September 2011 and 31 August 2012 (final)¹
B3: Inspection judgements relate to the further education provision only not providers as a whole
I5: Total number inspected | J5: Outstanding | L5: Good | N5: Satisfactory | P5: Inadequate
I6: Number | J6: Number | K6: % | L6: Number | M6: % | N6: Number | O6: % | P6: Number | Q6: %
B8: Overall effectiveness | I8: 7 | J8: 3 | K8: 42.85714286 | L8: 3 | M8: 42.85714286 | N8: 1 | O8: 14.28571429 | P8: 0 | Q8: 0
B9: Capacity to improve | I9: 7 | J9: 2 | K9: 28.57142857 | L9: 4 | M9: 57.14285714 | N9: 1 | O9: 14.28571429 | P9: 0 | Q9: 0
B10: A. Outcomes for learners | I10: 7 | J10: 3 | K10: 42.85714286 | L10: 3 | M10: 42.85714286 | N10: 1 | O10: 14.28571429 | P10: 0 | Q10: 0
B11: A1. How well do learners achieve and enjoy their learning? | I11: 7 | J11: 3 | K11: 42.85714286 | L11: 3 | M11: 42.85714286 | N11: 1 | O11: 14.28571429 | P11: 0 | Q11: 0
B12: A1.a) How well do learners attain their learning goals? | I12: 7 | J12: 2 | K12: 28.57142857 | L12: 4 | M12: 57.14285714 | N12: 1 | O12: 14.28571429 | P12: 0 | Q12: 0
B13: A1.b) How well do learners progress? | I13: 7 | J13: 3 | K13: 42.85714286 | L13: 3 | M13: 42.85714286 | N13: 1 | O13: 14.28571429 | P13: 0 | Q13: 0
B14: A2. How well do learners improve their economic and social well-being through learning and development? | I14: 7 | J14: 5 | K14: 71.42857143 | L14: 2 | M14: 28.57142857 | N14: 0 | O14: 0 | P14: 0 | Q14: 0
B15: A3. How safe do learners feel? | I15: 7 | J15: 5 | K15: 71.42857143 | L15: 2 | M15: 28.57142857 | N15: 0 | O15: 0 | P15: 0 | Q15: 0
B16: A4. Are learners able to make informed choices about their own health and well being?2 | I16: 2 | J16: 0 | K16: 0 | L16: 1 | M16: 50 | N16: 1 | O16: 50 | P16: 0 | Q16: 0
B17: A5. How well do learners make a positive contribution to the community?2 | I17: 2 | J17: 1 | K17: 50 | L17: 1 | M17: 50 | N17: 0 | O17: 0 | P17: 0 | Q17: 0
B18: B. Quality of provision | I18: 7 | J18: 3 | K18: 42.85714286 | L18: 3 | M18: 42.85714286 | N18: 1 | O18: 14.28571429 | P18: 0 | Q18: 0
B19: B1. How effectively do teaching, training and assessment support learning and development? | I19: 7 | J19: 2 | K19: 28.57142857 | L19: 4 | M19: 57.14285714 | N19: 1 | O19: 14.28571429 | P19: 0 | Q19: 0
B20: B2. How effectively does the provision meet the needs and interests of users? | I20: 7 | J20: 4 | K20: 57.14285714 | L20: 2 | M20: 28.57142857 | N20: 1 | O20: 14.28571429 | P20: 0 | Q20: 0
B21: B3. How well do partnerships with schools, employers, community groups and others lead to benefits for learners? | I21: 7 | J21: 5 | K21: 71.42857143 | L21: 2 | M21: 28.57142857 | N21: 0 | O21: 0 | P21: 0 | Q21: 0
B22: B4. How effective are the care, guidance and support learners receive in helping them to achieve? | I22: 7 | J22: 2 | K22: 28.57142857 | L22: 4 | M22: 57.14285714 | N22: 1 | O22: 14.28571429 | P22: 0 | Q22: 0
B23: C. Leadership and management | I23: 7 | J23: 1 | K23: 14.28571429 | L23: 5 | M23: 71.42857143 | N23: 1 | O23: 14.28571429 | P23: 0 | Q23: 0
B24: C1. How effectively do leaders and managers raise expectations and promote ambition throughout the organisation? | I24: 7 | J24: 3 | K24: 42.85714286 | L24: 4 | M24: 57.14285714 | N24: 0 | O24: 0 | P24: 0 | Q24: 0
B25: C2. How effectively do governors and supervisory bodies provide leadership, direction and challenge?2 | I25: 6 | J25: 1 | K25: 16.66666667 | L25: 3 | M25: 50 | N25: 2 | O25: 33.33333333 | P25: 0 | Q25: 0
B26: C3. How effectively does the provider promote the safeguarding of learners? | I26: 7 | J26: 1 | K26: 14.28571429 | L26: 3 | M26: 42.85714286 | N26: 3 | O26: 42.85714286 | P26: 0 | Q26: 0
B27: C4. How effectively does the provider actively promote equality and diversity, tackle discrimination and narrow the achievement gap? | I27: 7 | J27: 3 | K27: 42.85714286 | L27: 2 | M27: 28.57142857 | N27: 2 | O27: 28.57142857 | P27: 0 | Q27: 0
B28: C5. How effectively does the provider engage with users to support and promote improvement? | I28: 7 | J28: 3 | K28: 42.85714286 | L28: 2 | M28: 28.57142857 | N28: 2 | O28: 28.57142857 | P28: 0 | Q28: 0
B29: C6. How effectively does self-assessment improve the quality of the provision and outcomes for learners? | I29: 7 | J29: 0 | K29: 0 | L29: 5 | M29: 71.42857143 | N29: 2 | O29: 28.57142857 | P29: 0 | Q29: 0
B30: C7. How efficiently and effectively does the provider use its available resources to secure value for money? | I30: 7 | J30: 3 | K30: 42.85714286 | L30: 4 | M30: 57.14285714 | N30: 0 | O30: 0 | P30: 0 | Q30: 0
M31: Source: Ofsted
B32: 1. Percentages are rounded and may not add to 100. Where the number of inspections is small, percentages should be treated with caution.
B33: 2. Where applicable to the type of provision.

Sheet Table 2f
B2: Table 2f: Inspection outcomes of dance and drama colleges inspected between 1 September 2011 and 31 August 2012 (final)¹
B3: Inspection judgements relate to the provision of the Dance and Drama Awards scheme only and not providers as a whole
I5: Total number inspected | J5: Outstanding | L5: Good | N5: Satisfactory | P5: Inadequate
I6: Number | J6: Number | K6: % | L6: Number | M6: % | N6: Number | O6: % | P6: Number | Q6: %
B8: Overall effectiveness | I8: 16 | J8: 5 | K8: 31.25 | L8: 9 | M8: 56.25 | N8: 2 | O8: 12.5 | P8: 0 | Q8: 0
B9: Capacity to improve | I9: 16 | J9: 6 | K9: 37.5 | L9: 8 | M9: 50 | N9: 2 | O9: 12.5 | P9: 0 | Q9: 0
B10: A. Outcomes for learners | I10: 16 | J10: 6 | K10: 37.5 | L10: 9 | M10: 56.25 | N10: 1 | O10: 6.25 | P10: 0 | Q10: 0
B11: A1. How well do learners achieve and enjoy their learning? | I11: 16 | J11: 6 | K11: 37.5 | L11: 9 | M11: 56.25 | N11: 1 | O11: 6.25 | P11: 0 | Q11: 0
B12: A1.a) How well do learners attain their learning goals? | I12: 16 | J12: 6 | K12: 37.5 | L12: 9 | M12: 56.25 | N12: 1 | O12: 6.25 | P12: 0 | Q12: 0
B13: A1.b) How well do learners progress? | I13: 16 | J13: 6 | K13: 37.5 | L13: 9 | M13: 56.25 | N13: 1 | O13: 6.25 | P13: 0 | Q13: 0
B14: A2. How well do learners improve their economic and social well-being through learning and development? | I14: 16 | J14: 6 | K14: 37.5 | L14: 9 | M14: 56.25 | N14: 1 | O14: 6.25 | P14: 0 | Q14: 0
B15: A3. How safe do learners feel? | I15: 16 | J15: 10 | K15: 62.5 | L15: 5 | M15: 31.25 | N15: 1 | O15: 6.25 | P15: 0 | Q15: 0
B16: A4. Are learners able to make informed choices about their own health and well being?2 | I16: 16 | J16: 6 | K16: 37.5 | L16: 10 | M16: 62.5 | N16: 0 | O16: 0 | P16: 0 | Q16: 0
B17: A5. How well do learners make a positive contribution to the community?2 | I17: 4 | J17: 2 | K17: 50 | L17: 2 | M17: 50 | N17: 0 | O17: 0 | P17: 0 | Q17: 0
B18: B. Quality of provision | I18: 16 | J18: 6 | K18: 37.5 | L18: 9 | M18: 56.25 | N18: 1 | O18: 6.25 | P18: 0 | Q18: 0
B19: B1. How effectively do teaching, training and assessment support learning and development? | I19: 16 | J19: 1 | K19: 6.25 | L19: 14 | M19: 87.5 | N19: 1 | O19: 6.25 | P19: 0 | Q19: 0
B20: B2. How effectively does the provision meet the needs and interests of users? | I20: 16 | J20: 7 | K20: 43.75 | L20: 8 | M20: 50 | N20: 1 | O20: 6.25 | P20: 0 | Q20: 0
B21: B3. How well do partnerships with schools, employers, community groups and others lead to benefits for learners? | I21: 16 | J21: 13 | K21: 81.25 | L21: 3 | M21: 18.75 | N21: 0 | O21: 0 | P21: 0 | Q21: 0
B22: B4. How effective are the care, guidance and support learners receive in helping them to achieve? | I22: 16 | J22: 12 | K22: 75 | L22: 3 | M22: 18.75 | N22: 1 | O22: 6.25 | P22: 0 | Q22: 0
B23: C. Leadership and management | I23: 16 | J23: 5 | K23: 31.25 | L23: 9 | M23: 56.25 | N23: 2 | O23: 12.5 | P23: 0 | Q23: 0
B24: C1. How effectively do leaders and managers raise expectations and promote ambition throughout the organisation? | I24: 16 | J24: 8 | K24: 50 | L24: 6 | M24: 37.5 | N24: 2 | O24: 12.5 | P24: 0 | Q24: 0
B25: C2. How effectively do governors and supervisory bodies provide leadership, direction and challenge?2 | I25: 8 | J25: 4 | K25: 50 | L25: 4 | M25: 50 | N25: 0 | O25: 0 | P25: 0 | Q25: 0
B26: C3. How effectively does the provider promote the safeguarding of learners? | I26: 16 | J26: 5 | K26: 31.25 | L26: 10 | M26: 62.5 | N26: 0 | O26: 0 | P26: 1 | Q26: 6.25
B27: C4. How effectively does the provider actively promote equality and diversity, tackle discrimination and narrow the achievement gap? | I27: 16 | J27: 4 | K27: 25 | L27: 12 | M27: 75 | N27: 0 | O27: 0 | P27: 0 | Q27: 0
B28: C5. How effectively does the provider engage with users to support and promote improvement? | I28: 16 | J28: 5 | K28: 31.25 | L28: 10 | M28: 62.5 | N28: 1 | O28: 6.25 | P28: 0 | Q28: 0
B29: C6. How effectively does self-assessment improve the quality of the provision and outcomes for learners? | I29: 16 | J29: 1 | K29: 6.25 | L29: 13 | M29: 81.25 | N29: 2 | O29: 12.5 | P29: 0 | Q29: 0
B30: C7. How efficiently and effectively does the provider use its available resources to secure value for money? | I30: 16 | J30: 6 | K30: 37.5 | L30: 9 | M30: 56.25 | N30: 1 | O30: 6.25 | P30: 0 | Q30: 0
M31: Source: Ofsted
B32: 1. Percentages are rounded and may not add to 100. Where the number of inspections is small, percentages should be treated with caution.
B33: 2. Where applicable to the type of provision.

Sheet Table 2g
B2: Table 2g: Inspection outcomes of independent learning providers inspected between 1 September 2011 and 31 August 2012 (final)¹ ² ³
I5: Total number inspected | J5: Outstanding | L5: Good | N5: Satisfactory | P5: Inadequate
I6: Number | J6: Number | K6: % | L6: Number | M6: % | N6: Number | O6: % | P6: Number | Q6: %
B8: Overall effectiveness | I8: 128 | J8: 9 | K8: 7.03125 | L8: 62 | M8: 48.4375 | N8: 44 | O8: 34.375 | P8: 13 | Q8: 10.15625
B9: Capacity to improve | I9: 127 | J9: 7 | K9: 5.511811024 | L9: 60 | M9: 47.24409449 | N9: 48 | O9: 37.79527559 | P9: 12 | Q9: 9.448818898
B10: A. Outcomes for learners | I10: 128 | J10: 15 | K10: 11.71875 | L10: 63 | M10: 49.21875 | N10: 41 | O10: 32.03125 | P10: 9 | Q10: 7.03125
B11: A1. How well do learners achieve and enjoy their learning? | I11: 127 | J11: 17 | K11: 13.38582677 | L11: 60 | M11: 47.24409449 | N11: 41 | O11: 32.28346457 | P11: 9 | Q11: 7.086614173
B12: A1.a) How well do learners attain their learning goals? | I12: 127 | J12: 18 | K12: 14.17322835 | L12: 52 | M12: 40.94488189 | N12: 48 | O12: 37.79527559 | P12: 9 | Q12: 7.086614173
B13: A1.b) How well do learners progress? | I13: 127 | J13: 17 | K13: 13.38582677 | L13: 61 | M13: 48.03149606 | N13: 41 | O13: 32.28346457 | P13: 8 | Q13: 6.299212598
B14: A2. How well do learners improve their economic and social well-being through learning and development? | I14: 127 | J14: 20 | K14: 15.7480315 | L14: 82 | M14: 64.56692913 | N14: 23 | O14: 18.11023622 | P14: 2 | Q14: 1.57480315
B15: A3. How safe do learners feel? | I15: 127 | J15: 17 | K15: 13.38582677 | L15: 79 | M15: 62.20472441 | N15: 31 | O15: 24.40944882 | P15: 0 | Q15: 0
B16: A4. Are learners able to make informed choices about their own health and well being?4 | I16: 41 | J16: 4 | K16: 9.756097561 | L16: 24 | M16: 58.53658537 | N16: 13 | O16: 31.70731707 | P16: 0 | Q16: 0
B17: A5. How well do learners make a positive contribution to the community?4 | I17: 37 | J17: 4 | K17: 10.81081081 | L17: 24 | M17: 64.86486486 | N17: 8 | O17: 21.62162162 | P17: 1 | Q17: 2.702702703
B18: B. Quality of provision | I18: 127 | J18: 9 | K18: 7.086614173 | L18: 66 | M18: 51.96850394 | N18: 48 | O18: 37.79527559 | P18: 4 | Q18: 3.149606299
B19: B1. How effectively do teaching, training and assessment support learning and development? | I19: 128 | J19: 8 | K19: 6.25 | L19: 64 | M19: 50 | N19: 52 | O19: 40.625 | P19: 4 | Q19: 3.125
B20: B2. How effectively does the provision meet the needs and interests of users? | I20: 127 | J20: 23 | K20: 18.11023622 | L20: 69 | M20: 54.33070866 | N20: 33 | O20: 25.98425197 | P20: 2 | Q20: 1.57480315
B21: B3. How well do partnerships with schools, employers, community groups and others lead to benefits for learners? | I21: 127 | J21: 20 | K21: 15.7480315 | L21: 72 | M21: 56.69291339 | N21: 32 | O21: 25.19685039 | P21: 3 | Q21: 2.362204724
B22: B4. How effective are the care, guidance and support learners receive in helping them to achieve? | I22: 127 | J22: 13 | K22: 10.23622047 | L22: 75 | M22: 59.05511811 | N22: 35 | O22: 27.55905512 | P22: 4 | Q22: 3.149606299
B23: C. Leadership and management | I23: 128 | J23: 9 | K23: 7.03125 | L23: 61 | M23: 47.65625 | N23: 47 | O23: 36.71875 | P23: 11 | Q23: 8.59375
B24: C1. How effectively do leaders and managers raise expectations and promote ambition throughout the organisation? | I24: 127 | J24: 23 | K24: 18.11023622 | L24: 61 | M24: 48.03149606 | N24: 35 | O24: 27.55905512 | P24: 8 | Q24: 6.299212598
B25: C2. How effectively do governors and supervisory bodies provide leadership, direction and challenge?4 | I25: 32 | J25: 3 | K25: 9.375 | L25: 16 | M25: 50 | N25: 12 | O25: 37.5 | P25: 1 | Q25: 3.125
B26: C3. How effectively does the provider promote the safeguarding of learners? | I26: 127 | J26: 13 | K26: 10.23622047 | L26: 66 | M26: 51.96850394 | N26: 46 | O26: 36.22047244 | P26: 2 | Q26: 1.57480315
B27: C4. How effectively does the provider actively promote equality and diversity, tackle discrimination and narrow the achievement gap? | I27: 127 | J27: 2 | K27: 1.57480315 | L27: 53 | M27: 41.73228346 | N27: 67 | O27: 52.75590551 | P27: 5 | Q27: 3.937007874
B28: C5. How effectively does the provider engage with users to support and promote improvement? | I28: 127 | J28: 10 | K28: 7.874015748 | L28: 58 | M28: 45.66929134 | N28: 53 | O28: 41.73228346 | P28: 6 | Q28: 4.724409449
B29: C6. How effectively does self-assessment improve the quality of the provision and outcomes for learners? | I29: 127 | J29: 7 | K29: 5.511811024 | L29: 45 | M29: 35.43307087 | N29: 59 | O29: 46.45669291 | P29: 16 | Q29: 12.5984252
B30: C7. How efficiently and effectively does the provider use its available resources to secure value for money? | I30: 127 | J30: 17 | K30: 13.38582677 | L30: 62 | M30: 48.81889764 | N30: 41 | O30: 32.28346457 | P30: 7 | Q30: 5.511811024
M31: Source: Ofsted
B32: 1. Data include one pilot inspection which grades overall effectiveness, outcomes for learners, teaching and learning and leadership and management.
B33: 2. Percentages are rounded and may not add to 100. Where the number of inspections is small, percentages should be treated with caution.
B34: 3. Includes employer providers
B35: 4. Where applicable to the type of provision.

Sheet Table 2h
B2: Table 2h: Inspection outcomes of adult and community learning providers inspected between 1 September 2011 and 31 August 2012 (final)¹ ²
I5: Total number inspected | J5: Outstanding | L5: Good | N5: Satisfactory | P5: Inadequate
I6: Number | J6: Number | K6: % | L6: Number | M6: % | N6: Number | O6: % | P6: Number | Q6: %
B8: Overall effectiveness | I8: 63 | J8: 3 | K8: 4.761904762 | L8: 37 | M8: 58.73015873 | N8: 20 | O8: 31.74603175 | P8: 3 | Q8: 4.761904762
B9: Capacity to improve | I9: 62 | J9: 3 | K9: 4.838709677 | L9: 35 | M9: 56.4516129 | N9: 20 | O9: 32.25806452 | P9: 4 | Q9: 6.451612903
B10: A. Outcomes for learners | I10: 63 | J10: 3 | K10: 4.761904762 | L10: 37 | M10: 58.73015873 | N10: 20 | O10: 31.74603175 | P10: 3 | Q10: 4.761904762
B11: A1. How well do learners achieve and enjoy their learning? | I11: 62 | J11: 3 | K11: 4.838709677 | L11: 36 | M11: 58.06451613 | N11: 20 | O11: 32.25806452 | P11: 3 | Q11: 4.838709677
B12: A1.a) How well do learners attain their learning goals? | I12: 62 | J12: 4 | K12: 6.451612903 | L12: 26 | M12: 41.93548387 | N12: 29 | O12: 46.77419355 | P12: 3 | Q12: 4.838709677
B13: A1.b) How well do learners progress? | I13: 62 | J13: 2 | K13: 3.225806452 | L13: 41 | M13: 66.12903226 | N13: 15 | O13: 24.19354839 | P13: 4 | Q13: 6.451612903
B14: A2. How well do learners improve their economic and social well-being through learning and development? | I14: 62 | J14: 5 | K14: 8.064516129 | L14: 46 | M14: 74.19354839 | N14: 9 | O14: 14.51612903 | P14: 2 | Q14: 3.225806452
B15: A3. How safe do learners feel? | I15: 62 | J15: 6 | K15: 9.677419355 | L15: 44 | M15: 70.96774194 | N15: 12 | O15: 19.35483871 | P15: 0 | Q15: 0
B16: A4. Are learners able to make informed choices about their own health and well being?3 | I16: 41 | J16: 2 | K16: 4.87804878 | L16: 25 | M16: 60.97560976 | N16: 14 | O16: 34.14634146 | P16: 0 | Q16: 0
B17: A5. How well do learners make a positive contribution to the community?3 | I17: 38 | J17: 6 | K17: 15.78947368 | L17: 23 | M17: 60.52631579 | N17: 9 | O17: 23.68421053 | P17: 0 | Q17: 0
B18: B. Quality of provision | I18: 62 | J18: 2 | K18: 3.225806452 | L18: 44 | M18: 70.96774194 | N18: 15 | O18: 24.19354839 | P18: 1 | Q18: 1.612903226
B19: B1. How effectively do teaching, training and assessment support learning and development? | I19: 63 | J19: 1 | K19: 1.587301587 | L19: 43 | M19: 68.25396825 | N19: 18 | O19: 28.57142857 | P19: 1 | Q19: 1.587301587
B20: B2. How effectively does the provision meet the needs and interests of users? | I20: 62 | J20: 11 | K20: 17.74193548 | L20: 36 | M20: 58.06451613 | N20: 14 | O20: 22.58064516 | P20: 1 | Q20: 1.612903226
B21: B3. How well do partnerships with schools, employers, community groups and others lead to benefits for learners? | I21: 62 | J21: 14 | K21: 22.58064516 | L21: 40 | M21: 64.51612903 | N21: 8 | O21: 12.90322581 | P21: 0 | Q21: 0
B22: B4. How effective are the care, guidance and support learners receive in helping them to achieve? | I22: 62 | J22: 6 | K22: 9.677419355 | L22: 42 | M22: 67.74193548 | N22: 14 | O22: 22.58064516 | P22: 0 | Q22: 0
B23: C. Leadership and management | I23: 63 | J23: 4 | K23: 6.349206349 | L23: 37 | M23: 58.73015873 | N23: 19 | O23: 30.15873016 | P23: 3 | Q23: 4.761904762
B24: C1. How effectively do leaders and managers raise expectations and promote ambition throughout the organisation? | I24: 62 | J24: 11 | K24: 17.74193548 | L24: 30 | M24: 48.38709677 | N24: 18 | O24: 29.03225806 | P24: 3 | Q24: 4.838709677
B25: C2. How effectively do governors and supervisory bodies provide leadership, direction and challenge?3 | I25: 54 | J25: 7 | K25: 12.96296296 | L25: 23 | M25: 42.59259259 | N25: 20 | O25: 37.03703704 | P25: 4 | Q25: 7.407407407
B26: C3. How effectively does the provider promote the safeguarding of learners? | I26: 62 | J26: 3 | K26: 4.838709677 | L26: 42 | M26: 67.74193548 | N26: 17 | O26: 27.41935484 | P26: 0 | Q26: 0
B27: C4. How effectively does the provider actively promote equality and diversity, tackle discrimination and narrow the achievement gap? | I27: 62 | J27: 7 | K27: 11.29032258 | L27: 33 | M27: 53.22580645 | N27: 21 | O27: 33.87096774 | P27: 1 | Q27: 1.612903226
B28: C5. How effectively does the provider engage with users to support and promote improvement? | I28: 62 | J28: 4 | K28: 6.451612903 | L28: 40 | M28: 64.51612903 | N28: 17 | O28: 27.41935484 | P28: 1 | Q28: 1.612903226
B29: C6. How effectively does self-assessment improve the quality of the provision and outcomes for learners? | I29: 62 | J29: 1 | K29: 1.612903226 | L29: 35 | M29: 56.4516129 | N29: 21 | O29: 33.87096774 | P29: 5 | Q29: 8.064516129
B30: C7. How efficiently and effectively does the provider use its available resources to secure value for money? | I30: 62 | J30: 6 | K30: 9.677419355 | L30: 35 | M30: 56.4516129 | N30: 18 | O30: 29.03225806 | P30: 3 | Q30: 4.838709677
M31: Source: Ofsted
B32: 1. Data include one pilot inspection which grades overall effectiveness, outcomes for learners, teaching and learning and leadership and management.
B33: 2. Percentages are rounded and may not add to 100. Where the number of inspections is small, percentages should be treated with caution.
B34: 3. Where applicable to the type of provision.

Sheet Table 2i
B2: Table 2i: Inspection outcomes of Next Step providers inspected between 1 September 2011 and 31 August 2012 (final)¹
I5: Total number inspected | J5: Outstanding | L5: Good | N5: Satisfactory | P5: Inadequate
I6: Number | J6: Number | K6: % | L6: Number | M6: % | N6: Number | O6: % | P6: Number | Q6: %
B8: Overall effectiveness | I8: 2 | J8: 0 | K8: 0 | L8: 2 | M8: 100 | N8: 0 | O8: 0 | P8: 0 | Q8: 0
B9: Capacity to improve | I9: 2 | J9: 0 | K9: 0 | L9: 2 | M9: 100 | N9: 0 | O9: 0 | P9: 0 | Q9: 0
B10: A. Outcomes for learners | I10: 2 | J10: 0 | K10: 0 | L10: 2 | M10: 100 | N10: 0 | O10: 0 | P10: 0 | Q10: 0
B11: A1. How well do learners achieve and enjoy their learning? | I11: 2 | J11: 0 | K11: 0 | L11: 2 | M11: 100 | N11: 0 | O11: 0 | P11: 0 | Q11: 0
B12: A1.a) How well do learners attain their learning goals? | I12: 2 | J12: 0 | K12: 0 | L12: 2 | M12: 100 | N12: 0 | O12: 0 | P12: 0 | Q12: 0
B13: A1.b) How well do learners progress? | I13: 2 | J13: 0 | K13: 0 | L13: 2 | M13: 100 | N13: 0 | O13: 0 | P13: 0 | Q13: 0
B14: A2. How well do learners improve their economic and social well-being through learning and development? | I14: 2 | J14: 0 | K14: 0 | L14: 2 | M14: 100 | N14: 0 | O14: 0 | P14: 0 | Q14: 0
B15: A3. How safe do learners feel? | I15: 2 | J15: 0 | K15: 0 | L15: 2 | M15: 100 | N15: 0 | O15: 0 | P15: 0 | Q15: 0
B16: A4. Are learners able to make informed choices about their own health and well being?2 | I16: 0 | J16: 0 | K16: 0 | L16: 0 | M16: 0 | N16: 0 | O16: 0 | P16: 0 | Q16: 0
B17: A5. How well do learners make a positive contribution to the community?2 | I17: 1 | J17: 0 | K17: 0 | L17: 1 | M17: 100 | N17: 0 | O17: 0 | P17: 0 | Q17: 0
B18: B. Quality of provision | I18: 2 | J18: 0 | K18: 0 | L18: 2 | M18: 100 | N18: 0 | O18: 0 | P18: 0 | Q18: 0
B19: B1. How effectively do teaching, training and assessment support learning and development? | I19: 2 | J19: 0 | K19: 0 | L19: 2 | M19: 100 | N19: 0 | O19: 0 | P19: 0 | Q19: 0
B20: B2. How effectively does the provision meet the needs and interests of users? | I20: 2 | J20: 0 | K20: 0 | L20: 2 | M20: 100 | N20: 0 | O20: 0 | P20: 0 | Q20: 0
B21: B3. How well do partnerships with schools, employers, community groups and others lead to benefits for learners? | I21: 2 | J21: 0 | K21: 0 | L21: 2 | M21: 100 | N21: 0 | O21: 0 | P21: 0 | Q21: 0
B22: B4. How effective are the care, guidance and support learners receive in helping them to achieve? | I22: 2 | J22: 0 | K22: 0 | L22: 2 | M22: 100 | N22: 0 | O22: 0 | P22: 0 | Q22: 0
B23: C. Leadership and management | I23: 2 | J23: 0 | K23: 0 | L23: 2 | M23: 100 | N23: 0 | O23: 0 | P23: 0 | Q23: 0
B24: C1. How effectively do leaders and managers raise expectations and promote ambition throughout the organisation? | I24: 2 | J24: 0 | K24: 0 | L24: 2 | M24: 100 | N24: 0 | O24: 0 | P24: 0 | Q24: 0
B25: C2. How effectively do governors and supervisory bodies provide leadership, direction and challenge?2 | I25: 0 | J25: 0 | K25: 0 | L25: 0 | M25: 0 | N25: 0 | O25: 0 | P25: 0 | Q25: 0
B26: C3. How effectively does the provider promote the safeguarding of learners? | I26: 2 | J26: 0 | K26: 0 | L26: 2 | M26: 100 | N26: 0 | O26: 0 | P26: 0 | Q26: 0
B27: C4. How effectively does the provider actively promote equality and diversity, tackle discrimination and narrow the achievement gap? | I27: 2 | J27: 0 | K27: 0 | L27: 2 | M27: 100 | N27: 0 | O27: 0 | P27: 0 | Q27: 0
B28: C5. How effectively does the provider engage with users to support and promote improvement? | I28: 2 | J28: 0 | K28: 0 | L28: 2 | M28: 100 | N28: 0 | O28: 0 | P28: 0 | Q28: 0
B29: C6. How effectively does self-assessment improve the quality of the provision and outcomes for learners? | I29: 2 | J29: 0 | K29: 0 | L29: 1 | M29: 50 | N29: 1 | O29: 50 | P29: 0 | Q29: 0
B30: C7. How efficiently and effectively does the provider use its available resources to secure value for money? | I30: 2 | J30: 0 | K30: 0 | L30: 2 | M30: 100 | N30: 0 | O30: 0 | P30: 0 | Q30: 0
M31: Source: Ofsted
B32: 1. Percentages are rounded and may not add to 100. Where the number of inspections is small, percentages should be treated with caution.
B33: 2. Where applicable to the type of provision.

Sheet Table 2j
B2: Table 2j: Inspection outcomes of prison and young offender institutions inspected between 1 September 2011 and 31 August 2012 (final)¹
I5: Total number inspected | J5: Outstanding | L5: Good | N5: Satisfactory | P5: Inadequate
I6: Number | J6: Number | K6: % | L6: Number | M6: % | N6: Number | O6: % | P6: Number | Q6: %
B8: Overall effectiveness | I8: 6 | J8: 0 | K8: 0 | L8: 3 | M8: 50 | N8: 2 | O8: 33.33333333 | P8: 1 | Q8: 16.66666667
B9: Capacity to improve | I9: 6 | J9: 0 | K9: 0 | L9: 3 | M9: 50 | N9: 2 | O9: 33.33333333 | P9: 1 | Q9: 16.66666667
B10: A. Outcomes for learners | I10: 6 | J10: 1 | K10: 16.66666667 | L10: 3 | M10: 50 | N10: 2 | O10: 33.33333333 | P10: 0 | Q10: 0
B11: A1. How well do learners achieve and enjoy their learning? | I11: 6 | J11: 1 | K11: 16.66666667 | L11: 3 | M11: 50 | N11: 2 | O11: 33.33333333 | P11: 0 | Q11: 0
B12: A1.a) How well do learners attain their learning goals? | I12: 6 | J12: 1 | K12: 16.66666667 | L12: 3 | M12: 50 | N12: 2 | O12: 33.33333333 | P12: 0 | Q12: 0
B13: A1.b) How well do learners progress? | I13: 6 | J13: 1 | K13: 16.66666667 | L13: 3 | M13: 50 | N13: 2 | O13: 33.33333333 | P13: 0 | Q13: 0
B14: A2. How well do learners improve their economic and social well-being through learning and development? | I14: 6 | J14: 1 | K14: 16.66666667 | L14: 1 | M14: 16.66666667 | N14: 4 | O14: 66.66666667 | P14: 0 | Q14: 0
B15: A3. How safe do learners feel? | I15: 6 | J15: 0 | K15: 0 | L15: 4 | M15: 66.66666667 | N15: 2 | O15: 33.33333333 | P15: 0 | Q15: 0
B16: A4. Are learners able to make informed choices about their own health and well being?2 | I16: 1 | J16: 0 | K16: 0 | L16: 1 | M16: 100 | N16: 0 | O16: 0 | P16: 0 | Q16: 0
B17: A5. How well do learners make a positive contribution to the community?2 | I17: 2 | J17: 1 | K17: 50 | L17: 1 | M17: 50 | N17: 0 | O17: 0 | P17: 0 | Q17: 0
B18: B. Quality of provision | I18: 6 | J18: 0 | K18: 0 | L18: 3 | M18: 50 | N18: 3 | O18: 50 | P18: 0 | Q18: 0
B19: B1. How effectively do teaching, training and assessment support learning and development? | I19: 6 | J19: 0 | K19: 0 | L19: 2 | M19: 33.33333333 | N19: 4 | O19: 66.66666667 | P19: 0 | Q19: 0
B20: B2. How effectively does the provision meet the needs and interests of users? | I20: 6 | J20: 0 | K20: 0 | L20: 3 | M20: 50 | N20: 2 | O20: 33.33333333 | P20: 1 | Q20: 16.66666667
B21: B3. How well do partnerships with schools, employers, community groups and others lead to benefits for learners? | I21: 6 | J21: 1 | K21: 16.66666667 | L21: 2 | M21: 33.33333333 | N21: 3 | O21: 50 | P21: 0 | Q21: 0
B22: B4. How effective are the care, guidance and support learners receive in helping them to achieve? | I22: 6 | J22: 0 | K22: 0 | L22: 2 | M22: 33.33333333 | N22: 4 | O22: 66.66666667 | P22: 0 | Q22: 0
B23: C. Leadership and management | I23: 6 | J23: 0 | K23: 0 | L23: 3 | M23: 50 | N23: 2 | O23: 33.33333333 | P23: 1 | Q23: 16.66666667
B24: C1. How effectively do leaders and managers raise expectations and promote ambition throughout the organisation? | I24: 6 | J24: 0 | K24: 0 | L24: 4 | M24: 66.66666667 | N24: 1 | O24: 16.66666667 | P24: 1 | Q24: 16.66666667
B25: C2. How effectively do governors and supervisory bodies provide leadership, direction and challenge?2 | I25: 0 | J25: 0 | K25: 0 | L25: 0 | M25: 0 | N25: 0 | O25: 0 | P25: 0 | Q25: 0
B26: C3. How effectively does the provider promote the safeguarding of learners? | I26: 6 | J26: 0 | K26: 0 | L26: 3 | M26: 50 | N26: 3 | O26: 50 | P26: 0 | Q26: 0
B27: C4. How effectively does the provider actively promote equality and diversity, tackle discrimination and narrow the achievement gap? | I27: 6 | J27: 0 | K27: 0 | L27: 2 | M27: 33.33333333 | N27: 4 | O27: 66.66666667 | P27: 0 | Q27: 0
B28: C5. How effectively does the provider engage with users to support and promote improvement? | I28: 6 | J28: 0 | K28: 0 | L28: 4 | M28: 66.66666667 | N28: 1 | O28: 16.66666667 | P28: 1 | Q28: 16.66666667
B29: C6. How effectively does self-assessment improve the quality of the provision and outcomes for learners? | I29: 6 | J29: 0 | K29: 0 | L29: 2 | M29: 33.33333333 | N29: 3 | O29: 50 | P29: 1 | Q29: 16.66666667
B30: C7. How efficiently and effectively does the provider use its available resources to secure value for money? | I30: 6 | J30: 0 | K30: 0 | L30: 3 | M30: 50 | N30: 2 | O30: 33.33333333 | P30: 1 | Q30: 16.66666667
M31: Source: Ofsted
B32: 1. Percentages are rounded and may not add to 100. Where the number of inspections is small, percentages should be treated with caution.
B33: 2. Where applicable to the type of provision.

Sheet Table 2k
B2: Table 2k: Inspection outcomes of probation trusts inspected between 1 September 2011 and 31 August 2012 (final)¹
I5: Total number inspected | J5: Outstanding | L5: Good | N5: Satisfactory | P5: Inadequate
I6: Number | J6: Number | K6: % | L6: Number | M6: % | N6: Number | O6: % | P6: Number | Q6: %
B8: Overall effectiveness | I8: 6 | J8: 0 | K8: 0 | L8: 2 | M8: 33.33333333 | N8: 4 | O8: 66.66666667 | P8: 0 | Q8: 0
B9: Capacity to improve | I9: 6 | J9: 0 | K9: 0 | L9: 2 | M9: 33.33333333 | N9: 4 | O9: 66.66666667 | P9: 0 | Q9: 0
B10: A. Outcomes for learners | I10: 6 | J10: 0 | K10: 0 | L10: 2 | M10: 33.33333333 | N10: 4 | O10: 66.66666667 | P10: 0 | Q10: 0
B11: A1. How well do learners achieve and enjoy their learning? | I11: 6 | J11: 0 | K11: 0 | L11: 2 | M11: 33.33333333 | N11: 4 | O11: 66.66666667 | P11: 0 | Q11: 0
B12: A1.a) How well do learners attain their learning goals? | I12: 6 | J12: 0 | K12: 0 | L12: 2 | M12: 33.33333333 | N12: 3 | O12: 50 | P12: 1 | Q12: 16.66666667
B13: A1.b) How well do learners progress? | I13: 6 | J13: 0 | K13: 0 | L13: 2 | M13: 33.33333333 | N13: 4 | O13: 66.66666667 | P13: 0 | Q13: 0
B14: A2. How well do learners improve their economic and social well-being through learning and development? | I14: 6 | J14: 0 | K14: 0 | L14: 4 | M14: 66.66666667 | N14: 2 | O14: 33.33333333 | P14: 0 | Q14: 0
B15: A3. How safe do learners feel? | I15: 6 | J15: 0 | K15: 0 | L15: 2 | M15: 33.33333333 | N15: 4 | O15: 66.66666667 | P15: 0 | Q15: 0
B16: A4. Are learners able to make informed choices about their own health and well being?2 | I16: 1 | J16: 0 | K16: 0 | L16: 1 | M16: 100 | N16: 0 | O16: 0 | P16: 0 | Q16: 0
B17: A5. How well do learners make a positive contribution to the community?2 | I17: 3 | J17: 0 | K17: 0 | L17: 3 | M17: 100 | N17: 0 | O17: 0 | P17: 0 | Q17: 0
B18: B. Quality of provision | I18: 6 | J18: 0 | K18: 0 | L18: 3 | M18: 50 | N18: 2 | O18: 33.33333333 | P18: 1 | Q18: 16.66666667
B19: B1. How effectively do teaching, training and assessment support learning and development? | I19: 6 | J19: 0 | K19: 0 | L19: 4 | M19: 66.66666667 | N19: 1 | O19: 16.66666667 | P19: 1 | Q19: 16.66666667
B20: B2. How effectively does the provision meet the needs and interests of users? | I20: 6 | J20: 0 | K20: 0 | L20: 2 | M20: 33.33333333 | N20: 3 | O20: 50 | P20: 1 | Q20: 16.66666667
B21: B3. How well do partnerships with schools, employers, community groups and others lead to benefits for learners? | I21: 6 | J21: 0 | K21: 0 | L21: 3 | M21: 50 | N21: 3 | O21: 50 | P21: 0 | Q21: 0
B22: B4. How effective are the care, guidance and support learners receive in helping them to achieve? | I22: 6 | J22: 0 | K22: 0 | L22: 4 | M22: 66.66666667 | N22: 1 | O22: 16.66666667 | P22: 1 | Q22: 16.66666667
B23: C. Leadership and management | I23: 6 | J23: 0 | K23: 0 | L23: 2 | M23: 33.33333333 | N23: 4 | O23: 66.66666667 | P23: 0 | Q23: 0
B24: C1. How effectively do leaders and managers raise expectations and promote ambition throughout the organisation? | I24: 6 | J24: 0 | K24: 0 | L24: 2 | M24: 33.33333333 | N24: 4 | O24: 66.66666667 | P24: 0 | Q24: 0
B25: C2. How effectively do governors and supervisory bodies provide leadership, direction and challenge?2 | I25: 0 | J25: 0 | K25: 0 | L25: 0 | M25: 0 | N25: 0 | O25: 0 | P25: 0 | Q25: 0
B26: C3. How effectively does the provider promote the safeguarding of learners? | I26: 6 | J26: 0 | K26: 0 | L26: 0 | M26: 0 | N26: 6 | O26: 100 | P26: 0 | Q26: 0
B27: C4. How effectively does the provider actively promote equality and diversity, tackle discrimination and narrow the achievement gap? | I27: 6 | J27: 0 | K27: 0 | L27: 2 | M27: 33.33333333 | N27: 4 | O27: 66.66666667 | P27: 0 | Q27: 0
B28: C5. How effectively does the provider engage with users to support and promote improvement? | I28: 6 | J28: 0 | K28: 0 | L28: 3 | M28: 50 | N28: 3 | O28: 50 | P28: 0 | Q28: 0
B29: C6. How effectively does self-assessment improve the quality of the provision and outcomes for learners? | I29: 6 | J29: 0 | K29: 0 | L29: 0 | M29: 0 | N29: 3 | O29: 50 | P29: 3 | Q29: 50
B30: C7. How efficiently and effectively does the provider use its available resources to secure value for money? | I30: 6 | J30: 0 | K30: 0 | L30: 4 | M30: 66.66666667 | N30: 2 | O30: 33.33333333 | P30: 0 | Q30: 0
M31: Source: Ofsted
B32: 1. Percentages are rounded and may not add to 100. Where the number of inspections is small, percentages should be treated with caution.
B33: 2. Where applicable to the type of provision.

Sheet Table 3
B2: Table 3: Learning and skills providers judged inadequate between 1 September 2011 and 31 August 2012 (final)
B6: URN | C6: Provider name | F6: Type of provider | G6: Date of inspection
B8: 52120 | D8: Hampstead Garden Suburb Institute | F8: Adult and community learning provider | G8: 2011-09-30
B9: 58587 | D9: Capital Engineering Group Holdings Ltd | F9: Independent learning provider | G9: 2011-10-07
B10: 54472 | D10: Southbank Training Limited | F10: Independent learning provider | G10: 2011-10-21
B11: 58966 | D11: Travis Perkins Plc | F11: Independent learning provider - employer | G11: 2011-11-04
B12: 58927 | D12: ISS UK Limited | F12: Independent learning provider - employer | G12: 2011-11-25
B13: 58198 | D13: Polestar UK Print Limited | F13: Independent learning provider - employer | G13: 2011-12-16
B14: 52266 | D14: HMP Dartmoor | F14: Prisons | G14: 2011-12-16
B15: 50720 | D15: Birmingham Rathbone Society | F15: Adult and community learning provider | G15: 2012-01-20
B16: 54434 | D16: Smart Training and Recruitment Limited | F16: Independent learning provider | G16: 2012-02-03
B17: 54055 | D17: RW Rechere and Associates Ltd | F17: Independent learning provider | G17: 2012-02-10
B18: 55459 | D18: Barford Education and Training (North East) Limited | F18: Independent learning provider | G18: 2012-03-16
B19: 58992 | D19: Dunelm Group Plc | F19: Independent learning provider - employer | G19: 2012-05-11
B20: 52040 | D20: Greenspring Training | F20: Adult and community learning provider | G20: 2012-05-18
B21: 59019 | D21: Rexel UK Limited | F21: Independent learning provider - employer | G21: 2012-06-29
B22: 58193 | D22: Parenta Training Limited | F22: Independent learning provider | G22: 2012-07-26
B23: 58716 | D23: Cornerstone (Leicester) Limited | F23: Independent learning provider | G23: 2012-08-09
B24: 58991 | D24: LOTA Training | F24: Independent learning provider | G24: 2012-08-24
B25: 130699 | D25: Totton College | F25: Sixth form college | G25: 2011-09-30
B26: 130433 | D26: Coulsdon Sixth Form College | F26: Sixth form college | G26: 2011-10-21
B27: 132980 | D27: Treloar College | F27: Independent specialist college | G27: 2011-11-10
B28: 130665 | D28: Sussex Coast College Hastings | F28: General further education/tertiary college | G28: 2011-11-25
B29: 130588 | D29: John Leggott Sixth Form College | F29: Sixth form college | G29: 2011-11-25
B30: 130417 | D30: Southwark College | F30: General further education/tertiary college | G30: 2011-12-09
B31: 130486 | D31: Knowsley Community College | F31: General further education/tertiary college | G31: 2012-02-10
B32: 130621 | D32: Macclesfield College | F32: General further education/tertiary college | G32: 2012-02-24
B33: 130413 | D33: Lambeth College | F33: General further education/tertiary college | G33: 2012-02-24
B34: 130484 | D34: City of Wolverhampton College | F34: General further education/tertiary college | G34: 2012-02-24
B35: 130586 | D35: Franklin College | F35: Sixth form college | G35: 2012-02-24
B36: 50539 | D36: Aspin House | F36: Independent specialist college | G36: 2012-03-22
B37: 130813 | D37: Stafford College | F37: General further education/tertiary college | G37: 2012-04-20
F38: Source: Ofsted

Sheet Chart 1
B2: ="Chart 1: Overall effectiveness of learning and skills providers inspected " & IF('Chart 1'!$C$4=Dates1!$B$3, "between " & Dates1!$B$3, IF('Chart 1'!$C$4 = Dates1!B3, "in "&Dates1!B3, IF('Chart 1'!$C$4=Dates1!B4,"in "& Dates1!B4, IF('Chart 1'!$C$4=Dates1!B5,"in "& Dates1!B5, IF('Chart 1'!$C$4=Dates1!B6, "in " & Dates1!B6, IF('Chart 1'!$C$4=Dates1!B7, "in " & Dates1!B7)))))) & " (final)"&CHAR(185)&" "&CHAR(178) -> Chart 1: Overall effectiveness of learning and skills providers inspected between 1 September 2011 and 31 August 2012 (final)¹ ²
B4: Select period: | C4: 1 September 2011 and 31 August 2012
B6: Number of providers
C7: Total number inspected | D7: Overall effectiveness
D8: Outstanding | E8: Good | F8: Satisfactory | G8: Inadequate | K8: Outstanding | L8: Good | M8: Satisfactory | N8: Inadequate
B9: ="All colleges (" & C9 & ")"& CHAR(179) -> All colleges (70)³ | C9: =SUM(D9:G9) -> 70 | D9: =IF($C$4=Dates1!$B$3, DataPack!$B38, IF($C$4=Dates1!$B$4, DataPack!$G38, IF($C$4=Dates1!$B$5, DataPack!$L38, IF($C$4=Dates1!$B$6, DataPack!$Q38)))) -> 4 | E9: =IF($C$4=Dates1!$B$3, DataPack!$C38, IF($C$4=Dates1!$B$4, DataPack!$H38, IF($C$4=Dates1!$B$5, DataPack!$M38, IF($C$4=Dates1!$B$6, DataPack!$R38)))) -> 23 | F9: =IF($C$4=Dates1!$B$3, DataPack!$D38, IF($C$4=Dates1!$B$4, DataPack!$I38, IF($C$4=Dates1!$B$5, DataPack!$N38, IF($C$4=Dates1!$B$6, DataPack!$S38)))) -> 30 | G9: =IF($C$4=Dates1!$B$3, DataPack!$E38, IF($C$4=Dates1!$B$4, DataPack!$J38, IF($C$4=Dates1!$B$5, DataPack!$O38, IF($C$4=Dates1!$B$6, DataPack!$T38)))) -> 13 | J9: All colleges (70)³ | K9: =D9/C9*100 -> 5.714285714 | L9: =E9/$C9*100 -> 32.85714286 | M9: =F9/$C9*100 -> 42.85714286 | N9: =G9/$C9*100 -> 18.57142857
B10: ="GFEC/TC (" & C10 & ")" -> GFEC/TC (45) | C10: =SUM(D10:G10) -> 45 | D10: =IF($C$4=Dates1!$B$3, DataPack!$B64, IF($C$4=Dates1!$B$4, DataPack!$G64, IF($C$4=Dates1!$B$5, DataPack!$L64, IF($C$4=Dates1!$B$6, DataPack!$Q64)))) -> 2 | E10: =IF($C$4=Dates1!$B$3, DataPack!$C64, IF($C$4=Dates1!$B$4, DataPack!$H64, IF($C$4=Dates1!$B$5, DataPack!$M64, IF($C$4=Dates1!$B$6, DataPack!$R64)))) -> 14 | F10: =IF($C$4=Dates1!$B$3, DataPack!$D64, IF($C$4=Dates1!$B$4, DataPack!$I64, IF($C$4=Dates1!$B$5, DataPack!$N64, IF($C$4=Dates1!$B$6, DataPack!$S64)))) -> 22 | G10: =IF($C$4=Dates1!$B$3, DataPack!$E64, IF($C$4=Dates1!$B$4, DataPack!$J64, IF($C$4=Dates1!$B$5, DataPack!$O64, IF($C$4=Dates1!$B$6, DataPack!$T64)))) -> 7 | J10: GFEC/TC (45) | K10: =D10/C10*100 -> 4.444444444 | L10: =E10/C10*100 -> 31.11111111 | M10: =F10/$C10*100 -> 48.88888889 | N10: =G10/$C10*100 -> 15.55555556
B11: ="SFC (" & C11 & ")" -> SFC (13) | C11: 13 | D11: =IF($C$4=Dates1!$B$3, DataPack!$B90, IF($C$4=Dates1!$B$4, DataPack!$G90, IF($C$4=Dates1!$B$5, DataPack!$L90, IF($C$4=Dates1!$B$6, DataPack!$Q90)))) -> 0 | E11: =IF($C$4=Dates1!$B$3, DataPack!$C90, IF($C$4=Dates1!$B$4, DataPack!$H90, IF($C$4=Dates1!$B$5, DataPack!$M90, IF($C$4=Dates1!$B$6, DataPack!$R90)))) -> 5 | F11: =IF($C$4=Dates1!$B$3, DataPack!$D90, IF($C$4=Dates1!$B$4, DataPack!$I90, IF($C$4=Dates1!$B$5, DataPack!$N90, IF($C$4=Dates1!$B$6, DataPack!$S90)))) -> 4 | G11: =IF($C$4=Dates1!$B$3, DataPack!$E90, IF($C$4=Dates1!$B$4, DataPack!$J90, IF($C$4=Dates1!$B$5, DataPack!$O90, IF($C$4=Dates1!$B$6, DataPack!$T90)))) -> 4 | J11: SFC (13) | K11: 0 | L11: 38.46153846 | M11: 30.76923077 | N11: 30.76923077
B12: ="ISC (" & C12 & ")" -> ISC (12) | C12: 12 | D12: =IF($C$4=Dates1!$B$3, DataPack!$B116, IF($C$4=Dates1!$B$4, DataPack!$G116, IF($C$4=Dates1!$B$5, DataPack!$L116, IF($C$4=Dates1!$B$6, DataPack!$Q116)))) -> 2 | E12: =IF($C$4=Dates1!$B$3, DataPack!$C116, IF($C$4=Dates1!$B$4, DataPack!$H116, IF($C$4=Dates1!$B$5, DataPack!$M116, IF($C$4=Dates1!$B$6, DataPack!$R116)))) -> 4 | F12: =IF($C$4=Dates1!$B$3, DataPack!$D116, IF($C$4=Dates1!$B$4, DataPack!$I116, IF($C$4=Dates1!$B$5, DataPack!$N116, IF($C$4=Dates1!$B$6, DataPack!$S116)))) -> 4 | G12: =IF($C$4=Dates1!$B$3, DataPack!$E116, IF($C$4=Dates1!$B$4, DataPack!$J116, IF($C$4=Dates1!$B$5, DataPack!$O116, IF($C$4=Dates1!$B$6, DataPack!$T116)))) -> 2 | J12: ISC (12) | K12: 16.66666667 | L12: 33.33333333 | M12: 33.33333333 | N12: 16.66666667
B13: ="HEI (" & C13 & ")" -> HEI (7) | C13: =SUM(D13:G13) -> 7 | D13: =DataPack!B142 -> 3 | E13: =DataPack!C142 -> 3 | F13: =DataPack!D142 -> 1 | G13: =DataPack!E142 -> 0 | J13: HEI (7) | K13: 42.85714286 | L13: 42.85714286 | M13: 14.28571429 | N13: 0
B14: ="Dada (" & C14 & ")" -> Dada (16) | C14: =SUM(D14:G14) -> 16 | D14: =DataPack!B168 -> 5 | E14: =DataPack!C168 -> 9 | F14: =DataPack!D168 -> 2 | G14: =DataPack!E168 -> 0 | J14: Dada (16) | K14: 31.25 | L14: 56.25 | M14: 12.5 | N14: 0
B15: ="ILP (" & C15 & ")" -> ILP (128) | C15: 128 | D15: =IF($C$4=Dates1!$B$3, DataPack!$B194, IF($C$4=Dates1!$B$4, DataPack!$G194, IF($C$4=Dates1!$B$5, DataPack!$L194, IF($C$4=Dates1!$B$6, DataPack!$Q194)))) -> 9 | E15: =IF($C$4=Dates1!$B$3, DataPack!$C194, IF($C$4=Dates1!$B$4, DataPack!$H194, IF($C$4=Dates1!$B$5, DataPack!$M194, IF($C$4=Dates1!$B$6, DataPack!$R194)))) -> 62 | F15: =IF($C$4=Dates1!$B$3, DataPack!$D194, IF($C$4=Dates1!$B$4, DataPack!$I194, IF($C$4=Dates1!$B$5, DataPack!$N194, IF($C$4=Dates1!$B$6, DataPack!$S194)))) -> 44 | G15: =IF($C$4=Dates1!$B$3, DataPack!$E194, IF($C$4=Dates1!$B$4, DataPack!$J194, IF($C$4=Dates1!$B$5, DataPack!$O194, IF($C$4=Dates1!$B$6, DataPack!$T194)))) -> 13 | J15: ILP (128) | K15: 7.03125 | L15: 48.4375 | M15: 34.375 | N15: 10.15625
B16: ="ACL (" & C16 & ")" -> ACL (63) | C16: 63 | D16: =IF($C$4=Dates1!$B$3, DataPack!$B220, IF($C$4=Dates1!$B$4, DataPack!$G220, IF($C$4=Dates1!$B$5, DataPack!$L220, IF($C$4=Dates1!$B$6, DataPack!$Q220)))) -> 3 | E16: =IF($C$4=Dates1!$B$3, DataPack!$C220, IF($C$4=Dates1!$B$4, DataPack!$H220, IF($C$4=Dates1!$B$5, DataPack!$M220, IF($C$4=Dates1!$B$6, DataPack!$R220)))) -> 37 | F16: =IF($C$4=Dates1!$B$3, DataPack!$D220, IF($C$4=Dates1!$B$4, DataPack!$I220, IF($C$4=Dates1!$B$5, DataPack!$N220, IF($C$4=Dates1!$B$6, DataPack!$S220)))) -> 20 | G16: =IF($C$4=Dates1!$B$3, DataPack!$E220, IF($C$4=Dates1!$B$4, DataPack!$J220, IF($C$4=Dates1!$B$5, DataPack!$O220, IF($C$4=Dates1!$B$6, DataPack!$T220)))) -> 3 | J16: ACL (63) | K16: 4.761904762 | L16: 58.73015873 | M16: 31.74603175 | N16: 4.761904762
B17: ="Next Step (" & C17 & ")" -> Next Step (2) | C17: 2 | D17: =IF($C$4=Dates1!$B$3, DataPack!$B246, IF($C$4=Dates1!$B$4, DataPack!$G246, IF($C$4=Dates1!$B$5, DataPack!$L246, IF($C$4=Dates1!$B$6, DataPack!$Q246)))) -> 0 | E17: =IF($C$4=Dates1!$B$3, DataPack!$C246, IF($C$4=Dates1!$B$4, DataPack!$H246, IF($C$4=Dates1!$B$5, DataPack!$M246, IF($C$4=Dates1!$B$6, DataPack!$R246)))) -> 2 | F17: =IF($C$4=Dates1!$B$3, DataPack!$D246, IF($C$4=Dates1!$B$4, DataPack!$I246, IF($C$4=Dates1!$B$5, DataPack!$N246, IF($C$4=Dates1!$B$6, DataPack!$S246)))) -> 0 | G17: =IF($C$4=Dates1!$B$3, DataPack!$E246, IF($C$4=Dates1!$B$4, DataPack!$J246, IF($C$4=Dates1!$B$5, DataPack!$O246, IF($C$4=Dates1!$B$6, DataPack!$T246)))) -> 0 | J17: Next Step (2) | K17: 0 | L17: 100 | M17: 0 | N17: 0
B18: ="Prison/YOI (" & C18 & ")"&"⁴" -> Prison/YOI (6)⁴ | C18: 6 | D18: =IF($C$4=Dates1!$B$3, DataPack!$B272, IF($C$4=Dates1!$B$4, DataPack!$G272, IF($C$4=Dates1!$B$5, DataPack!$L272, IF($C$4=Dates1!$B$6, DataPack!$Q272)))) -> 0 | E18: =IF($C$4=Dates1!$B$3, DataPack!$C272, IF($C$4=Dates1!$B$4, DataPack!$H272, IF($C$4=Dates1!$B$5, DataPack!$M272, IF($C$4=Dates1!$B$6, DataPack!$R272)))) -> 3 | F18: =IF($C$4=Dates1!$B$3, DataPack!$D272, IF($C$4=Dates1!$B$4, DataPack!$I272, IF($C$4=Dates1!$B$5, DataPack!$N272, IF($C$4=Dates1!$B$6, DataPack!$S272)))) -> 2 | G18: =IF($C$4=Dates1!$B$3, DataPack!$E272, IF($C$4=Dates1!$B$4, DataPack!$J272, IF($C$4=Dates1!$B$5, DataPack!$O272, IF($C$4=Dates1!$B$6, DataPack!$T272)))) -> 1 | J18: Prison/YOI (6)⁴ | K18: 0 | L18: 50 | M18: 33.33333333 | N18: 16.66666667
B19: ="Probation (" & C19 & ")" -> Probation (6) | C19: 6 | D19: =IF($C$4=Dates1!$B$3, DataPack!$B298, IF($C$4=Dates1!$B$4, DataPack!$G298, IF($C$4=Dates1!$B$5, DataPack!$L298, IF($C$4=Dates1!$B$6, DataPack!$Q298)))) -> 0 | E19: =IF($C$4=Dates1!$B$3, DataPack!$C298, IF($C$4=Dates1!$B$4, DataPack!$H298, IF($C$4=Dates1!$B$5, DataPack!$M298, IF($C$4=Dates1!$B$6, DataPack!$R298)))) -> 2 | F19: =IF($C$4=Dates1!$B$3, DataPack!$D298, IF($C$4=Dates1!$B$4, DataPack!$I298, IF($C$4=Dates1!$B$5, DataPack!$N298, IF($C$4=Dates1!$B$6, DataPack!$S298)))) -> 4 | G19: =IF($C$4=Dates1!$B$3, DataPack!$E298, IF($C$4=Dates1!$B$4, DataPack!$J298, IF($C$4=Dates1!$B$5, DataPack!$O298, IF($C$4=Dates1!$B$6, DataPack!$T298)))) -> 0 | J19: Probation (6) | K19: 0 | L19: 33.33333333 | M19: 66.66666667 | N19: 0
G20: Source: Ofsted
B43: 1. Percentages are rounded and may not add to exactly 100. Percentages should be viewed with caution where the number of providers is small.
B44: 2. GFEC/TC: general further education college/tertiary college (includes specialist further education colleges); SFC: sixth form college; ISC: independent specialist college; HEI: Further education in higher education institutions; Dada: Dance and Drama Awards Scheme; ILP: independent learning provider (includes employer providers); ACL: adult and community learning provider; YOI: young offender institution.
B45: 3. Includes general further education college/tertiary college, sixth form college, specialist further education college and independent specialist college.
B46: 4. Prison inspections between 1 September 2011 and 31 December 2011 only. From January 2012 Ofsted no longer awards an overall effectiveness judgement for prisons.

Sheet Chart 2
B2: ="Chart 2: Key inspection judgements of learning and skills providers inspected " & IF('Chart 2'!$C$4=Dates1!$B$3, "between " & Dates1!$B$3, IF('Chart 2'!$C$4 = Dates1!$B$4, "in "&Dates1!$B$4, IF('Chart 2'!$C$4=Dates1!$B$5,"in "& Dates1!$B$5, IF('Chart 2'!$C$4=Dates1!$B$6,"in "& Dates1!$B$6, IF('Chart 2'!$C$4=Dates1!$B$7, "in " &Dates1!$B$7))))) & " (final)"&CHAR(185)&" "&CHAR(178)&" "&CHAR(179) -> Chart 2: Key inspection judgements of learning and skills providers inspected between 1 September 2011 and 31 August 2012 (final)¹ ² ³
B4: Select period: | C4: 1 September 2011 and 31 August 2012
C7: Total number inspected | D7: All learning and skills
D8: Outstanding | E8: Good | F8: Satisfactory | G8: Inadequate | L8: Outstanding | M8: Good | N8: Satisfactory | O8: Inadequate
B9: ="Overall effectiveness (" &C9 &")" -> Overall effectiveness (261) | C9: =SUM(D9:G9) -> 261 | D9: =IF($C$4=Dates1!$B$3, DataPack!$B12, IF($C$4=Dates1!$B$4, DataPack!$G12, IF($C$4=Dates1!$B$5, DataPack!$L12, IF($C$4=Dates1!$B$6, DataPack!$Q12)))) -> 16 | E9: =IF($C$4=Dates1!$B$3, DataPack!$C12, IF($C$4=Dates1!$B$4, DataPack!$H12, IF($C$4=Dates1!$B$5, DataPack!$M12, IF($C$4=Dates1!$B$6, DataPack!$R12)))) -> 122 | F9: =IF($C$4=Dates1!$B$3, DataPack!$D12, IF($C$4=Dates1!$B$4, DataPack!$I12, IF($C$4=Dates1!$B$5, DataPack!$N12, IF($C$4=Dates1!$B$6, DataPack!$S12)))) -> 94 | G9: =IF($C$4=Dates1!$B$3, DataPack!$E12, IF($C$4=Dates1!$B$4, DataPack!$J12, IF($C$4=Dates1!$B$5, DataPack!$O12, IF($C$4=Dates1!$B$6, DataPack!$T12)))) -> 29 | K9: Overall effectiveness (261) | L9: =D9/$C9*100 -> 6.130268199 | M9: =E9/$C9*100 -> 46.74329502 | N9: 36.01532567 | O9: 11.11111111
B10: ="Capacity to improve (" &C10 &")" -> Capacity to improve (256) | C10: 256 | D10: =IF($C$4=Dates1!$B$3, DataPack!$B13, IF($C$4=Dates1!$B$4, DataPack!$G13, IF($C$4=Dates1!$B$5, DataPack!$L13, IF($C$4=Dates1!$B$6, DataPack!$Q13)))) -> 14 | E10: =IF($C$4=Dates1!$B$3, DataPack!$C13, IF($C$4=Dates1!$B$4, DataPack!$H13, IF($C$4=Dates1!$B$5, DataPack!$M13, IF($C$4=Dates1!$B$6, DataPack!$R13)))) -> 120 | F10: =IF($C$4=Dates1!$B$3, DataPack!$D13, IF($C$4=Dates1!$B$4, DataPack!$I13, IF($C$4=Dates1!$B$5, DataPack!$N13, IF($C$4=Dates1!$B$6, DataPack!$S13)))) -> 96 | G10: =IF($C$4=Dates1!$B$3, DataPack!$E13, IF($C$4=Dates1!$B$4, DataPack!$J13, IF($C$4=Dates1!$B$5, DataPack!$O13, IF($C$4=Dates1!$B$6, DataPack!$T13)))) -> 26 | K10: Capacity to improve (256) | L10: 5.46875 | M10: 46.875 | N10: 37.5 | O10: 10.15625
B11: ="Outcomes for learners (" &C11 &")" -> Outcomes for learners (261) | C11: 261 | D11: =IF($C$4=Dates1!$B$3, DataPack!$B14, IF($C$4=Dates1!$B$4, DataPack!$G14, IF($C$4=Dates1!$B$5, DataPack!$L14, IF($C$4=Dates1!$B$6, DataPack!$Q14)))) -> 22 | E11: =IF($C$4=Dates1!$B$3, DataPack!$C14, IF($C$4=Dates1!$B$4, DataPack!$H14, IF($C$4=Dates1!$B$5, DataPack!$M14, IF($C$4=Dates1!$B$6, DataPack!$R14)))) -> 118 | F11: =IF($C$4=Dates1!$B$3, DataPack!$D14, IF($C$4=Dates1!$B$4, DataPack!$I14, IF($C$4=Dates1!$B$5, DataPack!$N14, IF($C$4=Dates1!$B$6, DataPack!$S14)))) -> 99 | G11: =IF($C$4=Dates1!$B$3, DataPack!$E14, IF($C$4=Dates1!$B$4, DataPack!$J14, IF($C$4=Dates1!$B$5, DataPack!$O14, IF($C$4=Dates1!$B$6, DataPack!$T14)))) -> 22 | K11: Outcomes for learners (261) | L11: 8.429118774 | M11: 45.21072797 | N11: 37.93103448 | O11: 8.429118774
B12: ="Quality of provision (" &C12 &")" -> Quality of provision (256) | C12: 256 | D12: =IF($C$4=Dates1!$B$3, DataPack!$B22, IF($C$4=Dates1!$B$4, DataPack!$G22, IF($C$4=Dates1!$B$5, DataPack!$L22, IF($C$4=Dates1!$B$6, DataPack!$Q22)))) -> 16 | E12: =IF($C$4=Dates1!$B$3, DataPack!$C22, IF($C$4=Dates1!$B$4, DataPack!$H22, IF($C$4=Dates1!$B$5, DataPack!$M22, IF($C$4=Dates1!$B$6, DataPack!$R22)))) -> 136 | F12: =IF($C$4=Dates1!$B$3, DataPack!$D22, IF($C$4=Dates1!$B$4, DataPack!$I22, IF($C$4=Dates1!$B$5, DataPack!$N22, IF($C$4=Dates1!$B$6, DataPack!$S22)))) -> 96 | G12: =IF($C$4=Dates1!$B$3, DataPack!$E22, IF($C$4=Dates1!$B$4, DataPack!$J22, IF($C$4=Dates1!$B$5, DataPack!$O22, IF($C$4=Dates1!$B$6, DataPack!$T22)))) -> 8 | K12: Quality of provision (256) | L12: 6.25 | M12: 53.125 | N12: 37.5 | O12: 3.125
B13: ="B1. How effectively do teaching, training and assessment support learning and development? (" &C13 &")" -> B1. How effectively do teaching, training and assessment support learning and development? (261) | C13: 261 | D13: =IF($C$4=Dates1!$B$3, DataPack!$B23, IF($C$4=Dates1!$B$4, DataPack!$G23, IF($C$4=Dates1!$B$5, DataPack!$L23, IF($C$4=Dates1!$B$6, DataPack!$Q23)))) -> 9 | E13: =IF($C$4=Dates1!$B$3, DataPack!$C23, IF($C$4=Dates1!$B$4, DataPack!$H23, IF($C$4=Dates1!$B$5, DataPack!$M23, IF($C$4=Dates1!$B$6, DataPack!$R23)))) -> 138 | F13: =IF($C$4=Dates1!$B$3, DataPack!$D23, IF($C$4=Dates1!$B$4, DataPack!$I23, IF($C$4=Dates1!$B$5, DataPack!$N23, IF($C$4=Dates1!$B$6, DataPack!$S23)))) -> 106 | G13: =IF($C$4=Dates1!$B$3, DataPack!$E23, IF($C$4=Dates1!$B$4, DataPack!$J23, IF($C$4=Dates1!$B$5, DataPack!$O23, IF($C$4=Dates1!$B$6, DataPack!$T23)))) -> 8 | K13: B1. How effectively do teaching, training and assessment support learning and development? (261) | L13: 3.448275862 | M13: 52.87356322 | N13: 40.61302682 | O13: 3.0651341
B14: ="Leadership and management (" &C14 &")" -> Leadership and management (261) | C14: 261 | D14: =IF($C$4=Dates1!$B$3, DataPack!$B27, IF($C$4=Dates1!$B$4, DataPack!$G26, IF($C$4=Dates1!$B$5, DataPack!$L26, IF($C$4=Dates1!$B$6, DataPack!$Q26)))) -> 17 | E14: =IF($C$4=Dates1!$B$3, DataPack!$C27, IF($C$4=Dates1!$B$4, DataPack!$H26, IF($C$4=Dates1!$B$5, DataPack!$M26, IF($C$4=Dates1!$B$6, DataPack!$R26)))) -> 125 | F14: =IF($C$4=Dates1!$B$3, DataPack!$D27, IF($C$4=Dates1!$B$4, DataPack!$I26, IF($C$4=Dates1!$B$5, DataPack!$N26, IF($C$4=Dates1!$B$6, DataPack!$S26)))) -> 92 | G14: =IF($C$4=Dates1!$B$3, DataPack!$E27, IF($C$4=Dates1!$B$4, DataPack!$J26, IF($C$4=Dates1!$B$5, DataPack!$O26, IF($C$4=Dates1!$B$6, DataPack!$T26)))) -> 27 | K14: Leadership and management (261) | L14: 6.513409962 | M14: 47.89272031 | N14: 35.24904215 | O14: 10.34482759
F15: Source: Ofsted
B36: 1. Percentages are rounded and may not add to exactly 100. Percentages should be viewed with caution where the number of providers is small.
B37: 2. Data include five pilot inspections which grade overall effectiveness, outcomes for learners, teaching and learning and leadership and management.
B38: 3. Does not include inspections of the Dance and Drama Awards scheme, further education in higher education institute inspections, prison inspections, probation trust inspections or Next Step inspections.

Sheet Chart 3
B2: Chart 3: Overall effectiveness of colleges inspected between 1 September 2005 and 31 August 2012, by academic year (final) 1 2
C5: Total number inspected | D5: Overall effectiveness
D6: Outstanding | E6: Good | F6: Satisfactory | G6: Inadequate | M6: Outstanding | N6: Good | O6: Satisfactory | P6: Inadequate
B7: 1 Sep 2011 - 31 Aug 2012 (70) | C7: =SUM(D7:G7) -> 70 | D7: 4 | E7: 23 | F7: 30 | G7: 13 | L7: 1 Sep 2011 - 31 Aug 2012 (70) | M7: =D7/$C7*100 -> 5.714285714 | N7: =E7/$C7*100 -> 32.85714286 | O7: 42.85714286 | P7: 18.57142857
B8: ="1 Sep 2010 - 31 Aug 2011 ("&C8&")"& CHAR(179) -> 1 Sep 2010 - 31 Aug 2011 (83)³ | C8: 83 | D8: 5 | E8: 33 | F8: 41 | G8: 4 | L8: 1 Sep 2010 - 31 Aug 2011 (83)³ | M8: =D8/$C8*100 -> 6.024096386 | N8: 39.75903614 | O8: 49.39759036 | P8: 4.819277108
B9: ="1 Sep 2009 - 31 Aug 2010 ("&C9&")" -> 1 Sep 2009 - 31 Aug 2010 (92) | C9: =SUM(D9:G9) -> 92 | D9: 9 | E9: 43 | F9: 35 | G9: 5 | L9: 1 Sep 2009 - 31 Aug 2010 (92) | M9: 9.782608696 | N9: 46.73913043 | O9: 38.04347826 | P9: 5.434782609
B10: ="1 Sep 2008 - 31 Aug 2009 ("&C10&")" -> 1 Sep 2008 - 31 Aug 2009 (94) | C10: =SUM(D10:G10) -> 94 | D10: 18 | E10: 40 | F10: 32 | G10: 4 | L10: 1 Sep 2008 - 31 Aug 2009 (94) | M10: 19.14893617 | N10: 42.55319149 | O10: 34.04255319 | P10: 4.255319149
B11: ="1 Sep 2007 - 31 Aug 2008 ("&C11&")" -> 1 Sep 2007 - 31 Aug 2008 (133) | C11: =SUM(D11:G11) -> 133 | D11: 37 | E11: 54 | F11: 32 | G11: 10 | L11: 1 Sep 2007 - 31 Aug 2008 (133) | M11: 27.81954887 | N11: 40.60150376 | O11: 24.06015038 | P11: 7.518796992
B12: ="1 Sep 2006 - 31 Aug 2007 ("&C12&")" -> 1 Sep 2006 - 31 Aug 2007 (120) | C12: =SUM(D12:G12) -> 120 | D12: 20 | E12: 49 | F12: 42 | G12: 9 | L12: 1 Sep 2006 - 31 Aug 2007 (120) | M12: 16.66666667 | N12: 40.83333333 | O12: 35 | P12: 7.5
B13: ="1 Sep 2005 - 31 Aug 2006 ("&C13&")" -> 1 Sep 2005 - 31 Aug 2006 (100) | C13: =SUM(D13:G13) -> 100 | D13: 11 | E13: 44 | F13: 37 | G13: 8 | L13: 1 Sep 2005 - 31 Aug 2006 (100) | M13: 11 | N13: 44 | O13: 37 | P13: 8
G14: Source: Ofsted
B36: 1. Percentages are rounded and may not add to exactly 100. Percentages should be viewed with caution where the number of providers is small.
B37: 2. Includes general further education/tertiary college (including specialist further education), sixth form college and independent specialist college.
B38: 3. Data vary slightly to that reported in previous years due to Ofsted's change in provider types.

Sheet Chart 3a
B2: Chart 3a: Overall effectiveness of independent learning providers inspected between 1 September 2007 and 31 August 2012, by academic year (final) 1 2 3
C5: Total number inspected | D5: Overall effectiveness
B6: Number of providers | D6: Outstanding | E6: Good | F6: Satisfactory | G6: Inadequate | N6: Outstanding | O6: Good | P6: Satisfactory | Q6: Inadequate
B7: ="1 Sep 2011 - 31 Aug 2012 ("&C7&")" -> 1 Sep 2011 - 31 Aug 2012 (128) | C7: =SUM(D7:G7) -> 128 | D7: 9 | E7: 62 | F7: 44 | G7: 13 | M7: 1 Sep 2011 - 31 Aug 2012 (128) | N7: =D7/$C7*100 -> 7.03125 | O7: =E7/$C7*100 -> 48.4375 | P7: 34.375 | Q7: 10.15625
B8: ="1 Sep 2010 - 31 Aug 2011 ("&C8&")"& CHAR(179) -> 1 Sep 2010 - 31 Aug 2011 (155)³ | C8: 155 | D8: 18 | E8: 73 | F8: 56 | G8: 8 | M8: 1 Sep 2010 - 31 Aug 2011 (155)³ | N8: =D8/$C8*100 -> 11.61290323 | O8: 47.09677419 | P8: 36.12903226 | Q8: 5.161290323
B9: ="1 Sep 2009 - 31 Aug 2010 ("&C9&")"& CHAR(179) -> 1 Sep 2009 - 31 Aug 2010 (183)³ | C9: 183 | D9: 11 | E9: 75 | F9: 82 | G9: 15 | M9: 1 Sep 2009 - 31 Aug 2010 (183)³ | N9: =D9/$C9*100 -> 6.010928962 | O9: 40.98360656 | P9: 44.80874317 | Q9: 8.196721311
B10: ="1 Sep 2008 - 31 Aug 2009 ("&C10&")" -> 1 Sep 2008 - 31 Aug 2009 (242) | C10: =SUM(D10:G10) -> 242 | D10: 12 | E10: 87 | F10: 124 | G10: 19 | M10: 1 Sep 2008 - 31 Aug 2009 (242) | N10: =D10/$C10*100 -> 4.958677686 | O10: 35.95041322 | P10: 51.23966942 | Q10: 7.851239669
B11: ="1 Sep 2007 - 31 Aug 2008 ("&C11&")" -> 1 Sep 2007 - 31 Aug 2008 (221) | C11: =SUM(D11:G11) -> 221 | D11: 13 | E11: 119 | F11: 75 | G11: 14 | M11: 1 Sep 2007 - 31 Aug 2008 (221) | N11: =D11/$C11*100 -> 5.882352941 | O11: 53.84615385 | P11: 33.93665158 | Q11: 6.334841629
G12: Source: Ofsted
B35: 1. Percentages are rounded and may not add to exactly 100. Percentages should be viewed with caution where the number of providers is small.
B36: 2. Includes employer providers
B37: 3. Data vary slightly to that reported in previous years due to Ofsted's change in provider types.

Sheet Chart 3b
B2: Chart 3b: Overall effectiveness of adult and community learning providers inspected between 1 September 2007 and 31 August 2012, by academic year (final) 1 2
C5: Total number inspected | D5: Overall effectiveness
B6: Number of providers | D6: Outstanding | E6: Good | F6: Satisfactory | G6: Inadequate | L6: Outstanding | M6: Good | N6: Satisfactory | O6: Inadequate
B7: ="1 Sep 2011 - 31Aug 2012 ("&C7&")" -> 1 Sep 2011 - 31Aug 2012 (63) | C7: =SUM(D7:G7) -> 63 | D7: 3 | E7: 37 | F7: 20 | G7: 3 | K7: 1 Sep 2011 - 31Aug 2012 (63) | L7: =D7/$C7*100 -> 4.761904762 | M7: =E7/$C7*100 -> 58.73015873 | N7: 31.74603175 | O7: 4.761904762
B8: ="1 Sep 2010 - 31 Aug 2011 ("&C8&")"& CHAR(178) -> 1 Sep 2010 - 31 Aug 2011 (73)² | C8: 73 | D8: 2 | E8: 43 | F8: 26 | G8: 2 | K8: 1 Sep 2010 - 31 Aug 2011 (73)³ | L8: =D8/$C8*100 -> 2.739726027 | M8: 58.90410959 | N8: 35.61643836 | O8: 2.739726027
B9: ="1 Sep 2009 - 31 Aug 2010 ("&C9&")"& CHAR(178) -> 1 Sep 2009 - 31 Aug 2010 (69)² | C9: 69 | D9: 0 | E9: 44 | F9: 20 | G9: 5 | K9: 1 Sep 2009 - 31 Aug 2010 (69)³ | L9: =D9/$C9*100 -> 0 | M9: 63.76811594 | N9: 28.98550725 | O9: 7.246376812
B10: ="1 Sep 2008 - 31 Aug 2009 ("&C10&")" -> 1 Sep 2008 - 31 Aug 2009 (68) | C10: =SUM(D10:G10) -> 68 | D10: 4 | E10: 30 | F10: 32 | G10: 2 | K10: 1 Sep 2008 - 31 Aug 2009 (68) | L10: =D10/$C10*100 -> 5.882352941 | M10: 44.11764706 | N10: 47.05882353 | O10: 2.941176471
B11: ="1 Sep 2007 - 31 Aug 2008 ("&C11&")" -> 1 Sep 2007 - 31 Aug 2008 (49) | C11: =SUM(D11:G11) -> 49 | D11: 3 | E11: 17 | F11: 22 | G11: 7 | K11: 1 Sep 2007 - 31 Aug 2008 (49) | L11: =D11/$C11*100 -> 6.12244898 | M11: 34.69387755 | N11: 44.89795918 | O11: 14.28571429
G12: Source: Ofsted
B34: 1. Percentages are rounded and may not add to exactly 100. Percentages should be viewed with caution where the number of providers is small.
B35: 2. Data vary slightly to that reported in previous years due to Ofsted's change in provider types.

Sheet Chart 4
B2: Chart 4: Overall effectiveness of learning and skills providers inspected at 31 August 2012 1 2
C5: Total number inspected | D5: Overall effectiveness
B6: Number of providers | D6: Outstanding | E6: Good | F6: Satisfactory | G6: Inadequate | M6: Outstanding | N6: Good | O6: Satisfactory | P6: Inadequate
B7: ="All college ("&C7&")"& CHAR(178) -> All college (386)² | C7: 386 | D7: 81 | E7: 170 | F7: 121 | G7: 14 | L7: All college (386)² | M7: 20.98445596 | N7: 44.04145078 | O7: 31.34715026 | P7: 3.626943005
B8: ="General further education college/tertiary college ("&C8&")" -> General further education college/tertiary college (243) | C8: 243 | D8: 41 | E8: 111 | F8: 83 | G8: 8 | L8: General further education college/tertiary college (243) | M8: 16.87242798 | N8: 45.67901235 | O8: 34.1563786 | P8: 3.29218107
B9: ="Sixth form college ("&C9&")" -> Sixth form college (92) | C9: 92 | D9: 33 | E9: 33 | F9: 22 | G9: 4 | L9: Sixth form college (92) | M9: 35.86956522 | N9: 35.86956522 | O9: 23.91304348 | P9: 4.347826087
B10: ="Independent specialist college ("&C10&")" -> Independent specialist college (51) | C10: 51 | D10: 7 | E10: 26 | F10: 16 | G10: 2 | L10: Independent specialist college (51) | M10: 13.7254902 | N10: 50.98039216 | O10: 31.37254902 | P10: 3.921568627
B11: ="Independent learning provider ("&C11&")" -> Independent learning provider (481) | C11: 481 | D11: 58 | E11: 237 | F11: 169 | G11: 17 | L11: Independent learning provider (481) | M11: 12.05821206 | N11: 49.27234927 | O11: 35.13513514 | P11: 3.534303534
B12: ="Adult and community learning provider ("&C12&")" -> Adult and community learning provider (263) | C12: 263 | D12: 12 | E12: 167 | F12: 81 | G12: 3 | L12: Adult and community learning provider (263) | M12: 4.562737643 | N12: 63.49809886 | O12: 30.79847909 | P12: 1.140684411
G13: Source: Ofsted
B36: 1. Percentages are rounded and may not add to exactly 100. Percentages should be viewed with caution where the number of providers is small.
B37: 2. Includes general further education college/tertiary college, sixth form college, specialist further education college and independent specialist college.

Sheet Chart 5
B2: Chart 5: Most recent overall effectiveness of learning and skills providers inspected at 31 August 2012 compared to the most recent overall effectiveness at 31 August 2011
B3: and 31 August 2010 (final) 1 2
C5: Total number inspected | D5: Overall effectiveness
D6: Outstanding | E6: Good | F6: Satisfactory | G6: Inadequate | N6: Outstanding | O6: Good | P6: Satisfactory | Q6: Inadequate
B7: 31 Aug 2012 (1,130) | C7: 1130 | D7: 151 | E7: 574 | F7: 371 | G7: 34 | M7: 31 Aug 2012 (1,130) | N7: 13.36283186 | O7: 50.79646018 | P7: 32.83185841 | Q7: 3.008849558
B8: 31 Aug 2011 (1,313) | C8: 1313 | D8: 160 | E8: 665 | F8: 466 | G8: 22 | M8: 31 Aug 2011 (1,313) | N8: 12.18583397 | O8: 50.64737243 | P8: 35.49124143 | Q8: 1.675552171
B9: 31 Aug 2010 (1,253) | C9: 1253 | D9: 134 | E9: 613 | F9: 475 | G9: 31 | M9: 31 Aug 2010 (1,253) | N9: 10.6943336 | O9: 48.92258579 | P9: 37.90901836 | Q9: 2.474062251
G10: Source: Ofsted
B33: 1. Percentages are rounded and may not add to exactly 100.
B34: 2. Includes general further education/tertiary college (including specialist further education college), sixth form college, independent specialist college, independent learning provider (including employer provider), and adult and community learning provider.
